{"text_format":"1","workbook":"xlsx","n_sheets":1,"sheets":["Сводная"],"not_rendered":{"charts":0,"images":0,"macros":1,"external_links":1,"defined_names":97,"comments":0,"pivot_tables":0},"unopened":[],"bounds":{"document_bytes":16777216,"sheet_cells":100000,"rows_first":2000,"rows_last":500,"rows_between":2000,"halvings":0,"cell_chars":16384,"cell_head_chars":4096},"cells_cut":0,"cells_raw":0,"read":"whole","date_system":"1900"}

{"sheet":"Сводная","index":0,"n_rows":41,"n_cols":216,"rows_kept":41,"cut":false,"hidden":false,"merged":[]}
[{"$f":"LastRow(A:A)","v":41},null,null,null,"Y","Y",null,null,null,null,null,null,null,null,null,null,null,null,null,null,null,null,null,null,null,null,null,null,null,null,null,null,null,null,null,null,null,null,null,null,null,null,null,null,null,null,null,null,null,null,null,null,null,null,null,null,null,null,null,null,null,null,null,null,null,null,null,null,null,null,null,null,null,null,null,null,null,null,null,null,null,null,null,null,null,null,null,null,null,null,null,null,null,null,null,null,null,null,null,null,null,null,null,null,null,null,null,null,null,null,null,null,null,null,null,null,null,null,null,null,null,null,null,null,null,null,null,null,null,null,null,null,null,null,null,null,null,null,null,null,null,null,null,null,null,null,null,null,null,null,null,null,null,null,null,null,null,null,null,null,null,null,null,null,null,null,null,null,null,null,null,null,null,null,null,null,null,null,null,null,null,null,null,null,null,null,null,null,null,null,null,null,null,null,null,null,null,null,null,null,null,null,null,null,null,null,null,null,null,null,null,null,null,"Y","Y"]
[]
["Наименование элемента","Категория 1 уровня","Категория 2 уровня","Категория 3 уровня","Валюта для Розничной цены","Розничная цена, руб.","Общее кол-во на складе","Разрешить покупку при отсутвии товара","НДС включен в цену ?","Наши предложения (OFFERS)","Р","Производитель (ATT_BRAND)","Родина бренда (PRODUCER)","Страна производитель (COUNTRY)","Р","Р","ID товара на сайте","Сопутствующие товары (RELATED_PRODUCT)","Похожие товары (SIMILAR_PRODUCT)","Р","Артикул (CML2_ARTICLE)","Тип прибора","P","В списке Госреестра","P","Р","Дальность обнаружения (заводская), метр","Дальность обнаружения (оптический расчет), метр","Формула для проверки дальности","Формула для проверки угла обзора","Р","Производитель матрицы","Тип матрицы","Разрешение матрицы, пикс","Размер пикселя матрицы, мкм","Температурный диапазон измерения, °C","Термочувствительность (NETD), °C","Частота смены кадров, Гц","Цветность отображения горячего","Способ калибровки","Пространственное разрешение (IFOV), мрад","Точность измерений, °C","Р","Р","Разрешение ПЗС матрицы, пикс","Разрешение ПЗС матрицы, штр/мм","Цвет изображения ПЗС матрицы","Р","Р","Поколение ЭОП","Марка ЭОП","Производитель ЭОП","Разрешение ЭОП, штр/мм","Чувствительность ЭОП, мкА/лм","Усиления света ЭОП, отн.ед.","Цвет изображения ЭОП","Р","Р","Ночная ИК подсветка","Дистанция ИК подсветки, метр.","Длина волны ИК-осветителя, нм","Тип ИК осветителя","Мощность ИК (градации), мВт","Р","Р","Объектив, мм/f","Оптическое увеличение, крат","Цифровое увеличение, крат","Угол зрения по горизонту, град.","Мин. фокусное расстояние, метр","Фокусировка","Озотозаполненность оптики","Сменный объектив","Р","Р","Тип дисплея","Разрешение дисплея, пикс","Сенсорный экран","Р","Р","Фотозапись","Видеозапись","Автоматическая активация видеозаписи","Хранение изображений","Способ передачи изображений","Способ трансляции в реальном времени","Дистанционное управление","Встроенный Wi-Fi","Беспроводная совместимость своих приборов","Микрофон","Динамик","Встроенная цифровая камера","Р","Р","Дальномер","Дальность дальномера, метр","Способ передачи информации","Р","Баллистический калькулятор","Авто сдвиг прицельной сетки","Угол завала","Память пристрелки","Пристрелка одним выстрелом","Р","Р","Р","Р","Обновление ПО прибора","Детектор движения","Датчик температуры","Акселерометр","Датчик влажности","Светодиодная подсветка (фонарик)","Лазерный целеуказатель","Геотекинг/GPS","Электронный компас","Электронный угломер","Гироскоп","Магнитометр","Электронный барометр","Р","Р","Р","Р","Удаление выходного зрачка , мм","Поворотно-наклонный механизм","Гиростабилизация","Время включения прибоа, сек","Возможность установки на штатив","Время работы от своих батарей, час","Возможность использовать доп. источник питания","Размеры прибора ДЛИНА, мм","Размеры прибора ШИРИНА, мм","Размеры прибора ВЫСОТА, мм","Вес прибора, грамм","Температура эксплуатации, °С","Водо- и пыленепроницаемость (IP)","Устойчивость к падению на бетон, метр","Планка Weaver на корпусе для доп.аксессуаров","Язык меню прибора","Срок гарантии (xls_srok_garantii)","Р","P","Р","Р","Р","Показать в меню (SHOW_MENU)","Дополнительные услуги (SERVICES)","Коллекции (COLLECTION)","Уникальные черты","Р","Р","Р","Р","Р","Р","Р","Р","Специальное предложение (PRODUCT_DAY)","Таймер (однократно) до (TIMER_DATE)"," Дата обратного отсчета для таймера в цикле (TIMER_START_DATE)","Таймер обратного отсчета в цикле на дней (TIMER_LOOP)","Р","Рейтинг (RATING)","Количество проголосовавших (VOTE_COUNT)","Сумма оценок (VOTE_SUM)","Количество комментариев (BLOG_COMMENTS_CNT)","Р","ym_typePrefix (TYPEPREFIX)","ЯМ - Категория (ym_market_category)","ЯМ - Информация (ym_sales_notes)","ЯМ - выгрузка (YML)","Код товара на Яндекс.Маркет (TURBO_YANDEX_LINK)","TURBO_YANDEX_STATUS","Р","Картинка анонса","Детальная картинка","Дополнительное фото (MORE_PHOTO)","Детальное описание","Видеообзоры (VIDEO)","Документация (FILES)","Р","Шаблон META TITLE (вставка)","Шаблон META DESCRIPTION (вставка)","Шаблон META KEYWORDS (вставка)","Описание анонса (вставка)","ТЕГИ (xls_tegi)","Шаблон ALT для картинки анонса","Шаблон TITLE для картинки анонса","Шаблон имени файла для картинки анонса","Шаблон ALT для детальной картинки","Шаблон TITLE для детальной картинки","Шаблон имени файла для детальной картинки","P","Р",null,null,null,null,null,null,null,null,null,null,null,"Р","Р","Закупочная цена","Закупочная цена (валюта)","РРЦ (Поставщик)","По курсу $/€, руб.","Коэф-нт, низ/вверх","Валюта для Розничной цены","Розничная цена, руб.","Проверка цен было/стало"]
["Не более 255 знаков =ДЛСТР(ссылка ячейка)","1 1",null,null,null,null,null,null,null,null,null,null,"Страна, которой принадлежит бренд","Страна производства прибора",null,null,null,null,null,null,null,null,null,"Прибор, прошедший все необходимые проверки и соответсвует всем нормативам и правилам, которые установлены для данной категории товаров",null,null,"Способность обнаружить цель размером с человека (1,8м*0,5м) в 1,5-3 пиксела на экране при определенных погодных показателях влажности, давления и температуры.  Если обнаружение 1000м/распознование (человек/машина) 500м/идентификация (мужчина/женщина) 170м","Единый стандарт рассчета. Математически рассчитанная дальность обнаружения для человека ростом 170 см и отображение на тепловизионной матрице в 2 пикселя. Так же зависит от вертикального размера матрицы и горизонтального угла обзора",null,null,null,null,"Аморфный кремний (a-Si) и Оксид ванадия (VOx) - материалы, которые используют для изготовления неохлаждаемых матриц в фокальной плоскости (FPA)","Количество пикселей на матрице. Чем их больше, тем выше детализация изображения","Чем меньше пиксель, тем выше детализация. Но, меньший пиксель более чувствителен к дрожанию рук","Диапазон температур, для которых предназначен тепловизор. При выходе из диапазона измерения тепловизор становится бесполезным","Температура минимальной отображаемоей разницы. Чем меньше показатель, тем более понятен объект наблюдения.","Чем выше частота обновления кадра, тем более плавным будет отображение динамичных сцен","Цветовые схемы применяются для удобства наблюдения в различных условиях. Особенно в электроэнергетике, где необходимо найти перегретые или неисправные элементы","Калибровка матрицы может происходить двумя способами: механически (шторками) и электронно (бесшумно)","iFov – это угол поля зрения, который приходится на один пиксель, измеряется в мрадиан. Например значение 3,5 мрад значит - что один пиксель на матрице тепловизора равен 3,5мм высоты/ширины объекта на расстоянии одного метра.","Обычно погрешность измерения тепловизоров не превышает 2% от полученного результата",null,null,"Количество пикселей на матрице. Чем их больше, тем выше детализация изображения","Способность ПНВ различать два близко расположенных объекта измеряется в штрихах на миллиметр. Чем больше величина, указанная в штрихах на миллиметр, тем более мелкие детали различает ПНВ. Хорошую картинку дает разрешение начиная от 42 штр/мм","Возможность отображения картинки в разных цветах: черно-белый, зеленый или цветной",null,null,"Чем выше поколение ЭОП, тем больше чувствительность к свету, увеличение дистанции обнаружения и выше разрешение изображения",null,null,"Способность ПНВ различать два близко расположенных объекта измеряется в штрихах на миллиметр. Чем больше величина, указанная в штрихах на миллиметр, тем более мелкие детали различает ПНВ. Хорошую картинку дает разрешение начиная от 42 штр/мм","Чем выше поколение ЭОП, тем выше чувствительность фотокатода, а значит увеличивается яркость изображения","Характеризует усиление попадающего в ЭОП света, относительно исходящего из него. Чем больше этот коэффициент, тем лучше отображаются объекты в поле зрения","ЭОП предлагает 2 варианта спектрального изображения - в зеленом или черно-белом цвете. Черно-белый вариант дает больший комфорт и снижает напряжение глаз, а желто-зеленый спектр люминофора дает прирост в дальности наблюдения",null,null,"Дает дополнительное уселение света, когда естественных источников (луна, звезды) становится недостаточно","Дистанция зависит от мощности осветителя и может достигать 1 км","Для ЭОП 1,2 поколений хорошо подходят фонари с длиной волны до 900 нм, свыше 900 нм (невидимый диапазон) для 3 поколения и цифровых приборов","Может быть лазерным или диодным. Диодный осветитель безопасен для глаз и дает более равномерное поле свечения","Чем выше мощность ИК фонаря, тем дальше он видит",null,null,"Две важные характеристики объектива: фокусное расстояние, от которого зависит оптическое увеличение и дистанция; и диафрагма F - чем меньше этот показатель, тем больше света попадает на матрицу, что напрямую сказывается на качестве изображения в лучшую сторону","Чем больше этот показатель, тем сильнее увеличение без потери качества","Увеличение происходит програмным способом, т.е. берется центральная часть изображения и растягивается на весь экран. Чем больше цифровой зум, тем сильнее искажение получаем на выходе","Это та часть пространства, которую может охватить объектив. Угол поля зрения объектива обратно пропорционален фокусному расстоянию объектива. Чем меньше оптическое увеличение объектива, тем шире он видит","Это то минимальное расстояние, на которое может сфокусироваться объектив. Чем больше оптическое увеличение объектива, тем больше минимальное расстояние фокусировки","Фокусировка объектива может происходить как в автоматическом режиме, так и в ручном, а также в полуавтоматическом, т.е. прибор фокусируется сам, но при участии пользователя","Озот, которым заполняется внутренности оптики (а также корпуса), что предотвращает запотевание при резкой смене температуры","Возможность замены объектива на другой самостоятельно",null,null,"Технология, по которой построен дисплей прибора","Чем выше разрешение экрана, тем лучше качество отображаемой информации",null,null,null,"Возможность фотографировать изображение находящееся в поле зрения объектива и сохранять во внутреннюю память, либо на внешнее устройство (если прибор поддерживает данную функцию)","Возможность записывать видео-изображение находящееся в поле зрения объектива и сохранять во внутреннюю память, либо на внешнее устройство (если прибор поддерживает данную функцию)","Обычно эта функция устанавливается на прицелы и автоматически активируется перед выстрелом, чтобы пользователь мог запечатлить самый интересный момент охоты ",null,"Зависит от функционала прибора. Передача файлов может проходить по разным протоколам (Wi-Fi, Bluetooth), а также проводным способом (USB, HDMI)","Способ и способность прибора передать картинку в режиме реального времени","Возможность управления основными функциями прибора удаленно, посредством дистанционого пульта или мобильного устройства","Беспроводная передача информации, либо управление прибором","При поддержке этой функции приборы могут \"общаться\" между собой. Например: тепловизор может получить дополнительную информацию от токоизмерительных клещей по беспроводному каналу передачи данных (обычно это приборы одного производителя)","Запись звука, может использоваться в работах на объекте,  например, записать комментарий к полученным тепловизионным измерениям","Возможность воспроизводить звук с прибора, например, прослушать анотацию к тепловизионному изображению без необходимости подключения к ПК или мобильному устройству","Встроенная цифровая камера видимого спектра, обычно устанавливается в строительные тепловизоры",null,null,"Лазерные дальномеры используются для определения дистанции до объекта в условиях прямой видимости, точность как правило высокая. Дальномерная шкала дает приблизительную оценку дистанции и возможны большие погрешности.","Максимальная дистанция, которую способен измерить дальномер",null,null,"Применяется для расчета траектории полета пули. С его помощью можно рассчитать предварительные данные для пристрелки оружия и поправки с учётом разных дистанций и углов стрельбы",null,null,"Возможность пристрелки одного прицела на разные дистанции/патроны/оружие с сохранением всех показателей. При этом не придется настраивать прицел по новой",null,null,null,null,null,null,null,"Способность отображать на экране прибора минимальную/максимальную, а также среднюю температуры в поле зрения тепловизора","Позволяет определять ориентацию прибора относительно горизонта - угол оси наблюдения относительно горизонта и угол крена.","Обычно устанавливается на строительные тепловизоры и влагометры, полезен для ремонтных работ","Для удобства, в условиях недостаточной видимости","Для удобства нацеливания на конкретный объект при измерении температуры или совершении выстрела","Позволяет определить собственные географические координаты наблюдателя. Погрешность определения координат зависит от количества спутников, с которыми установлена связь, уровня сигнала и мешающих факторов. На открытой местности погрешность более точная.","Позволяет определить ориентацию вектора магнитного поля земли и вычислить магнитный азимут направления наблюдения.","Помогает контролировать острые и развёрнутые углы с самыми разными градусами. Он необходим не только на стадии монтажа, так как даёт много возможностей при создании планов и чертежей, а также при проведении диагностики пространственных систем","Датчик гироскопа передает данные об угле наклона прибора по отношению к земной поверхности","Датчик для измерения характеристик магнитного поля и магнитных свойств материалов","Датчик для измерения атмосферного давления",null,null,null,null,null,"Гибкая система креплений, которая позволяет точно пазиционировать положение камеры в пространтстве","Это поддержание прибора в нужном положении с помощью гироскопов, например, при качке на корабле","Время с нажатия на кнопку питания до полной загрузки операционной системы","Специальное отверстие (разъем) на корпусе прибора",null,"Наличие специального разъема на корпусе прибора для подключения внешней переферии",null,null,null,null,null,"Класс защиты прибора, который говорит о том, что устройство способно переносить суровые условия эксплуатации, такие как: вода, пыль, грязь, вибрационные нагрузки, падения, удары и т.д.",null,"Специальное крепление на корпусе прибора для установки дополнительного оборудования (ИК-фонарь, блок питания, видеорекордер и т.д.)"]
["Наименование элемента 1","Категория 1 уровня 1","Категория 2 уровня 1","Категория 3 уровня 1","RUB",269900,10,"Нет","Y",null,null,"Pulsar","Беларусь","Литва",null,null,4872,null,"х",null,77405,"Монокуляр тепловизионный",null,null,null,null,1800,1885,{"$f":"(1.7/2)/TAN(RADIANS(IF(BQ5>0,BQ5,((2*ATAN(0.5*((LEFT(AH5,3))*AI5*0.001)/(LEFT(BN5,3))))/PI()*180))/RIGHT(AH5,3)))","v":1885.2158433272052},{"$f":"(2*ATAN(0.5*((LEFT(AH5,3))*AI5*0.001)/(LEFT(BN5,3))))/PI()*180","v":12.418713427167093},null,"ULIS (Франция)","α‐Si","640х480",17,null,"0,05°C",50,"Цветной","Механический шторки",null,null,null,null,null,null,null,null,null,null,null,null,null,null,null,null,null,null,null,null,null,null,null,null,null,"50 мм f/1.2","2,5х","8х",12.4,3,"Ручная",null,"Да",null,null,"AMOLED","640х480",null,null,null,"Да","Да",null,"Да","USB/Wi-Fi","По Wi-Fi на приложение Android/iOS","Wi-Fi приложение Android/iOS","Да",null,null,null,null,null,null,"Дальномерная шкала",null,null,null,null,null,null,null,null,null,null,null,null,"Через приложение на смартфоне","Да",null,null,null,null,null,null,null,null,null,null,null,null,null,null,null,null,null,null,4,"Да",8,"Да",220,50,55,500,"от -25 до +50°C","IPX7",null,"Нет","Русский","36 мес.",null,null,null,null,null,null,null,null,null,null,null,null,null,null,null,null,null,null,null,"16.07.2018 18:00:00",null,null,null,null,null,null,null,null,"Все товары/Электроника/Оптические приборы/Приборы ночного видения","На этот товар СКИДКА или ПОДАРОК, звони!",null,null,null,null,"/upload/imgs/tulon_foto_anons/teploviz_Ohota_ruchnie/pulsar/Pulsar_Helion_1.jpg","/upload/imgs/tulon_foto_anons/teploviz_Ohota_ruchnie/pulsar/Pulsar_Helion_1.jpg","/upload/imgs/tulon_foto_anons/teploviz_Ohota_ruchnie/pulsar/Pulsar_Helion_2.jpg;/upload/imgs/tulon_foto_anons/teploviz_Ohota_ruchnie/pulsar/Pulsar_Helion_3.jpg;/upload/imgs/tulon_foto_anons/teploviz_Ohota_ruchnie/pulsar/Pulsar_Helion_4.jpg;/upload/imgs/tulon_foto_anons/teploviz_Ohota_ruchnie/pulsar/Pulsar_Helion_5.jpg;/upload/imgs/tulon_foto_anons/teploviz_Ohota_ruchnie/pulsar/Pulsar_Helion_6.jpg;/upload/imgs/tulon_foto_anons/teploviz_Ohota_ruchnie/pulsar/Pulsar_Helion_7.jpg;/upload/imgs/tulon_foto_anons/teploviz_Ohota_ruchnie/pulsar/Pulsar_Helion_8.jpg;/upload/imgs/tulon_foto_anons/teploviz_Ohota_ruchnie/pulsar/Pulsar_Helion_9.jpg;/upload/imgs/tulon_foto_anons/teploviz_Ohota_ruchnie/pulsar/Pulsar_Helion_10.jpg;/upload/imgs/tulon_foto_anons/teploviz_Ohota_ruchnie/pulsar/Pulsar_Helion_11.jpg","/upload/imgs/tulon_op_tovara/teplovizor_ohota/pulsar/op_Teplovizor_Pulsar_Helion_XP50.html","https://www.youtube.com/embed/P4PTIRcP41Y;https://www.youtube.com/embed/OnwufFGli9Q;https://www.youtube.com/embed/vWX0lgOBnDI","/upload/imgs/tulon_op_tovara/teplovizor_ohota/pulsar/Инструкция пользователя Pulsar HELION.pdf;/upload/imgs/tulon_op_tovara/teploviz_prisel_i_nasadki/pulsar/Инструкция пользователя приложение Stream Vision (iOS).pdf;/upload/imgs/tulon_op_tovara/teploviz_prisel_i_nasadki/pulsar/Инструкция пользователя приложение Stream Vision (Android).pdf",null,"Тепловизионный монокуляр Pulsar Helion XP50 | Скидка, купить, цена","Тепловизионный монокуляр Pulsar Helion XP50 купить для охоты и наблюдения по минимальной цене. Сравнить характеристики, скачать инструкцию и отзывы на сайте tulon.ru. Скидка и доставка бесплатно каждому покупателю!","купить, описание, каталог, цена, доставка, акция, распродажа, опт, тепловизор","Тепловизионный монокуляр Pulsar Helion XP50 для охоты и наблюдения по минимальной цене. Сравнить характеристики, скачать инструкцию и отзывы на сайте tulon.ru. Скидка и доставка бесплатно каждому покупателю!","пульсар,хелион,xp 50,хп50,хп 50","Тепловизионный монокуляр Pulsar Helion XP50","Тепловизионный монокуляр Pulsar Helion XP50","Тепловизионный монокуляр Pulsar Helion XP50","Тепловизионный монокуляр Pulsar Helion XP50","Тепловизионный монокуляр Pulsar Helion XP50","Тепловизионный монокуляр Pulsar Helion XP50",null,null,null,"купить","для охоты и наблюдения","| Скидка, купить, цена","по минимальной цене. Сравнить характеристики, скачать инструкцию и отзывы на сайте tulon.ru. Скидка и доставка бесплатно каждому покупателю!",null,"купить, описание, каталог, цена, доставка, акция, распродажа, опт, тепловизор",{"$f":"TRIM(CONCATENATE(A5,\" \",GQ5))","v":"Наименование элемента 1 | Скидка, купить, цена"},{"$f":"TRIM(IF(GN5>0,CONCATENATE(A5,\" \",GO5,\" \",GR5),CONCATENATE(A5,\" \",GO5,\" \",GP5,\" \",GR5)))","v":"Наименование элемента 1 купить для охоты и наблюдения по минимальной цене. Сравнить характеристики, скачать инструкцию и отзывы на сайте tulon.ru. Скидка и доставка бесплатно каждому покупателю!"},{"$f":"TRIM(CONCATENATE(IF(GS5>0,GS5,\"\"),IF(GS5>0,IF(GT5>0,CONCATENATE(\", \",GT5),\"\"),IF(GT5>0,GT5,\"\"))))","v":"купить, описание, каталог, цена, доставка, акция, распродажа, опт, тепловизор"},{"$f":"TRIM(IF(GN5>0,CONCATENATE(A5,\" \",GP5,\" \",GR5),CONCATENATE(A5,\" \",GP5,\" \",GR5)))","v":"Наименование элемента 1 для охоты и наблюдения по минимальной цене. Сравнить характеристики, скачать инструкцию и отзывы на сайте tulon.ru. Скидка и доставка бесплатно каждому покупателю!"},{"$f":"IF(GU5=\"\",\"\",LEN(GU5))","v":46},{"$f":"IF(GV5=\"\",\"\",LEN(GV5))","v":194},null,null,269900,null,1,"RUB",{"$f":"IF(HC5*HE5<=0,\"-\",HC5*HE5)","v":269900},{"$f":"HG5-F5","v":0}]
["Наименование элемента 2","Категория 1 уровня 2","Категория 2 уровня 2","Категория 3 уровня 2","RUB",239900,10,null,"Y",null,null,"Pulsar","Беларусь","Литва",null,null,4873,null,"х",null,77404,"Монокуляр тепловизионный",null,null,null,null,1350,1434,1434.1518591485831,16.293977639555184,null,"ULIS (Франция)","α‐Si","640х480",17,null,"0,05°C",50,"Цветной","Механический шторки",null,null,null,null,null,null,null,null,null,null,null,null,null,null,null,null,null,null,null,null,null,null,null,null,null,"38 мм f/1.2","1,9х","8х",16.3,3,"Ручная",null,"Да",null,null,"AMOLED","640х480",null,null,null,"Да","Да",null,"Да","USB/Wi-Fi","По Wi-Fi на приложение Android/iOS","Wi-Fi приложение Android/iOS","Да",null,null,null,null,null,null,"Дальномерная шкала",null,null,null,null,null,null,null,null,null,null,null,null,"Через приложение на смартфоне","Да",null,null,null,null,null,null,null,null,null,null,null,null,null,null,null,null,null,null,4,"Да",8,"Да",210,50,55,450,"от -25 до +50°C","IPX7",null,"Нет","Русский","36 мес.",null,null,null,null,null,null,null,null,null,null,null,null,null,null,null,null,null,null,"18.07.2018 23:00:00",null,null,null,null,null,null,null,null,null,"Все товары/Электроника/Оптические приборы/Приборы ночного видения","На этот товар СКИДКА или ПОДАРОК, звони!",null,null,null,null,"/upload/imgs/tulon_foto_anons/teploviz_Ohota_ruchnie/pulsar/Pulsar_Helion_XP38_1.jpg","/upload/imgs/tulon_foto_anons/teploviz_Ohota_ruchnie/pulsar/Pulsar_Helion_XP38_1.jpg","/upload/imgs/tulon_foto_anons/teploviz_Ohota_ruchnie/pulsar/Pulsar_Helion_XP38_2.jpg;/upload/imgs/tulon_foto_anons/teploviz_Ohota_ruchnie/pulsar/Pulsar_Helion_XP38_3.jpg;/upload/imgs/tulon_foto_anons/teploviz_Ohota_ruchnie/pulsar/Pulsar_Helion_XP38_4.jpg;/upload/imgs/tulon_foto_anons/teploviz_Ohota_ruchnie/pulsar/Pulsar_Helion_XP38_5.jpg;/upload/imgs/tulon_foto_anons/teploviz_Ohota_ruchnie/pulsar/Pulsar_Helion_XP38_6.jpg;/upload/imgs/tulon_foto_anons/teploviz_Ohota_ruchnie/pulsar/Pulsar_Helion_XP38_7.jpg;/upload/imgs/tulon_foto_anons/teploviz_Ohota_ruchnie/pulsar/Pulsar_Helion_XP38_8.jpg;/upload/imgs/tulon_foto_anons/teploviz_Ohota_ruchnie/pulsar/Pulsar_Helion_XP38_9.jpg;/upload/imgs/tulon_foto_anons/teploviz_Ohota_ruchnie/pulsar/Pulsar_Helion_11.jpg","/upload/imgs/tulon_op_tovara/teplovizor_ohota/pulsar/op_Teplovizor_Pulsar_Helion_XP38.html","https://www.youtube.com/embed/P4PTIRcP41Y;https://www.youtube.com/embed/OnwufFGli9Q;https://www.youtube.com/embed/vWX0lgOBnDI","/upload/imgs/tulon_op_tovara/teplovizor_ohota/pulsar/Инструкция пользователя Pulsar HELION.pdf;/upload/imgs/tulon_op_tovara/teploviz_prisel_i_nasadki/pulsar/Инструкция пользователя приложение Stream Vision (iOS).pdf;/upload/imgs/tulon_op_tovara/teploviz_prisel_i_nasadki/pulsar/Инструкция пользователя приложение Stream Vision (Android).pdf",null,"Тепловизионный монокуляр Pulsar Helion XP38 | Скидка, купить, цена","Тепловизионный монокуляр Pulsar Helion XP38 купить для охоты и наблюдения по минимальной цене. Сравнить характеристики, скачать инструкцию и отзывы на сайте tulon.ru. Скидка и доставка бесплатно каждому покупателю!","купить, описание, каталог, цена, доставка, акция, распродажа, опт, тепловизор","Тепловизионный монокуляр Pulsar Helion XP38 для охоты и наблюдения по минимальной цене. Сравнить характеристики, скачать инструкцию и отзывы на сайте tulon.ru. Скидка и доставка бесплатно каждому покупателю!","пульсар,хелион,xp 38,хп38,хп 38","Тепловизионный монокуляр Pulsar Helion XP38","Тепловизионный монокуляр Pulsar Helion XP38","Тепловизионный монокуляр Pulsar Helion XP38","Тепловизионный монокуляр Pulsar Helion XP38","Тепловизионный монокуляр Pulsar Helion XP38","Тепловизионный монокуляр Pulsar Helion XP38",null,null,null,"купить","для охоты и наблюдения","| Скидка, купить, цена","по минимальной цене. Сравнить характеристики, скачать инструкцию и отзывы на сайте tulon.ru. Скидка и доставка бесплатно каждому покупателю!",null,"купить, описание, каталог, цена, доставка, акция, распродажа, опт, тепловизор","Наименование элемента 2 | Скидка, купить, цена","Наименование элемента 2 купить для охоты и наблюдения по минимальной цене. Сравнить характеристики, скачать инструкцию и отзывы на сайте tulon.ru. Скидка и доставка бесплатно каждому покупателю!","купить, описание, каталог, цена, доставка, акция, распродажа, опт, тепловизор","Наименование элемента 2 для охоты и наблюдения по минимальной цене. Сравнить характеристики, скачать инструкцию и отзывы на сайте tulon.ru. Скидка и доставка бесплатно каждому покупателю!",46,194,null,null,239900,null,1,"RUB",{"$f":"IF(HC6*HE6<=0,\"-\",HC6*HE6)","v":239900},0]
["Наименование элемента 3","Категория 1 уровня 3","Категория 2 уровня 3","Категория 3 уровня 3","RUB",209900,10,null,"Y",null,null,"Pulsar","Беларусь","Литва",null,null,4874,null,"х",null,77403,"Монокуляр тепловизионный",null,null,null,null,1000,1063,1062.5760479558485,21.989554698584271,null,"ULIS (Франция)","α‐Si","640х480",17,null,"0,05°C",50,"Цветной","Механический шторки",null,null,null,null,null,null,null,null,null,null,null,null,null,null,null,null,null,null,null,null,null,null,null,null,null,"28 мм f/1.2","1,4х","8х",22,3,"Ручная",null,"Да",null,null,"AMOLED","640х480",null,null,null,"Да","Да",null,"Да","USB/Wi-Fi","По Wi-Fi на приложение Android/iOS","Wi-Fi приложение Android/iOS","Да",null,null,null,null,null,null,"Дальномерная шкала",null,null,null,null,null,null,null,null,null,null,null,null,"Через приложение на смартфоне","Да",null,null,null,null,null,null,null,null,null,null,null,null,null,null,null,null,null,null,4,"Да",8,"Да",200,50,55,400,"от -25 до +50°C","IPX7",null,"Нет","Русский","36 мес.",null,null,null,null,null,null,null,null,null,null,null,null,null,null,null,null,null,null,null,null,null,null,null,null,null,null,null,null,"Все товары/Электроника/Оптические приборы/Приборы ночного видения","На этот товар СКИДКА или ПОДАРОК, звони!",null,null,null,null,"/upload/imgs/tulon_foto_anons/teploviz_Ohota_ruchnie/pulsar/Pulsar_Helion_XP28_1.jpg","/upload/imgs/tulon_foto_anons/teploviz_Ohota_ruchnie/pulsar/Pulsar_Helion_XP28_1.jpg","/upload/imgs/tulon_foto_anons/teploviz_Ohota_ruchnie/pulsar/Pulsar_Helion_XP28_2.jpg;/upload/imgs/tulon_foto_anons/teploviz_Ohota_ruchnie/pulsar/Pulsar_Helion_XP28_3.jpg;/upload/imgs/tulon_foto_anons/teploviz_Ohota_ruchnie/pulsar/Pulsar_Helion_XP28_4.jpg;/upload/imgs/tulon_foto_anons/teploviz_Ohota_ruchnie/pulsar/Pulsar_Helion_XP28_5.jpg;/upload/imgs/tulon_foto_anons/teploviz_Ohota_ruchnie/pulsar/Pulsar_Helion_XP28_6.jpg;/upload/imgs/tulon_foto_anons/teploviz_Ohota_ruchnie/pulsar/Pulsar_Helion_XP28_7.jpg;/upload/imgs/tulon_foto_anons/teploviz_Ohota_ruchnie/pulsar/Pulsar_Helion_9.jpg;/upload/imgs/tulon_foto_anons/teploviz_Ohota_ruchnie/pulsar/Pulsar_Helion_10.jpg","/upload/imgs/tulon_op_tovara/teplovizor_ohota/pulsar/op_Teplovizor_Pulsar_Helion_XP28.html","https://www.youtube.com/embed/P4PTIRcP41Y;https://www.youtube.com/embed/OnwufFGli9Q;https://www.youtube.com/embed/vWX0lgOBnDI","/upload/imgs/tulon_op_tovara/teplovizor_ohota/pulsar/Инструкция пользователя Pulsar HELION.pdf;/upload/imgs/tulon_op_tovara/teploviz_prisel_i_nasadki/pulsar/Инструкция пользователя приложение Stream Vision (iOS).pdf;/upload/imgs/tulon_op_tovara/teploviz_prisel_i_nasadki/pulsar/Инструкция пользователя приложение Stream Vision (Android).pdf",null,"Тепловизионный монокуляр Pulsar Helion XP28 | Скидка, купить, цена","Тепловизионный монокуляр Pulsar Helion XP28 купить для охоты и наблюдения по минимальной цене. Сравнить характеристики, скачать инструкцию и отзывы на сайте tulon.ru. Скидка и доставка бесплатно каждому покупателю!","купить, описание, каталог, цена, доставка, акция, распродажа, опт, тепловизор","Тепловизионный монокуляр Pulsar Helion XP28 для охоты и наблюдения по минимальной цене. Сравнить характеристики, скачать инструкцию и отзывы на сайте tulon.ru. Скидка и доставка бесплатно каждому покупателю!","пульсар,хелион,xp 28,хп28,хп 28","Тепловизионный монокуляр Pulsar Helion XP28","Тепловизионный монокуляр Pulsar Helion XP28","Тепловизионный монокуляр Pulsar Helion XP28","Тепловизионный монокуляр Pulsar Helion XP28","Тепловизионный монокуляр Pulsar Helion XP28","Тепловизионный монокуляр Pulsar Helion XP28",null,null,null,"купить","для охоты и наблюдения","| Скидка, купить, цена","по минимальной цене. Сравнить характеристики, скачать инструкцию и отзывы на сайте tulon.ru. Скидка и доставка бесплатно каждому покупателю!",null,"купить, описание, каталог, цена, доставка, акция, распродажа, опт, тепловизор","Наименование элемента 3 | Скидка, купить, цена","Наименование элемента 3 купить для охоты и наблюдения по минимальной цене. Сравнить характеристики, скачать инструкцию и отзывы на сайте tulon.ru. Скидка и доставка бесплатно каждому покупателю!","купить, описание, каталог, цена, доставка, акция, распродажа, опт, тепловизор","Наименование элемента 3 для охоты и наблюдения по минимальной цене. Сравнить характеристики, скачать инструкцию и отзывы на сайте tulon.ru. Скидка и доставка бесплатно каждому покупателю!",46,194,null,null,209900,null,1,"RUB",{"$f":"IF(HC7*HE7<=0,\"-\",HC7*HE7)","v":209900},0]
["Наименование элемента 4","Категория 1 уровня 4","Категория 2 уровня 4","Категория 3 уровня 4","RUB",189900,10,null,"Y",null,null,"Pulsar","Беларусь","Россия",null,null,4875,null,"х",null,77395,"Монокуляр тепловизионный",null,null,null,null,1800,1870,1870.1341145283711,7.4699380114954099,null,"ULIS (Франция)","α‐Si","384х288",17,null,"0,05°C",50,"Цветной","Механический шторки",null,null,null,null,null,null,null,null,null,null,null,null,null,null,null,null,null,null,null,null,null,null,null,null,null,"50 мм f/1.2","4,1х","4х",7.5,5,"Ручная",null,null,null,null,"AMOLED","640х480",null,null,null,"Да","Да",null,"Да","USB/Wi-Fi","По Wi-Fi на приложение Android/iOS","Wi-Fi приложение Android/iOS","Да",null,null,null,null,null,null,"Дальномерная шкала",null,null,null,null,null,null,null,null,null,null,null,null,"Через приложение на смартфоне","Да",null,null,null,null,null,null,null,null,null,null,null,null,null,null,null,null,null,null,4,"Да",8,"Да",220,50,55,500,"от -25 до +50°C","IPX7",null,"Нет","Русский","36 мес.",null,null,null,null,null,null,null,null,null,null,null,null,null,null,null,null,null,null,null,null,null,null,null,null,null,null,null,null,"Все товары/Электроника/Оптические приборы/Приборы ночного видения","На этот товар СКИДКА или ПОДАРОК, звони!",null,null,null,null,"/upload/imgs/tulon_foto_anons/teploviz_Ohota_ruchnie/pulsar/Pulsar_Helion_XQ50F_1.jpg","/upload/imgs/tulon_foto_anons/teploviz_Ohota_ruchnie/pulsar/Pulsar_Helion_XQ50F_1.jpg","/upload/imgs/tulon_foto_anons/teploviz_Ohota_ruchnie/pulsar/Pulsar_Helion_XQ50F_2.jpg;/upload/imgs/tulon_foto_anons/teploviz_Ohota_ruchnie/pulsar/Pulsar_Helion_XQ50F_3.jpg;/upload/imgs/tulon_foto_anons/teploviz_Ohota_ruchnie/pulsar/Pulsar_Helion_XQ50F_4.jpg;/upload/imgs/tulon_foto_anons/teploviz_Ohota_ruchnie/pulsar/Pulsar_Helion_XQ50F_5.jpg;/upload/imgs/tulon_foto_anons/teploviz_Ohota_ruchnie/pulsar/Pulsar_Helion_XQ50F_6.jpg;/upload/imgs/tulon_foto_anons/teploviz_Ohota_ruchnie/pulsar/Pulsar_Helion_XQ50F_7.jpg;/upload/imgs/tulon_foto_anons/teploviz_Ohota_ruchnie/pulsar/Pulsar_Helion_10.jpg;/upload/imgs/tulon_foto_anons/teploviz_Ohota_ruchnie/pulsar/Pulsar_Helion_11.jpg;/upload/imgs/tulon_foto_anons/teploviz_Ohota_ruchnie/pulsar/Pulsar_Helion_XP38_9.jpg","/upload/imgs/tulon_op_tovara/teplovizor_ohota/pulsar/op_Teplovizor_Pulsar_Helion_XQ50F.html","https://www.youtube.com/embed/P4PTIRcP41Y;https://www.youtube.com/embed/OnwufFGli9Q;https://www.youtube.com/embed/vWX0lgOBnDI","/upload/imgs/tulon_op_tovara/teplovizor_ohota/pulsar/Инструкция пользователя Pulsar HELION.pdf;/upload/imgs/tulon_op_tovara/teploviz_prisel_i_nasadki/pulsar/Инструкция пользователя приложение Stream Vision (iOS).pdf;/upload/imgs/tulon_op_tovara/teploviz_prisel_i_nasadki/pulsar/Инструкция пользователя приложение Stream Vision (Android).pdf",null,"Тепловизионный монокуляр Pulsar Helion XQ50F | Скидка, купить, цена","Тепловизионный монокуляр Pulsar Helion XQ50F купить для охоты и наблюдения по минимальной цене. Сравнить характеристики, скачать инструкцию и отзывы на сайте tulon.ru. Скидка и доставка бесплатно каждому покупателю!","купить, описание, каталог, цена, доставка, акция, распродажа, опт, тепловизор","Тепловизионный монокуляр Pulsar Helion XQ50F для охоты и наблюдения по минимальной цене. Сравнить характеристики, скачать инструкцию и отзывы на сайте tulon.ru. Скидка и доставка бесплатно каждому покупателю!","пульсар,хелион,xq 50f,xq 50 f,хку50ф,хку 50ф,хку 50 ф","Тепловизионный монокуляр Pulsar Helion XQ50F","Тепловизионный монокуляр Pulsar Helion XQ50F","Тепловизионный монокуляр Pulsar Helion XQ50F","Тепловизионный монокуляр Pulsar Helion XQ50F","Тепловизионный монокуляр Pulsar Helion XQ50F","Тепловизионный монокуляр Pulsar Helion XQ50F",null,null,null,"купить","для охоты и наблюдения","| Скидка, купить, цена","по минимальной цене. Сравнить характеристики, скачать инструкцию и отзывы на сайте tulon.ru. Скидка и доставка бесплатно каждому покупателю!",null,"купить, описание, каталог, цена, доставка, акция, распродажа, опт, тепловизор","Наименование элемента 4 | Скидка, купить, цена","Наименование элемента 4 купить для охоты и наблюдения по минимальной цене. Сравнить характеристики, скачать инструкцию и отзывы на сайте tulon.ru. Скидка и доставка бесплатно каждому покупателю!","купить, описание, каталог, цена, доставка, акция, распродажа, опт, тепловизор","Наименование элемента 4 для охоты и наблюдения по минимальной цене. Сравнить характеристики, скачать инструкцию и отзывы на сайте tulon.ru. Скидка и доставка бесплатно каждому покупателю!",46,194,null,null,189900,null,1,"RUB",189900,0]
["Наименование элемента 5","Категория 1 уровня 5","Категория 2 уровня 5","Категория 3 уровня 5","RUB",159900,10,null,"Y",null,null,"Pulsar","Беларусь","Россия",null,null,4876,null,"х",null,77394,"Монокуляр тепловизионный",null,null,null,null,1350,1431,1431.2250179335895,9.8187119549620778,null,"ULIS (Франция)","α‐Si","384х288",17,null,"0,05°C",50,"Цветной","Механический шторки",null,null,null,null,null,null,null,null,null,null,null,null,null,null,null,null,null,null,null,null,null,null,null,null,null,"38 мм f/1.2","3,1х","4х",9.8000000000000007,3,"Ручная",null,null,null,null,"AMOLED","640х480",null,null,null,"Да","Да",null,"Да","USB/Wi-Fi","По Wi-Fi на приложение Android/iOS","Wi-Fi приложение Android/iOS","Да",null,null,null,null,null,null,"Дальномерная шкала",null,null,null,null,null,null,null,null,null,null,null,null,"Через приложение на смартфоне","Да",null,null,null,null,null,null,null,null,null,null,null,null,null,null,null,null,null,null,4,"Да",8,"Да",210,50,55,450,"от -25 до +50°C","IPX7",null,"Нет","Русский","36 мес.",null,null,null,null,null,"Y",null,null,null,null,null,null,null,null,null,null,null,null,null,null,null,null,null,null,null,null,null,null,"Все товары/Электроника/Оптические приборы/Приборы ночного видения","На этот товар СКИДКА или ПОДАРОК, звони!",null,null,null,null,"/upload/imgs/tulon_foto_anons/teploviz_Ohota_ruchnie/pulsar/Pulsar_Helion_XQ38F_1.jpg","/upload/imgs/tulon_foto_anons/teploviz_Ohota_ruchnie/pulsar/Pulsar_Helion_XQ38F_1.jpg","/upload/imgs/tulon_foto_anons/teploviz_Ohota_ruchnie/pulsar/Pulsar_Helion_XQ38F_2.jpg;/upload/imgs/tulon_foto_anons/teploviz_Ohota_ruchnie/pulsar/Pulsar_Helion_XQ38F_3.jpg;/upload/imgs/tulon_foto_anons/teploviz_Ohota_ruchnie/pulsar/Pulsar_Helion_XQ38F_4.jpg;/upload/imgs/tulon_foto_anons/teploviz_Ohota_ruchnie/pulsar/Pulsar_Helion_XQ38F_5.jpg;/upload/imgs/tulon_foto_anons/teploviz_Ohota_ruchnie/pulsar/Pulsar_Helion_XQ38F_6.jpg;/upload/imgs/tulon_foto_anons/teploviz_Ohota_ruchnie/pulsar/Pulsar_Helion_10.jpg;/upload/imgs/tulon_foto_anons/teploviz_Ohota_ruchnie/pulsar/Pulsar_Helion_11.jpg;/upload/imgs/tulon_foto_anons/teploviz_Ohota_ruchnie/pulsar/Pulsar_Helion_XP38_9.jpg","/upload/imgs/tulon_op_tovara/teplovizor_ohota/pulsar/op_Teplovizor_Pulsar_Helion_XQ38F.html","https://www.youtube.com/embed/P4PTIRcP41Y;https://www.youtube.com/embed/OnwufFGli9Q;https://www.youtube.com/embed/vWX0lgOBnDI","/upload/imgs/tulon_op_tovara/teplovizor_ohota/pulsar/Инструкция пользователя Pulsar HELION.pdf;/upload/imgs/tulon_op_tovara/teploviz_prisel_i_nasadki/pulsar/Инструкция пользователя приложение Stream Vision (iOS).pdf;/upload/imgs/tulon_op_tovara/teploviz_prisel_i_nasadki/pulsar/Инструкция пользователя приложение Stream Vision (Android).pdf",null,"Тепловизионный монокуляр Pulsar Helion XQ38F | Скидка, купить, цена","Тепловизионный монокуляр Pulsar Helion XQ38F купить для охоты и наблюдения по минимальной цене. Сравнить характеристики, скачать инструкцию и отзывы на сайте tulon.ru. Скидка и доставка бесплатно каждому покупателю!","купить, описание, каталог, цена, доставка, акция, распродажа, опт, тепловизор","Тепловизионный монокуляр Pulsar Helion XQ38F для охоты и наблюдения по минимальной цене. Сравнить характеристики, скачать инструкцию и отзывы на сайте tulon.ru. Скидка и доставка бесплатно каждому покупателю!","пульсар,хелион,xq 38f,xq 38 f,хку38ф,хку 38ф,хку 38 ф","Тепловизионный монокуляр Pulsar Helion XQ38F","Тепловизионный монокуляр Pulsar Helion XQ38F","Тепловизионный монокуляр Pulsar Helion XQ38F","Тепловизионный монокуляр Pulsar Helion XQ38F","Тепловизионный монокуляр Pulsar Helion XQ38F","Тепловизионный монокуляр Pulsar Helion XQ38F",null,null,null,"купить","для охоты и наблюдения","| Скидка, купить, цена","по минимальной цене. Сравнить характеристики, скачать инструкцию и отзывы на сайте tulon.ru. Скидка и доставка бесплатно каждому покупателю!",null,"купить, описание, каталог, цена, доставка, акция, распродажа, опт, тепловизор","Наименование элемента 5 | Скидка, купить, цена","Наименование элемента 5 купить для охоты и наблюдения по минимальной цене. Сравнить характеристики, скачать инструкцию и отзывы на сайте tulon.ru. Скидка и доставка бесплатно каждому покупателю!","купить, описание, каталог, цена, доставка, акция, распродажа, опт, тепловизор","Наименование элемента 5 для охоты и наблюдения по минимальной цене. Сравнить характеристики, скачать инструкцию и отзывы на сайте tulon.ru. Скидка и доставка бесплатно каждому покупателю!",46,194,null,null,159900,null,1,"RUB",159900,0]
["Наименование элемента 6","Категория 1 уровня 6","Категория 2 уровня 6","Категория 3 уровня 6","RUB",129900,10,null,"Y",null,null,"Pulsar","Беларусь","Россия",null,null,6041,null,"х",null,77392,"Монокуляр тепловизионный",null,null,null,null,800,1079,1078.9233786915804,13.29808304211195,null,"ULIS (Франция)","α‐Si","384х288",17,null,"0,05°C",50,"Цветной","Механический шторки",null,null,null,null,null,null,null,null,null,null,null,null,null,null,null,null,null,null,null,null,null,null,null,null,null,"28 мм f/1.2","2,0х","4х",13,5,"Ручная",null,null,null,null,"AMOLED","640х480",null,null,null,"Да","Да",null,"Да","USB/Wi-Fi","По Wi-Fi на приложение Android/iOS","Wi-Fi приложение Android/iOS","Да",null,null,null,null,null,null,"Дальномерная шкала",null,null,null,null,null,null,null,null,null,null,null,null,"Через приложение на смартфоне","Да",null,null,null,null,null,null,null,null,null,null,null,null,null,null,null,null,null,null,4,"Да",8,"Да",200,50,55,400,"от -25 до +50°C","IPX7",null,"Нет","Русский","36 мес.",null,null,null,null,null,null,null,null,null,null,null,null,null,null,null,null,null,null,null,null,null,null,null,null,null,null,null,null,"Все товары/Электроника/Оптические приборы/Приборы ночного видения","На этот товар СКИДКА или ПОДАРОК, звони!",null,null,null,null,"/upload/imgs/tulon_foto_anons/teploviz_Ohota_ruchnie/pulsar/Pulsar_Helion_1.jpg","/upload/imgs/tulon_foto_anons/teploviz_Ohota_ruchnie/pulsar/Pulsar_Helion_1.jpg","/upload/imgs/tulon_foto_anons/teploviz_Ohota_ruchnie/pulsar/Pulsar_Helion_2.jpg;/upload/imgs/tulon_foto_anons/teploviz_Ohota_ruchnie/pulsar/Pulsar_Helion_3.jpg;/upload/imgs/tulon_foto_anons/teploviz_Ohota_ruchnie/pulsar/Pulsar_Helion_4.jpg;/upload/imgs/tulon_foto_anons/teploviz_Ohota_ruchnie/pulsar/Pulsar_Helion_5.jpg;/upload/imgs/tulon_foto_anons/teploviz_Ohota_ruchnie/pulsar/Pulsar_Helion_6.jpg;/upload/imgs/tulon_foto_anons/teploviz_Ohota_ruchnie/pulsar/Pulsar_Helion_7.jpg;/upload/imgs/tulon_foto_anons/teploviz_Ohota_ruchnie/pulsar/Pulsar_Helion_8.jpg;/upload/imgs/tulon_foto_anons/teploviz_Ohota_ruchnie/pulsar/Pulsar_Helion_9.jpg;/upload/imgs/tulon_foto_anons/teploviz_Ohota_ruchnie/pulsar/Pulsar_Helion_10.jpg","/upload/imgs/tulon_op_tovara/teplovizor_ohota/pulsar/op_Teplovizor_Pulsar_Helion_XQ28F.html","https://www.youtube.com/embed/P4PTIRcP41Y;https://www.youtube.com/embed/OnwufFGli9Q;https://www.youtube.com/embed/vWX0lgOBnDI","/upload/imgs/tulon_op_tovara/teplovizor_ohota/pulsar/Инструкция пользователя Pulsar HELION.pdf;/upload/imgs/tulon_op_tovara/teploviz_prisel_i_nasadki/pulsar/Инструкция пользователя приложение Stream Vision (iOS).pdf;/upload/imgs/tulon_op_tovara/teploviz_prisel_i_nasadki/pulsar/Инструкция пользователя приложение Stream Vision (Android).pdf",null,"Тепловизионный монокуляр Pulsar Helion XQ28F | Скидка, купить, цена","Тепловизионный монокуляр Pulsar Helion XQ28F купить для охоты и наблюдения по минимальной цене. Сравнить характеристики, скачать инструкцию и отзывы на сайте tulon.ru. Скидка и доставка бесплатно каждому покупателю!","купить, описание, каталог, цена, доставка, акция, распродажа, опт, тепловизор","Тепловизионный монокуляр Pulsar Helion XQ28F для охоты и наблюдения по минимальной цене. Сравнить характеристики, скачать инструкцию и отзывы на сайте tulon.ru. Скидка и доставка бесплатно каждому покупателю!","пульсар,хелион,xq 28f,xq 28 f,хку28ф,хку 28ф,хку 28 ф","Тепловизионный монокуляр Pulsar Helion XQ28F","Тепловизионный монокуляр Pulsar Helion XQ28F","Тепловизионный монокуляр Pulsar Helion XQ28F","Тепловизионный монокуляр Pulsar Helion XQ28F","Тепловизионный монокуляр Pulsar Helion XQ28F","Тепловизионный монокуляр Pulsar Helion XQ28F",null,null,null,"купить","для охоты и наблюдения","| Скидка, купить, цена","по минимальной цене. Сравнить характеристики, скачать инструкцию и отзывы на сайте tulon.ru. Скидка и доставка бесплатно каждому покупателю!",null,"купить, описание, каталог, цена, доставка, акция, распродажа, опт, тепловизор","Наименование элемента 6 | Скидка, купить, цена","Наименование элемента 6 купить для охоты и наблюдения по минимальной цене. Сравнить характеристики, скачать инструкцию и отзывы на сайте tulon.ru. Скидка и доставка бесплатно каждому покупателю!","купить, описание, каталог, цена, доставка, акция, распродажа, опт, тепловизор","Наименование элемента 6 для охоты и наблюдения по минимальной цене. Сравнить характеристики, скачать инструкцию и отзывы на сайте tulon.ru. Скидка и доставка бесплатно каждому покупателю!",46,194,null,null,129900,null,1,"RUB",129900,0]
["Наименование элемента 7","Категория 1 уровня 7","Категория 2 уровня 7","Категория 3 уровня 7","RUB",119000,10,null,"Y",null,null,"Pulsar","Беларусь","Литва",null,null,4877,null,"х",null,77391,"Монокуляр тепловизионный",null,null,null,null,700,719,719.28206644744625,19.495330365747673,null,"ULIS (Франция)","α‐Si","384х288",17,null,"0,05°C",50,"Цветной","Механический шторки",null,null,null,null,null,null,null,null,null,null,null,null,null,null,null,null,null,null,null,null,null,null,null,null,null,"19 мм f/1.2","1,6х","4х",19.5,5,"Ручная",null,null,null,null,"AMOLED","640х480",null,null,null,"Да","Да",null,"Да","USB/Wi-Fi","По Wi-Fi на приложение Android/iOS","Wi-Fi приложение Android/iOS","Да",null,null,null,null,null,null,"Дальномерная шкала",null,null,null,null,null,null,null,null,null,null,null,null,"Через приложение на смартфоне","Да",null,null,null,null,null,null,null,null,null,null,null,null,null,null,null,null,null,null,4,"Да",8,"Да",200,50,55,400,"от -25 до +50°C","IPX7",null,"Нет","Русский","36 мес.",null,null,null,null,null,null,null,null,null,null,null,null,null,null,null,null,null,null,null,null,null,null,null,null,null,null,null,null,"Все товары/Электроника/Оптические приборы/Приборы ночного видения","На этот товар СКИДКА или ПОДАРОК, звони!",null,null,null,null,"/upload/imgs/tulon_foto_anons/teploviz_Ohota_ruchnie/pulsar/Pulsar_Helion_1.jpg","/upload/imgs/tulon_foto_anons/teploviz_Ohota_ruchnie/pulsar/Pulsar_Helion_1.jpg","/upload/imgs/tulon_foto_anons/teploviz_Ohota_ruchnie/pulsar/Pulsar_Helion_2.jpg;/upload/imgs/tulon_foto_anons/teploviz_Ohota_ruchnie/pulsar/Pulsar_Helion_3.jpg;/upload/imgs/tulon_foto_anons/teploviz_Ohota_ruchnie/pulsar/Pulsar_Helion_4.jpg;/upload/imgs/tulon_foto_anons/teploviz_Ohota_ruchnie/pulsar/Pulsar_Helion_5.jpg;/upload/imgs/tulon_foto_anons/teploviz_Ohota_ruchnie/pulsar/Pulsar_Helion_6.jpg;/upload/imgs/tulon_foto_anons/teploviz_Ohota_ruchnie/pulsar/Pulsar_Helion_7.jpg;/upload/imgs/tulon_foto_anons/teploviz_Ohota_ruchnie/pulsar/Pulsar_Helion_8.jpg;/upload/imgs/tulon_foto_anons/teploviz_Ohota_ruchnie/pulsar/Pulsar_Helion_9.jpg;/upload/imgs/tulon_foto_anons/teploviz_Ohota_ruchnie/pulsar/Pulsar_Helion_10.jpg","/upload/imgs/tulon_op_tovara/teplovizor_ohota/pulsar/op_Teplovizor_Pulsar_Helion_XQ19F.html","https://www.youtube.com/embed/P4PTIRcP41Y;https://www.youtube.com/embed/OnwufFGli9Q;https://www.youtube.com/embed/vWX0lgOBnDI","/upload/imgs/tulon_op_tovara/teplovizor_ohota/pulsar/Инструкция пользователя Pulsar HELION.pdf;/upload/imgs/tulon_op_tovara/teploviz_prisel_i_nasadki/pulsar/Инструкция пользователя приложение Stream Vision (iOS).pdf;/upload/imgs/tulon_op_tovara/teploviz_prisel_i_nasadki/pulsar/Инструкция пользователя приложение Stream Vision (Android).pdf",null,"Тепловизионный монокуляр Pulsar Helion XQ19F | Скидка, купить, цена","Тепловизионный монокуляр Pulsar Helion XQ19F купить для охоты и наблюдения по минимальной цене. Сравнить характеристики, скачать инструкцию и отзывы на сайте tulon.ru. Скидка и доставка бесплатно каждому покупателю!","купить, описание, каталог, цена, доставка, акция, распродажа, опт, тепловизор","Тепловизионный монокуляр Pulsar Helion XQ19F для охоты и наблюдения по минимальной цене. Сравнить характеристики, скачать инструкцию и отзывы на сайте tulon.ru. Скидка и доставка бесплатно каждому покупателю!","пульсар,хелион,xq 19f,xq 19 f,хку19ф,хку 19ф,хку 19 ф","Тепловизионный монокуляр Pulsar Helion XQ19F","Тепловизионный монокуляр Pulsar Helion XQ19F","Тепловизионный монокуляр Pulsar Helion XQ19F","Тепловизионный монокуляр Pulsar Helion XQ19F","Тепловизионный монокуляр Pulsar Helion XQ19F","Тепловизионный монокуляр Pulsar Helion XQ19F",null,null,null,"купить","для охоты и наблюдения","| Скидка, купить, цена","по минимальной цене. Сравнить характеристики, скачать инструкцию и отзывы на сайте tulon.ru. Скидка и доставка бесплатно каждому покупателю!",null,"купить, описание, каталог, цена, доставка, акция, распродажа, опт, тепловизор","Наименование элемента 7 | Скидка, купить, цена","Наименование элемента 7 купить для охоты и наблюдения по минимальной цене. Сравнить характеристики, скачать инструкцию и отзывы на сайте tulon.ru. Скидка и доставка бесплатно каждому покупателю!","купить, описание, каталог, цена, доставка, акция, распродажа, опт, тепловизор","Наименование элемента 7 для охоты и наблюдения по минимальной цене. Сравнить характеристики, скачать инструкцию и отзывы на сайте tulon.ru. Скидка и доставка бесплатно каждому покупателю!",46,194,null,null,119000,null,1,"RUB",119000,0]
["Наименование элемента 8","Категория 1 уровня 8","Категория 2 уровня 8","Категория 3 уровня 8","RUB",100000,10,null,"Y",null,null,"Pulsar","Беларусь","Литва",null,null,5153,null,"х",null,77337,"Монокуляр тепловизионный",null,null,null,null,800,850,850.06073637198938,16.87810009611291,null,"ULIS (Франция)","α‐Si","384х288",17,null,null,50,"Цветной","Механический шторки",null,null,null,null,null,null,null,null,null,null,null,null,null,null,null,null,null,null,null,null,null,null,null,null,null,"22,5 мм f/1.4","1,8х","4х",16.5,5,"Ручная",null,null,null,null,"AMOLED","640х480",null,null,null,"Приобрести  видеорекордер","Приобрести  видеорекордер",null,"Нет","RCA (разъём)",null,null,null,null,null,null,null,null,null,"Дальномерная шкала",null,null,null,null,null,null,null,null,null,null,null,null,null,null,null,null,null,null,null,null,null,null,null,null,null,null,null,null,null,null,null,null,2,"Да",6.5,"Да",200,86,59,350,"от -25 до +50°C","IPX4",null,"Да","Русский","36 мес.",null,null,null,null,null,null,null,null,null,null,null,null,null,null,null,null,null,null,null,null,null,null,null,null,null,null,null,null,"Все товары/Электроника/Оптические приборы/Приборы ночного видения","На этот товар СКИДКА или ПОДАРОК, звони!",null,null,null,null,"/upload/imgs/tulon_foto_anons/teploviz_Ohota_ruchnie/pulsar/quantum_lite_xq_1.jpg","/upload/imgs/tulon_foto_anons/teploviz_Ohota_ruchnie/pulsar/quantum_lite_xq_1.jpg","/upload/imgs/tulon_foto_anons/teploviz_Ohota_ruchnie/pulsar/quantum_lite_xq_2.jpg;/upload/imgs/tulon_foto_anons/teploviz_Ohota_ruchnie/pulsar/quantum_lite_xq_3.jpg;/upload/imgs/tulon_foto_anons/teploviz_Ohota_ruchnie/pulsar/quantum_lite_xq_4.jpg;/upload/imgs/tulon_foto_anons/teploviz_Ohota_ruchnie/pulsar/quantum_lite_xq_5.jpg","/upload/imgs/tulon_op_tovara/teplovizor_ohota/pulsar/op_Teplovizor_Pulsar_Quantum_Lite_XQ23V.html",null,"/upload/imgs/tulon_op_tovara/teplovizor_ohota/pulsar/Инструкция пользователя Pulsar Quantum Lite XQ.pdf",null,"Тепловизор Pulsar Quantum Lite XQ23V | Скидка, купить, цена","Тепловизор Pulsar Quantum Lite XQ23V купить для охоты и наблюдения по минимальной цене. Сравнить характеристики, скачать инструкцию и отзывы на сайте tulon.ru. Скидка и доставка бесплатно каждому покупателю!","купить, описание, каталог, цена, доставка, акция, распродажа, опт, тепловизор","Тепловизор Pulsar Quantum Lite XQ23V для охоты и наблюдения по минимальной цене. Сравнить характеристики, скачать инструкцию и отзывы на сайте tulon.ru. Скидка и доставка бесплатно каждому покупателю!","пульсар,квантум,квантум лайт,xq 23 v","Тепловизор Pulsar Quantum Lite XQ23V","Тепловизор Pulsar Quantum Lite XQ23V","Тепловизор Pulsar Quantum Lite XQ23V","Тепловизор Pulsar Quantum Lite XQ23V","Тепловизор Pulsar Quantum Lite XQ23V","Тепловизор Pulsar Quantum Lite XQ23V",null,null,null,"купить","для охоты и наблюдения","| Скидка, купить, цена","по минимальной цене. Сравнить характеристики, скачать инструкцию и отзывы на сайте tulon.ru. Скидка и доставка бесплатно каждому покупателю!",null,"купить, описание, каталог, цена, доставка, акция, распродажа, опт, тепловизор","Наименование элемента 8 | Скидка, купить, цена","Наименование элемента 8 купить для охоты и наблюдения по минимальной цене. Сравнить характеристики, скачать инструкцию и отзывы на сайте tulon.ru. Скидка и доставка бесплатно каждому покупателю!","купить, описание, каталог, цена, доставка, акция, распродажа, опт, тепловизор","Наименование элемента 8 для охоты и наблюдения по минимальной цене. Сравнить характеристики, скачать инструкцию и отзывы на сайте tulon.ru. Скидка и доставка бесплатно каждому покупателю!",46,194,null,null,100000,null,1,"RUB",100000,0]
["Наименование элемента 9","Категория 1 уровня 9","Категория 2 уровня 9","Категория 3 уровня 9","RUB",105000,0,null,"Y",null,null,"Pulsar","Беларусь","Литва",null,null,5154,null,"х",null,77338,"Монокуляр тепловизионный",null,null,null,null,900,1131,1131.1293697313508,12.418713427167093,null,"ULIS (Франция)","α‐Si","384х288",17,null,null,50,"Цветной","Механический шторки",null,null,null,null,null,null,null,null,null,null,null,null,null,null,null,null,null,null,null,null,null,null,null,null,null,"30 мм f/1.6","2,5х","4х",12.4,5,"Ручная",null,null,null,null,"AMOLED","640х480",null,null,null,"Приобрести  видеорекордер","Приобрести  видеорекордер",null,"Нет","RCA (разъём)",null,null,null,null,null,null,null,null,null,"Дальномерная шкала",null,null,null,null,null,null,null,null,null,null,null,null,null,null,null,null,null,null,null,null,null,null,null,null,null,null,null,null,null,null,null,null,2,"Да",6.5,"Да",200,86,59,350,"от -25 до +50°C","IPX4",null,"Да","Русский","36 мес.",null,null,null,null,null,null,null,null,null,null,null,null,null,null,null,null,null,null,null,null,null,null,null,null,null,null,null,null,"Все товары/Электроника/Оптические приборы/Приборы ночного видения","На этот товар СКИДКА или ПОДАРОК, звони!",null,null,null,null,"/upload/imgs/tulon_foto_anons/teploviz_Ohota_ruchnie/pulsar/quantum_lite_xq_1.jpg","/upload/imgs/tulon_foto_anons/teploviz_Ohota_ruchnie/pulsar/quantum_lite_xq_1.jpg","/upload/imgs/tulon_foto_anons/teploviz_Ohota_ruchnie/pulsar/quantum_lite_xq_2.jpg;/upload/imgs/tulon_foto_anons/teploviz_Ohota_ruchnie/pulsar/quantum_lite_xq_3.jpg;/upload/imgs/tulon_foto_anons/teploviz_Ohota_ruchnie/pulsar/quantum_lite_xq_4.jpg;/upload/imgs/tulon_foto_anons/teploviz_Ohota_ruchnie/pulsar/quantum_lite_xq_5.jpg","/upload/imgs/tulon_op_tovara/teplovizor_ohota/pulsar/op_Teplovizor_Pulsar_Quantum_Lite_XQ30V.html",null,"/upload/imgs/tulon_op_tovara/teplovizor_ohota/pulsar/Инструкция пользователя Pulsar Quantum Lite XQ.pdf",null,"Тепловизор Pulsar Quantum Lite XQ30V | Скидка, купить, цена","Тепловизор Pulsar Quantum Lite XQ30V купить для охоты и наблюдения по минимальной цене. Сравнить характеристики, скачать инструкцию и отзывы на сайте tulon.ru. Скидка и доставка бесплатно каждому покупателю!","купить, описание, каталог, цена, доставка, акция, распродажа, опт, тепловизор","Тепловизор Pulsar Quantum Lite XQ30V для охоты и наблюдения по минимальной цене. Сравнить характеристики, скачать инструкцию и отзывы на сайте tulon.ru. Скидка и доставка бесплатно каждому покупателю!","пульсар,квантум,квантум лайт,xq 30 v","Тепловизор Pulsar Quantum Lite XQ30V","Тепловизор Pulsar Quantum Lite XQ30V","Тепловизор Pulsar Quantum Lite XQ30V","Тепловизор Pulsar Quantum Lite XQ30V","Тепловизор Pulsar Quantum Lite XQ30V","Тепловизор Pulsar Quantum Lite XQ30V",null,null,null,"купить","для охоты и наблюдения","| Скидка, купить, цена","по минимальной цене. Сравнить характеристики, скачать инструкцию и отзывы на сайте tulon.ru. Скидка и доставка бесплатно каждому покупателю!",null,"купить, описание, каталог, цена, доставка, акция, распродажа, опт, тепловизор","Наименование элемента 9 | Скидка, купить, цена","Наименование элемента 9 купить для охоты и наблюдения по минимальной цене. Сравнить характеристики, скачать инструкцию и отзывы на сайте tulon.ru. Скидка и доставка бесплатно каждому покупателю!","купить, описание, каталог, цена, доставка, акция, распродажа, опт, тепловизор","Наименование элемента 9 для охоты и наблюдения по минимальной цене. Сравнить характеристики, скачать инструкцию и отзывы на сайте tulon.ru. Скидка и доставка бесплатно каждому покупателю!",46,194,null,null,105000,null,1,"RUB",105000,0]
["Наименование элемента 10","Категория 1 уровня 10","Категория 2 уровня 10","Категория 3 уровня 10","RUB",499000,0,null,"Y",null,null,"Pulsar","Беларусь","Литва",null,null,6054,null,"х",null,77414,"Бинокль тепловизионный",null,null,null,null,1800,1885,1885.2158433272052,12.418713427167093,null,"ULIS (Франция)","α‐Si","640х480",17,null,"0,05°C",50,"Цветной","Механический шторки",null,null,null,null,null,null,null,null,null,null,null,null,null,null,null,null,null,null,null,null,null,null,null,null,null,"50 мм f/1.2","2,5х","8х",12.4,3,"Ручная",null,null,null,null,"AMOLED","640х480",null,null,null,"Да","Да",null,"Да","USB/Wi-Fi",null,"Да","Да",null,null,null,null,null,null,"Дальномерная шкала",null,null,null,null,null,null,null,null,null,null,null,null,null,null,null,null,null,null,null,null,null,null,null,null,null,null,null,null,null,null,null,null,4,"Да",8,"Да",164,130,64,600,"от -25 до +50°C","IPX7",null,"Нет","Русский","36 мес.",null,null,null,null,null,null,null,null,null,null,null,null,null,null,null,null,null,null,null,null,null,null,null,null,null,null,null,null,"Все товары/Электроника/Оптические приборы/Приборы ночного видения","На этот товар СКИДКА или ПОДАРОК, звони!",null,null,null,null,"/upload/imgs/tulon_foto_anons/teploviz_Ohota_ruchnie/pulsar/Teploviz_binokl_Pulsar_Accolade_1.jpg","/upload/imgs/tulon_foto_anons/teploviz_Ohota_ruchnie/pulsar/Teploviz_binokl_Pulsar_Accolade_1.jpg","/upload/imgs/tulon_foto_anons/teploviz_Ohota_ruchnie/pulsar/Teploviz_binokl_Pulsar_Accolade_2.jpg;/upload/imgs/tulon_foto_anons/teploviz_Ohota_ruchnie/pulsar/Teploviz_binokl_Pulsar_Accolade_3.jpg;/upload/imgs/tulon_foto_anons/teploviz_Ohota_ruchnie/pulsar/Teploviz_binokl_Pulsar_Accolade_4.jpg;/upload/imgs/tulon_foto_anons/teploviz_Ohota_ruchnie/pulsar/Teploviz_binokl_Pulsar_Accolade_5.jpg","/upload/imgs/tulon_op_tovara/teplovizor_ohota/pulsar/op_Teploviz_binokl_Pulsar_Accolade_XP50.html","https://www.youtube.com/embed/ENMD0cJrKCM;https://www.youtube.com/embed/vWX0lgOBnDI","/upload/imgs/tulon_op_tovara/teplovizor_ohota/pulsar/Инструкция пользователя Pulsar Accolade XQ-XP.pdf;/upload/imgs/tulon_op_tovara/teploviz_prisel_i_nasadki/pulsar/Инструкция пользователя приложение Stream Vision (iOS).pdf;/upload/imgs/tulon_op_tovara/teploviz_prisel_i_nasadki/pulsar/Инструкция пользователя приложение Stream Vision (Android).pdf",null,"Тепловизионный бинокль Pulsar Accolade XP50 | Скидка, купить, цена","Тепловизионный бинокль Pulsar Accolade XP50 купить для охоты и наблюдения по минимальной цене. Сравнить характеристики, скачать инструкцию и отзывы на сайте tulon.ru. Скидка и доставка бесплатно каждому покупателю!","купить, описание, каталог, цена, доставка, акция, распродажа, опт, тепловизор","Тепловизионный бинокль Pulsar Accolade XP50 для охоты и наблюдения по минимальной цене. Сравнить характеристики, скачать инструкцию и отзывы на сайте tulon.ru. Скидка и доставка бесплатно каждому покупателю!","пульсар,аколэйд,xp 50,хп50,хп 50","Тепловизионный бинокль Pulsar Accolade XP50","Тепловизионный бинокль Pulsar Accolade XP50","Тепловизионный бинокль Pulsar Accolade XP50","Тепловизионный бинокль Pulsar Accolade XP50","Тепловизионный бинокль Pulsar Accolade XP50","Тепловизионный бинокль Pulsar Accolade XP50",null,null,null,"купить","для охоты и наблюдения","| Скидка, купить, цена","по минимальной цене. Сравнить характеристики, скачать инструкцию и отзывы на сайте tulon.ru. Скидка и доставка бесплатно каждому покупателю!",null,"купить, описание, каталог, цена, доставка, акция, распродажа, опт, тепловизор","Наименование элемента 10 | Скидка, купить, цена","Наименование элемента 10 купить для охоты и наблюдения по минимальной цене. Сравнить характеристики, скачать инструкцию и отзывы на сайте tulon.ru. Скидка и доставка бесплатно каждому покупателю!","купить, описание, каталог, цена, доставка, акция, распродажа, опт, тепловизор","Наименование элемента 10 для охоты и наблюдения по минимальной цене. Сравнить характеристики, скачать инструкцию и отзывы на сайте tulon.ru. Скидка и доставка бесплатно каждому покупателю!",47,195,null,null,499000,null,1,"RUB",499000,0]
["Наименование элемента 11","Категория 1 уровня 11","Категория 2 уровня 11","Категория 3 уровня 11","RUB","-",0,null,"Y",null,null,"Pulsar","Беларусь","Литва",null,null,6625,null,"х",null,77413,"Бинокль тепловизионный",null,null,null,null,1350,1885,{"$f":"(1.7/2)/TAN(RADIANS(IF(BQ15>0,BQ15,((2*ATAN(0.5*((LEFT(AH15,3))*AI15*0.001)/(LEFT(BN15,3))))/PI()*180))/RIGHT(AH15,3)))","v":1434.1518591485831},{"$f":"(2*ATAN(0.5*((LEFT(AH15,3))*AI15*0.001)/(LEFT(BN15,3))))/PI()*180","v":16.293977639555184},null,"ULIS (Франция)","α‐Si","640х480",17,null,"0,05°C",50,"Цветной","Механический шторки",null,null,null,null,null,null,null,null,null,null,null,null,null,null,null,null,null,null,null,null,null,null,null,null,null,"38 мм f/1.2","3,1х","8х",16.3,3,"Ручная",null,null,null,null,"AMOLED","640х480",null,null,null,"Да","Да",null,"Да","USB/Wi-Fi",null,"Да","Да",null,null,null,null,null,null,"Дальномерная шкала",null,null,null,null,null,null,null,null,null,null,null,null,null,null,null,null,null,null,null,null,null,null,null,null,null,null,null,null,null,null,null,null,4,"Да",8,"Да",164,130,64,600,"от -25 до +50°C","IPX7",null,"Нет","Русский","36 мес.",null,null,null,null,null,null,null,null,null,null,null,null,null,null,null,null,null,null,null,null,null,null,null,null,null,null,null,null,"Все товары/Электроника/Оптические приборы/Приборы ночного видения","На этот товар СКИДКА или ПОДАРОК, звони!",null,null,null,null,"/upload/imgs/tulon_foto_anons/teploviz_Ohota_ruchnie/pulsar/Teploviz_binokl_Pulsar_Accolade_1.jpg","/upload/imgs/tulon_foto_anons/teploviz_Ohota_ruchnie/pulsar/Teploviz_binokl_Pulsar_Accolade_1.jpg","/upload/imgs/tulon_foto_anons/teploviz_Ohota_ruchnie/pulsar/Teploviz_binokl_Pulsar_Accolade_2.jpg;/upload/imgs/tulon_foto_anons/teploviz_Ohota_ruchnie/pulsar/Teploviz_binokl_Pulsar_Accolade_3.jpg;/upload/imgs/tulon_foto_anons/teploviz_Ohota_ruchnie/pulsar/Teploviz_binokl_Pulsar_Accolade_4.jpg;/upload/imgs/tulon_foto_anons/teploviz_Ohota_ruchnie/pulsar/Teploviz_binokl_Pulsar_Accolade_5.jpg","/upload/imgs/tulon_op_tovara/teplovizor_ohota/pulsar/op_Teploviz_binokl_Pulsar_Accolade_XP38.html","https://www.youtube.com/embed/ENMD0cJrKCM;https://www.youtube.com/embed/vWX0lgOBnDI","/upload/imgs/tulon_op_tovara/teplovizor_ohota/pulsar/Инструкция пользователя Pulsar Accolade XQ-XP.pdf;/upload/imgs/tulon_op_tovara/teploviz_prisel_i_nasadki/pulsar/Инструкция пользователя приложение Stream Vision (iOS).pdf;/upload/imgs/tulon_op_tovara/teploviz_prisel_i_nasadki/pulsar/Инструкция пользователя приложение Stream Vision (Android).pdf",null,"Тепловизионный бинокль Pulsar Accolade XP38 | Скидка, купить, цена","Тепловизионный бинокль Pulsar Accolade XP38 купить для охоты и наблюдения по минимальной цене. Сравнить характеристики, скачать инструкцию и отзывы на сайте tulon.ru. Скидка и доставка бесплатно каждому покупателю!","купить, описание, каталог, цена, доставка, акция, распродажа, опт, тепловизор","Тепловизионный бинокль Pulsar Accolade XP38 для охоты и наблюдения по минимальной цене. Сравнить характеристики, скачать инструкцию и отзывы на сайте tulon.ru. Скидка и доставка бесплатно каждому покупателю!","пульсар,аколэйд,xp 38,хп38,хп 38","Тепловизионный бинокль Pulsar Accolade XP38","Тепловизионный бинокль Pulsar Accolade XP38","Тепловизионный бинокль Pulsar Accolade XP38","Тепловизионный бинокль Pulsar Accolade XP38","Тепловизионный бинокль Pulsar Accolade XP38","Тепловизионный бинокль Pulsar Accolade XP38",null,null,null,"купить","для охоты и наблюдения","| Скидка, купить, цена","по минимальной цене. Сравнить характеристики, скачать инструкцию и отзывы на сайте tulon.ru. Скидка и доставка бесплатно каждому покупателю!",null,"купить, описание, каталог, цена, доставка, акция, распродажа, опт, тепловизор","Наименование элемента 11 | Скидка, купить, цена","Наименование элемента 11 купить для охоты и наблюдения по минимальной цене. Сравнить характеристики, скачать инструкцию и отзывы на сайте tulon.ru. Скидка и доставка бесплатно каждому покупателю!","купить, описание, каталог, цена, доставка, акция, распродажа, опт, тепловизор","Наименование элемента 11 для охоты и наблюдения по минимальной цене. Сравнить характеристики, скачать инструкцию и отзывы на сайте tulon.ru. Скидка и доставка бесплатно каждому покупателю!",null,null,null,null,0,null,1,"RUB","-",{"$error":"#VALUE!"}]
["Наименование элемента 12","Категория 1 уровня 12","Категория 2 уровня 12","Категория 3 уровня 12","RUB","-",0,null,"Y",null,null,"Pulsar","Беларусь","Литва",null,null,6626,null,"х",null,77412,"Бинокль тепловизионный",null,null,null,null,1800,1885,{"$f":"(1.7/2)/TAN(RADIANS(IF(BQ16>0,BQ16,((2*ATAN(0.5*((LEFT(AH16,3))*AI16*0.001)/(LEFT(BN16,3))))/PI()*180))/RIGHT(AH16,3)))","v":3116.8903282444976},{"$f":"(2*ATAN(0.5*((LEFT(AH16,3))*AI16*0.001)/(LEFT(BN16,3))))/PI()*180","v":12.418713427167093},null,"ULIS (Франция)","α‐Si","640х480",17,null,"0,05°C",50,"Цветной","Механический шторки",null,null,null,null,null,null,null,null,null,null,null,null,null,null,null,null,null,null,null,null,null,null,null,null,null,"50 мм f/1.2","4,1х","8х",7.5,3,"Ручная",null,null,null,null,"AMOLED","640х480",null,null,null,"Да","Да",null,"Да","USB/Wi-Fi",null,"Да","Да",null,null,null,null,null,null,"Дальномерная шкала",null,null,null,null,null,null,null,null,null,null,null,null,null,null,null,null,null,null,null,null,null,null,null,null,null,null,null,null,null,null,null,null,4,"Да",8,"Да",164,130,64,600,"от -25 до +50°C","IPX7",null,"Нет","Русский","36 мес.",null,null,null,null,null,null,null,null,null,null,null,null,null,null,null,null,null,null,null,null,null,null,null,null,null,null,null,null,"Все товары/Электроника/Оптические приборы/Приборы ночного видения","На этот товар СКИДКА или ПОДАРОК, звони!",null,null,null,null,"/upload/imgs/tulon_foto_anons/teploviz_Ohota_ruchnie/pulsar/Teploviz_binokl_Pulsar_Accolade_1.jpg","/upload/imgs/tulon_foto_anons/teploviz_Ohota_ruchnie/pulsar/Teploviz_binokl_Pulsar_Accolade_1.jpg","/upload/imgs/tulon_foto_anons/teploviz_Ohota_ruchnie/pulsar/Teploviz_binokl_Pulsar_Accolade_2.jpg;/upload/imgs/tulon_foto_anons/teploviz_Ohota_ruchnie/pulsar/Teploviz_binokl_Pulsar_Accolade_3.jpg;/upload/imgs/tulon_foto_anons/teploviz_Ohota_ruchnie/pulsar/Teploviz_binokl_Pulsar_Accolade_4.jpg;/upload/imgs/tulon_foto_anons/teploviz_Ohota_ruchnie/pulsar/Teploviz_binokl_Pulsar_Accolade_5.jpg","/upload/imgs/tulon_op_tovara/teplovizor_ohota/pulsar/op_Teploviz_binokl_Pulsar_Accolade_XQ50.html","https://www.youtube.com/embed/ENMD0cJrKCM;https://www.youtube.com/embed/vWX0lgOBnDI","/upload/imgs/tulon_op_tovara/teplovizor_ohota/pulsar/Инструкция пользователя Pulsar Accolade XQ-XP.pdf;/upload/imgs/tulon_op_tovara/teploviz_prisel_i_nasadki/pulsar/Инструкция пользователя приложение Stream Vision (iOS).pdf;/upload/imgs/tulon_op_tovara/teploviz_prisel_i_nasadki/pulsar/Инструкция пользователя приложение Stream Vision (Android).pdf",null,"Тепловизионный бинокль Pulsar Accolade XQ50 | Скидка, купить, цена","Тепловизионный бинокль Pulsar Accolade XQ50 купить для охоты и наблюдения по минимальной цене. Сравнить характеристики, скачать инструкцию и отзывы на сайте tulon.ru. Скидка и доставка бесплатно каждому покупателю!","купить, описание, каталог, цена, доставка, акция, распродажа, опт, тепловизор","Тепловизионный бинокль Pulsar Accolade XQ50 для охоты и наблюдения по минимальной цене. Сравнить характеристики, скачать инструкцию и отзывы на сайте tulon.ru. Скидка и доставка бесплатно каждому покупателю!","пульсар,аколэйд,xq 50,хку50,хку 50","Тепловизионный бинокль Pulsar Accolade XQ50","Тепловизионный бинокль Pulsar Accolade XQ50","Тепловизионный бинокль Pulsar Accolade XQ50","Тепловизионный бинокль Pulsar Accolade XQ50","Тепловизионный бинокль Pulsar Accolade XQ50","Тепловизионный бинокль Pulsar Accolade XQ50",null,null,null,"купить","для охоты и наблюдения","| Скидка, купить, цена","по минимальной цене. Сравнить характеристики, скачать инструкцию и отзывы на сайте tulon.ru. Скидка и доставка бесплатно каждому покупателю!",null,"купить, описание, каталог, цена, доставка, акция, распродажа, опт, тепловизор","Наименование элемента 12 | Скидка, купить, цена","Наименование элемента 12 купить для охоты и наблюдения по минимальной цене. Сравнить характеристики, скачать инструкцию и отзывы на сайте tulon.ru. Скидка и доставка бесплатно каждому покупателю!","купить, описание, каталог, цена, доставка, акция, распродажа, опт, тепловизор","Наименование элемента 12 для охоты и наблюдения по минимальной цене. Сравнить характеристики, скачать инструкцию и отзывы на сайте tulon.ru. Скидка и доставка бесплатно каждому покупателю!",null,null,null,null,0,null,1,"RUB","-",{"$error":"#VALUE!"}]
["Наименование элемента 13","Категория 1 уровня 13","Категория 2 уровня 13","Категория 3 уровня 13","RUB",359000,0,null,"Y",null,null,"Pulsar","Беларусь","Литва",null,null,6055,null,"х",null,77411,"Бинокль тепловизионный",null,null,null,null,1350,1431,1431.2250179335895,9.8187119549620778,null,"ULIS (Франция)","α‐Si","384х288",17,null,"0,05°C",50,"Цветной","Механический шторки",null,null,null,null,null,null,null,null,null,null,null,null,null,null,null,null,null,null,null,null,null,null,null,null,null,"38 мм f/1.2","3,1х","4х",9.8000000000000007,3,"Ручная",null,null,null,null,"AMOLED","640х480",null,null,null,"Да","Да",null,"Да","USB/Wi-Fi",null,"Да","Да",null,null,null,null,null,null,"Дальномерная шкала",null,null,null,null,null,null,null,null,null,null,null,null,null,null,null,null,null,null,null,null,null,null,null,null,null,null,null,null,null,null,null,null,4,"Да",8,"Да",164,130,64,600,"от -25 до +50°C","IPX7",null,"Нет","Русский","36 мес.",null,null,null,null,null,null,null,null,null,null,null,null,null,null,null,null,null,null,null,null,null,null,null,null,null,null,null,null,"Все товары/Электроника/Оптические приборы/Приборы ночного видения","На этот товар СКИДКА или ПОДАРОК, звони!",null,null,null,null,"/upload/imgs/tulon_foto_anons/teploviz_Ohota_ruchnie/pulsar/Teploviz_binokl_Pulsar_Accolade_1.jpg","/upload/imgs/tulon_foto_anons/teploviz_Ohota_ruchnie/pulsar/Teploviz_binokl_Pulsar_Accolade_1.jpg","/upload/imgs/tulon_foto_anons/teploviz_Ohota_ruchnie/pulsar/Teploviz_binokl_Pulsar_Accolade_2.jpg;/upload/imgs/tulon_foto_anons/teploviz_Ohota_ruchnie/pulsar/Teploviz_binokl_Pulsar_Accolade_3.jpg;/upload/imgs/tulon_foto_anons/teploviz_Ohota_ruchnie/pulsar/Teploviz_binokl_Pulsar_Accolade_4.jpg;/upload/imgs/tulon_foto_anons/teploviz_Ohota_ruchnie/pulsar/Teploviz_binokl_Pulsar_Accolade_5.jpg","/upload/imgs/tulon_op_tovara/teplovizor_ohota/pulsar/op_Teploviz_binokl_Pulsar_Accolade_XQ38.html","https://www.youtube.com/embed/ENMD0cJrKCM;https://www.youtube.com/embed/vWX0lgOBnDI","/upload/imgs/tulon_op_tovara/teplovizor_ohota/pulsar/Инструкция пользователя Pulsar Accolade XQ-XP.pdf;/upload/imgs/tulon_op_tovara/teploviz_prisel_i_nasadki/pulsar/Инструкция пользователя приложение Stream Vision (iOS).pdf;/upload/imgs/tulon_op_tovara/teploviz_prisel_i_nasadki/pulsar/Инструкция пользователя приложение Stream Vision (Android).pdf",null,"Тепловизионный бинокль Pulsar Accolade XQ38 | Скидка, купить, цена","Тепловизионный бинокль Pulsar Accolade XQ38 купить для охоты и наблюдения по минимальной цене. Сравнить характеристики, скачать инструкцию и отзывы на сайте tulon.ru. Скидка и доставка бесплатно каждому покупателю!","купить, описание, каталог, цена, доставка, акция, распродажа, опт, тепловизор","Тепловизионный бинокль Pulsar Accolade XQ38 для охоты и наблюдения по минимальной цене. Сравнить характеристики, скачать инструкцию и отзывы на сайте tulon.ru. Скидка и доставка бесплатно каждому покупателю!","пульсар,аколэйд,xq 38,хку38,хку 38","Тепловизионный бинокль Pulsar Accolade XQ38","Тепловизионный бинокль Pulsar Accolade XQ38","Тепловизионный бинокль Pulsar Accolade XQ38","Тепловизионный бинокль Pulsar Accolade XQ38","Тепловизионный бинокль Pulsar Accolade XQ38","Тепловизионный бинокль Pulsar Accolade XQ38",null,null,null,"купить","для охоты и наблюдения","| Скидка, купить, цена","по минимальной цене. Сравнить характеристики, скачать инструкцию и отзывы на сайте tulon.ru. Скидка и доставка бесплатно каждому покупателю!",null,"купить, описание, каталог, цена, доставка, акция, распродажа, опт, тепловизор","Наименование элемента 13 | Скидка, купить, цена","Наименование элемента 13 купить для охоты и наблюдения по минимальной цене. Сравнить характеристики, скачать инструкцию и отзывы на сайте tulon.ru. Скидка и доставка бесплатно каждому покупателю!","купить, описание, каталог, цена, доставка, акция, распродажа, опт, тепловизор","Наименование элемента 13 для охоты и наблюдения по минимальной цене. Сравнить характеристики, скачать инструкцию и отзывы на сайте tulon.ru. Скидка и доставка бесплатно каждому покупателю!",{"$f":"IF(GU17=\"\",\"\",LEN(GU17))","v":47},{"$f":"IF(GV17=\"\",\"\",LEN(GV17))","v":195},null,null,359000,null,1,"RUB",359000,0]
["Наименование элемента 14","Категория 1 уровня 14","Категория 2 уровня 14","Категория 3 уровня 14","RUB","-",0,null,"Y","Снято с производства",null,"Pulsar","Беларусь","Россия",null,null,2731,null,"х",null,77317,"Монокуляр тепловизионный",null,null,null,null,1250,1275,{"$f":"(1.7/2)/TAN(RADIANS(IF(BQ18>0,BQ18,((2*ATAN(0.5*((LEFT(AH18,3))*AI18*0.001)/(LEFT(BN18,3))))/PI()*180))/RIGHT(AH18,3)))","v":1275.0913406521693},{"$f":"(2*ATAN(0.5*((LEFT(AH18,3))*AI18*0.001)/(LEFT(BN18,3))))/PI()*180","v":10.967180888928878},null,"ULIS (Франция)","α‐Si","384х288",25,null,null,50,"Цветной","Механический шторки",null,null,null,null,null,null,null,null,null,null,null,null,null,null,null,null,null,null,null,null,null,null,null,null,null,"50 мм f/1.2","2,8х","4х",11,5,"Ручная",null,null,null,null,"OLED","640х480",null,null,null,"Приобрести  видеорекордер","Приобрести  видеорекордер",null,"Нет","RCA (разъём)",null,null,null,null,null,null,null,null,null,"Дальномерная шкала",null,null,null,null,null,null,null,null,null,null,null,null,null,null,null,null,null,null,null,null,null,null,null,null,null,null,null,null,null,null,null,null,10,"Да",5,"Да",207,86,59,430,"от -25 до +50°C","IPX4",null,"Да","Русский","36 мес.",null,null,null,null,null,null,null,null,null,null,null,null,null,null,null,null,null,null,null,null,null,null,null,null,null,null,null,null,"Все товары/Электроника/Оптические приборы/Приборы ночного видения","На этот товар СКИДКА или ПОДАРОК, звони!",null,null,null,null,"/upload/imgs/tulon_foto_anons/teploviz_Ohota_ruchnie/pulsar/quantum_xd50s_1.jpg","/upload/imgs/tulon_foto_anons/teploviz_Ohota_ruchnie/pulsar/quantum_xd50s_1.jpg","/upload/imgs/tulon_foto_anons/teploviz_Ohota_ruchnie/pulsar/quantum_xd50s_2.jpg;/upload/imgs/tulon_foto_anons/teploviz_Ohota_ruchnie/pulsar/quantum_xd50s_3.jpg;/upload/imgs/tulon_foto_anons/teploviz_Ohota_ruchnie/pulsar/quantum_xd50s_4.jpg;/upload/imgs/tulon_foto_anons/teploviz_Ohota_ruchnie/pulsar/quantum_xd50s_5.jpg;/upload/imgs/tulon_foto_anons/teploviz_Ohota_ruchnie/pulsar/quantum_xd50s_6.jpg","/upload/imgs/tulon_op_tovara/teplovizor_ohota/pulsar/op_Teplovizor_Pulsar_Quantum_XD50S.html","https://www.youtube.com/embed/VV5A39HmopE;https://www.youtube.com/embed/SYHLiKoiq4g;https://www.youtube.com/embed/QxhHprqXRLQ;https://www.youtube.com/embed/m1NgpDf-_Lo;https://www.youtube.com/embed/Wu737qiMdEo","/upload/imgs/tulon_op_tovara/teplovizor_ohota/pulsar/Инструкция пользователя Pulsar Quantum XD LD серии.pdf",null,"Тепловизор Pulsar Quantum XD50S | Скидка, купить, цена","Тепловизор Pulsar Quantum XD50S купить для охоты и наблюдения по минимальной цене. Сравнить характеристики, скачать инструкцию и отзывы на сайте tulon.ru. Скидка и доставка бесплатно каждому покупателю!","Quantum XD50S, купить Quantum XD50S, Quantum XD50S цена, Pulsar Quantum XD50S, купить Pulsar Quantum XD50S, Pulsar Quantum XD50S цена, купить, описание, каталог, цена, доставка, акция, распродажа, опт, тепловизор","Тепловизор Pulsar Quantum XD50S для охоты и наблюдения по минимальной цене. Сравнить характеристики, скачать инструкцию и отзывы на сайте tulon.ru. Скидка и доставка бесплатно каждому покупателю!","пульсар,квантум,xd 50 s,хд50с,хд 50 с","Тепловизор Pulsar Quantum XD50S","Тепловизор Pulsar Quantum XD50S","Тепловизор Pulsar Quantum XD50S","Тепловизор Pulsar Quantum XD50S","Тепловизор Pulsar Quantum XD50S","Тепловизор Pulsar Quantum XD50S",null,null,null,"купить","для охоты и наблюдения","| Скидка, купить, цена","по минимальной цене. Сравнить характеристики, скачать инструкцию и отзывы на сайте tulon.ru. Скидка и доставка бесплатно каждому покупателю!","Quantum XD50S, купить Quantum XD50S, Quantum XD50S цена, Pulsar Quantum XD50S, купить Pulsar Quantum XD50S, Pulsar Quantum XD50S цена","купить, описание, каталог, цена, доставка, акция, распродажа, опт, тепловизор","Наименование элемента 14 | Скидка, купить, цена","Наименование элемента 14 купить для охоты и наблюдения по минимальной цене. Сравнить характеристики, скачать инструкцию и отзывы на сайте tulon.ru. Скидка и доставка бесплатно каждому покупателю!",{"$f":"TRIM(CONCATENATE(IF(GS18>0,GS18,\"\"),IF(GS18>0,IF(GT18>0,CONCATENATE(\", \",GT18),\"\"),IF(GT18>0,GT18,\"\"))))","v":"Quantum XD50S, купить Quantum XD50S, Quantum XD50S цена, Pulsar Quantum XD50S, купить Pulsar Quantum XD50S, Pulsar Quantum XD50S цена, купить, описание, каталог, цена, доставка, акция, распродажа, опт, тепловизор"},"Наименование элемента 14 для охоты и наблюдения по минимальной цене. Сравнить характеристики, скачать инструкцию и отзывы на сайте tulon.ru. Скидка и доставка бесплатно каждому покупателю!",{"$f":"IF(GU18=\"\",\"\",LEN(GU18))","v":47},{"$f":"IF(GV18=\"\",\"\",LEN(GV18))","v":195},null,null,0,null,1,"RUB",{"$f":"IF(HC18*HE18<=0,\"-\",HC18*HE18)","v":"-"},{"$error":"#VALUE!"}]
["Наименование элемента 15","Категория 1 уровня 15","Категория 2 уровня 15","Категория 3 уровня 15","RUB","-",0,null,"Y","Снято с производства",null,"Pulsar","Беларусь","Россия",null,null,2732,null,"х",null,77316,"Монокуляр тепловизионный",null,null,null,null,950,974,{"$f":"(1.7/2)/TAN(RADIANS(IF(BQ19>0,BQ19,((2*ATAN(0.5*((LEFT(AH19,3))*AI19*0.001)/(LEFT(BN19,3))))/PI()*180))/RIGHT(AH19,3)))","v":974.02800446740946},{"$f":"(2*ATAN(0.5*((LEFT(AH19,3))*AI19*0.001)/(LEFT(BN19,3))))/PI()*180","v":14.398467276735294},null,"ULIS (Франция)","α‐Si","384х288",25,null,null,50,"Цветной","Механический шторки",null,null,null,null,null,null,null,null,null,null,null,null,null,null,null,null,null,null,null,null,null,null,null,null,null,"38 мм f/1.2","2,1х","4х",14.4,5,"Ручная",null,null,null,null,"OLED","640х480",null,null,null,"Приобрести  видеорекордер","Приобрести  видеорекордер",null,"Нет","RCA (разъём)",null,null,null,null,null,null,null,null,null,"Дальномерная шкала",null,null,null,null,null,null,null,null,null,null,null,null,null,null,null,null,null,null,null,null,null,null,null,null,null,null,null,null,null,null,null,null,10,"Да",5,"Да",200,86,59,350,"от -25 до +50°C","IPX4",null,"Да","Русский","36 мес.",null,null,null,null,null,null,null,null,null,null,null,null,null,null,null,null,null,null,null,null,null,null,null,null,null,null,null,null,"Все товары/Электроника/Оптические приборы/Приборы ночного видения","На этот товар СКИДКА или ПОДАРОК, звони!",null,null,null,null,"/upload/imgs/tulon_foto_anons/teploviz_Ohota_ruchnie/pulsar/quantum_xd38s_1.jpg","/upload/imgs/tulon_foto_anons/teploviz_Ohota_ruchnie/pulsar/quantum_xd38s_1.jpg","/upload/imgs/tulon_foto_anons/teploviz_Ohota_ruchnie/pulsar/quantum_xd38s_2.jpg","/upload/imgs/tulon_op_tovara/teplovizor_ohota/pulsar/op_Teplovizor_Pulsar_Quantum_XD38S.html","https://www.youtube.com/embed/VV5A39HmopE;https://www.youtube.com/embed/SYHLiKoiq4g;https://www.youtube.com/embed/QxhHprqXRLQ;https://www.youtube.com/embed/m1NgpDf-_Lo;https://www.youtube.com/embed/Wu737qiMdEo","/upload/imgs/tulon_op_tovara/teplovizor_ohota/pulsar/Инструкция пользователя Pulsar Quantum XD LD серии.pdf",null,"Тепловизор Pulsar Quantum XD38S | Скидка, купить, цена","Тепловизор Pulsar Quantum XD38S купить для охоты и наблюдения по минимальной цене. Сравнить характеристики, скачать инструкцию и отзывы на сайте tulon.ru. Скидка и доставка бесплатно каждому покупателю!","Quantum XD38S, купить Quantum XD38S, Quantum XD38S цена, Pulsar Quantum XD38S, купить Pulsar Quantum XD38S, Pulsar Quantum XD38S цена, купить, описание, каталог, цена, доставка, акция, распродажа, опт, тепловизор","Тепловизор Pulsar Quantum XD38S для охоты и наблюдения по минимальной цене. Сравнить характеристики, скачать инструкцию и отзывы на сайте tulon.ru. Скидка и доставка бесплатно каждому покупателю!","пульсар,квантум,xd 38 s,хд38с,хд 38 с","Тепловизор Pulsar Quantum XD38S","Тепловизор Pulsar Quantum XD38S","Тепловизор Pulsar Quantum XD38S","Тепловизор Pulsar Quantum XD38S","Тепловизор Pulsar Quantum XD38S","Тепловизор Pulsar Quantum XD38S",null,null,null,"купить","для охоты и наблюдения","| Скидка, купить, цена","по минимальной цене. Сравнить характеристики, скачать инструкцию и отзывы на сайте tulon.ru. Скидка и доставка бесплатно каждому покупателю!","Quantum XD38S, купить Quantum XD38S, Quantum XD38S цена, Pulsar Quantum XD38S, купить Pulsar Quantum XD38S, Pulsar Quantum XD38S цена","купить, описание, каталог, цена, доставка, акция, распродажа, опт, тепловизор","Наименование элемента 15 | Скидка, купить, цена","Наименование элемента 15 купить для охоты и наблюдения по минимальной цене. Сравнить характеристики, скачать инструкцию и отзывы на сайте tulon.ru. Скидка и доставка бесплатно каждому покупателю!","Quantum XD38S, купить Quantum XD38S, Quantum XD38S цена, Pulsar Quantum XD38S, купить Pulsar Quantum XD38S, Pulsar Quantum XD38S цена, купить, описание, каталог, цена, доставка, акция, распродажа, опт, тепловизор","Наименование элемента 15 для охоты и наблюдения по минимальной цене. Сравнить характеристики, скачать инструкцию и отзывы на сайте tulon.ru. Скидка и доставка бесплатно каждому покупателю!",{"$f":"IF(GU19=\"\",\"\",LEN(GU19))","v":47},{"$f":"IF(GV19=\"\",\"\",LEN(GV19))","v":195},null,null,0,null,1,"RUB","-",{"$error":"#VALUE!"}]
["Наименование элемента 16","Категория 1 уровня 16","Категория 2 уровня 16","Категория 3 уровня 16","RUB","-",0,null,"Y","Снято с производства",null,"Pulsar","Беларусь","Россия",null,null,2733,null,"х",null,77315,"Монокуляр тепловизионный",null,null,null,null,500,523,523.35800344296888,28.356128829413805,null,"ULIS (Франция)","α‐Si","384х288",25,null,null,50,"Цветной","Механический шторки",null,null,null,null,null,null,null,null,null,null,null,null,null,null,null,null,null,null,null,null,null,null,null,null,null,"19 мм f/1.2","1,1х","4х",26.8,5,"Ручная",null,null,null,null,"OLED","640х480",null,null,null,"Приобрести  видеорекордер","Приобрести  видеорекордер",null,"Нет","RCA (разъём)",null,null,null,null,null,null,null,null,null,"Дальномерная шкала",null,null,null,null,null,null,null,null,null,null,null,null,null,null,null,null,null,null,null,null,null,null,null,null,null,null,null,null,null,null,null,null,10,"Да",5,"Да",180,86,58,320,"от -25 до +50°C","IPX4",null,"Да","Русский","36 мес.",null,null,null,null,null,null,null,null,null,null,null,null,null,null,null,null,null,null,null,null,null,null,null,null,null,null,null,null,"Все товары/Электроника/Оптические приборы/Приборы ночного видения","На этот товар СКИДКА или ПОДАРОК, звони!",null,null,null,null,"/upload/imgs/tulon_foto_anons/teploviz_Ohota_ruchnie/pulsar/quantum_xd19S_1.jpg","/upload/imgs/tulon_foto_anons/teploviz_Ohota_ruchnie/pulsar/quantum_xd19S_1.jpg","/upload/imgs/tulon_foto_anons/teploviz_Ohota_ruchnie/pulsar/quantum_xd19S_2.jpg;/upload/imgs/tulon_foto_anons/teploviz_Ohota_ruchnie/pulsar/quantum_xd19S_3.jpg;/upload/imgs/tulon_foto_anons/teploviz_Ohota_ruchnie/pulsar/quantum_xd19S_4.jpg","/upload/imgs/tulon_op_tovara/teplovizor_ohota/pulsar/op_Teplovizor_Pulsar_Quantum_XD19S.html","https://www.youtube.com/embed/VV5A39HmopE;https://www.youtube.com/embed/SYHLiKoiq4g;https://www.youtube.com/embed/QxhHprqXRLQ;https://www.youtube.com/embed/m1NgpDf-_Lo;https://www.youtube.com/embed/Wu737qiMdEo","/upload/imgs/tulon_op_tovara/teplovizor_ohota/pulsar/Инструкция пользователя Pulsar Quantum XD LD серии.pdf",null,"Тепловизор Pulsar Quantum XD19S | Скидка, купить, цена","Тепловизор Pulsar Quantum XD19S купить для охоты и наблюдения по минимальной цене. Сравнить характеристики, скачать инструкцию и отзывы на сайте tulon.ru. Скидка и доставка бесплатно каждому покупателю!","Quantum XD19S, Quantum XD19S цена, купить Quantum XD19S, Pulsar Quantum XD19S, Pulsar XD19S цена, купить Pulsar XD19S, купить, описание, каталог, цена, доставка, акция, распродажа, опт, тепловизор","Тепловизор Pulsar Quantum XD19S для охоты и наблюдения по минимальной цене. Сравнить характеристики, скачать инструкцию и отзывы на сайте tulon.ru. Скидка и доставка бесплатно каждому покупателю!","пульсар,квантум,xd 19 s,хд19с,хд 19 с","Тепловизор Pulsar Quantum XD19S","Тепловизор Pulsar Quantum XD19S","Тепловизор Pulsar Quantum XD19S","Тепловизор Pulsar Quantum XD19S","Тепловизор Pulsar Quantum XD19S","Тепловизор Pulsar Quantum XD19S",null,null,null,"купить","для охоты и наблюдения","| Скидка, купить, цена","по минимальной цене. Сравнить характеристики, скачать инструкцию и отзывы на сайте tulon.ru. Скидка и доставка бесплатно каждому покупателю!","Quantum XD19S, Quantum XD19S цена, купить Quantum XD19S, Pulsar Quantum XD19S, Pulsar XD19S цена, купить Pulsar XD19S","купить, описание, каталог, цена, доставка, акция, распродажа, опт, тепловизор","Наименование элемента 16 | Скидка, купить, цена","Наименование элемента 16 купить для охоты и наблюдения по минимальной цене. Сравнить характеристики, скачать инструкцию и отзывы на сайте tulon.ru. Скидка и доставка бесплатно каждому покупателю!","Quantum XD19S, Quantum XD19S цена, купить Quantum XD19S, Pulsar Quantum XD19S, Pulsar XD19S цена, купить Pulsar XD19S, купить, описание, каталог, цена, доставка, акция, распродажа, опт, тепловизор","Наименование элемента 16 для охоты и наблюдения по минимальной цене. Сравнить характеристики, скачать инструкцию и отзывы на сайте tulon.ru. Скидка и доставка бесплатно каждому покупателю!",47,195,null,null,0,null,1,"RUB","-",{"$error":"#VALUE!"}]
["Наименование элемента 17","Категория 1 уровня 17","Категория 2 уровня 17","Категория 3 уровня 17","RUB","-",0,null,"Y","Снято с производства",null,"Pulsar","Беларусь","Россия",null,null,2734,null,"х",null,77321,"Монокуляр тепловизионный",null,null,null,null,1250,1275,1275.0913406521693,10.967180888928878,null,"ULIS (Франция)","α‐Si","384х288",25,null,null,30,"Черно-белый","Механический шторки",null,null,null,null,null,null,null,null,null,null,null,null,null,null,null,null,null,null,null,null,null,null,null,null,null,"50 мм f/1.2","2,8х","2х",11,5,"Ручная",null,null,null,null,"OLED","640х480",null,null,null,"Приобрести  видеорекордер","Приобрести  видеорекордер",null,"Нет","RCA (разъём)",null,null,null,null,null,null,null,null,null,null,null,null,null,null,null,null,null,null,null,null,null,null,null,null,null,null,null,null,null,null,null,null,null,null,null,null,null,null,null,null,null,null,10,"Да",5.5,"Да",207,86,59,430,"от -25 до +50°C","IPX4",null,"Да","Русский","36 мес.",null,null,null,null,null,null,null,null,null,null,null,null,null,null,null,null,null,null,null,null,null,null,null,null,null,null,null,null,"Все товары/Электроника/Оптические приборы/Приборы ночного видения","На этот товар СКИДКА или ПОДАРОК, звони!",null,null,null,null,"/upload/imgs/tulon_foto_anons/teploviz_Ohota_ruchnie/pulsar/quantum_hd50s_1.jpg","/upload/imgs/tulon_foto_anons/teploviz_Ohota_ruchnie/pulsar/quantum_hd50s_1.jpg","/upload/imgs/tulon_foto_anons/teploviz_Ohota_ruchnie/pulsar/quantum_hd50s_2.jpg;/upload/imgs/tulon_foto_anons/teploviz_Ohota_ruchnie/pulsar/quantum_hd50s_3.jpg;/upload/imgs/tulon_foto_anons/teploviz_Ohota_ruchnie/pulsar/quantum_hd50s_4.jpg;/upload/imgs/tulon_foto_anons/teploviz_Ohota_ruchnie/pulsar/quantum_hd50s_5.jpg","/upload/imgs/tulon_op_tovara/teplovizor_ohota/pulsar/op_Teplovizor_Pulsar_Quantum_HD50S.html","https://www.youtube.com/embed/SqIOOXDQJK8","/upload/imgs/tulon_op_tovara/teplovizor_ohota/pulsar/Инструкция пользователя Pulsar Quantum  LD HD серии.pdf",null,"Тепловизор Pulsar Quantum HD50S | Скидка, купить, цена","Тепловизор Pulsar Quantum HD50S купить для охоты и наблюдения по минимальной цене. Сравнить характеристики, скачать инструкцию и отзывы на сайте tulon.ru. Скидка и доставка бесплатно каждому покупателю!","pulsar hd50s, pulsar quantum hd50s, тепловизор pulsar quantum hd50s, тепловизор pulsar quantum hd50s купить, pulsar quantum hd50s цена, pulsar hd50s цена, тепловизор pulsar quantum hd50s цена, пульсар квантум hd50s, pulsar hd50s купить, тепловизоры пульсар hd50s, купить, описание, каталог, цена, доставка, акция, распродажа, опт, тепловизор","Тепловизор Pulsar Quantum HD50S для охоты и наблюдения по минимальной цене. Сравнить характеристики, скачать инструкцию и отзывы на сайте tulon.ru. Скидка и доставка бесплатно каждому покупателю!","пульсар,квантум,hd 50 s,хд50с,хд 50 с","Тепловизор Pulsar Quantum HD50S","Тепловизор Pulsar Quantum HD50S","Тепловизор Pulsar Quantum HD50S","Тепловизор Pulsar Quantum HD50S","Тепловизор Pulsar Quantum HD50S","Тепловизор Pulsar Quantum HD50S",null,null,null,"купить","для охоты и наблюдения","| Скидка, купить, цена","по минимальной цене. Сравнить характеристики, скачать инструкцию и отзывы на сайте tulon.ru. Скидка и доставка бесплатно каждому покупателю!","pulsar hd50s, pulsar quantum hd50s, тепловизор pulsar quantum hd50s, тепловизор pulsar quantum hd50s купить, pulsar quantum hd50s цена, pulsar hd50s цена, тепловизор pulsar quantum hd50s цена, пульсар квантум hd50s, pulsar hd50s купить, тепловизоры пульсар hd50s","купить, описание, каталог, цена, доставка, акция, распродажа, опт, тепловизор","Наименование элемента 17 | Скидка, купить, цена","Наименование элемента 17 купить для охоты и наблюдения по минимальной цене. Сравнить характеристики, скачать инструкцию и отзывы на сайте tulon.ru. Скидка и доставка бесплатно каждому покупателю!","pulsar hd50s, pulsar quantum hd50s, тепловизор pulsar quantum hd50s, тепловизор pulsar quantum hd50s купить, pulsar quantum hd50s цена, pulsar hd50s цена, тепловизор pulsar quantum hd50s цена, пульсар квантум hd50s, pulsar hd50s купить, тепловизоры пульсар hd50s, купить, описание, каталог, цена, доставка, акция, распродажа, опт, тепловизор","Наименование элемента 17 для охоты и наблюдения по минимальной цене. Сравнить характеристики, скачать инструкцию и отзывы на сайте tulon.ru. Скидка и доставка бесплатно каждому покупателю!",47,195,null,null,0,null,1,"RUB","-",{"$error":"#VALUE!"}]
["Наименование элемента 18","Категория 1 уровня 18","Категория 2 уровня 18","Категория 3 уровня 18","RUB","-",0,null,"Y","Снято с производства",null,"Pulsar","Беларусь","Россия",null,null,2736,null,"х",null,77311,"Монокуляр тепловизионный",null,null,null,null,950,974,974.02800446740946,14.398467276735294,null,"ULIS (Франция)","α‐Si","384х288",25,null,null,30,"Черно-белый","Механический шторки",null,null,null,null,null,null,null,null,null,null,null,null,null,null,null,null,null,null,null,null,null,null,null,null,null,"38 мм f/1.2","2,1х","2х",14.4,5,"Ручная",null,null,null,null,"OLED","640х480",null,null,null,"Приобрести  видеорекордер","Приобрести  видеорекордер",null,"Нет","RCA (разъём)",null,null,null,null,null,null,null,null,null,null,null,null,null,null,null,null,null,null,null,null,null,null,null,null,null,null,null,null,null,null,null,null,null,null,null,null,null,null,null,null,null,null,10,"Да",5.5,"Да",200,86,59,350,"от -25 до +50°C","IPX4",null,"Да","Русский","36 мес.",null,null,null,null,null,null,null,null,null,null,null,null,null,null,null,null,null,null,null,null,null,null,null,null,null,null,null,null,"Все товары/Электроника/Оптические приборы/Приборы ночного видения","На этот товар СКИДКА или ПОДАРОК, звони!",null,null,null,null,"/upload/imgs/tulon_foto_anons/teploviz_Ohota_ruchnie/pulsar/HD38S.jpg","/upload/imgs/tulon_foto_anons/teploviz_Ohota_ruchnie/pulsar/HD38S.jpg","/upload/imgs/tulon_foto_anons/teploviz_Ohota_ruchnie/quantum/HD38S_1.jpg;/upload/imgs/tulon_foto_anons/teploviz_Ohota_ruchnie/quantum/HD38S_2.jpg;/upload/imgs/tulon_foto_anons/teploviz_Ohota_ruchnie/quantum/HD38S_3.jpg;/upload/imgs/tulon_foto_anons/teploviz_Ohota_ruchnie/quantum/HD38S_4.jpg","/upload/imgs/tulon_op_tovara/teplovizor_ohota/pulsar/op_Teplovizor_Pulsar_Quantum_HD38S.html","https://www.youtube.com/embed/DFmPzhlKnoc","/upload/imgs/tulon_op_tovara/teplovizor_ohota/pulsar/Инструкция пользователя Pulsar Quantum  LD HD серии.pdf",null,"Тепловизор Pulsar Quantum HD38S | Скидка, купить, цена","Тепловизор Pulsar Quantum HD38S купить для охоты и наблюдения по минимальной цене. Сравнить характеристики, скачать инструкцию и отзывы на сайте tulon.ru. Скидка и доставка бесплатно каждому покупателю!","тепловизор pulsar quantum hd38s, pulsar quantum hd38s, pulsar quantum hd38s цена, quantum hd38s, тепловизор pulsar quantum hd38s цена, quantum hd38s цена, купить pulsar quantum hd38s, тепловизор quantum hd38s, тепловизор quantum hd38s купить, пульсар hd38s, тепловизор quantum hd38s цена, купить тепловизор pulsar quantum hd38s, купить, описание, каталог, цена, доставка, акция, распродажа, опт, тепловизор","Тепловизор Pulsar Quantum HD38S для охоты и наблюдения по минимальной цене. Сравнить характеристики, скачать инструкцию и отзывы на сайте tulon.ru. Скидка и доставка бесплатно каждому покупателю!","пульсар,квантум,hd 38 s,хд38с,хд 38 с","Тепловизор Pulsar Quantum HD38S","Тепловизор Pulsar Quantum HD38S","Тепловизор Pulsar Quantum HD38S","Тепловизор Pulsar Quantum HD38S","Тепловизор Pulsar Quantum HD38S","Тепловизор Pulsar Quantum HD38S",null,null,null,"купить","для охоты и наблюдения","| Скидка, купить, цена","по минимальной цене. Сравнить характеристики, скачать инструкцию и отзывы на сайте tulon.ru. Скидка и доставка бесплатно каждому покупателю!","тепловизор pulsar quantum hd38s, pulsar quantum hd38s, pulsar quantum hd38s цена, quantum hd38s, тепловизор pulsar quantum hd38s цена, quantum hd38s цена, купить pulsar quantum hd38s, тепловизор quantum hd38s, тепловизор quantum hd38s купить, пульсар hd38s, тепловизор quantum hd38s цена, купить тепловизор pulsar quantum hd38s","купить, описание, каталог, цена, доставка, акция, распродажа, опт, тепловизор","Наименование элемента 18 | Скидка, купить, цена","Наименование элемента 18 купить для охоты и наблюдения по минимальной цене. Сравнить характеристики, скачать инструкцию и отзывы на сайте tulon.ru. Скидка и доставка бесплатно каждому покупателю!","тепловизор pulsar quantum hd38s, pulsar quantum hd38s, pulsar quantum hd38s цена, quantum hd38s, тепловизор pulsar quantum hd38s цена, quantum hd38s цена, купить pulsar quantum hd38s, тепловизор quantum hd38s, тепловизор quantum hd38s купить, пульсар hd38s, тепловизор quantum hd38s цена, купить тепловизор pulsar quantum hd38s, купить, описание, каталог, цена, доставка, акция, распродажа, опт, тепловизор","Наименование элемента 18 для охоты и наблюдения по минимальной цене. Сравнить характеристики, скачать инструкцию и отзывы на сайте tulon.ru. Скидка и доставка бесплатно каждому покупателю!",47,195,null,null,0,null,1,"RUB","-",{"$error":"#VALUE!"}]
["Наименование элемента 19","Категория 1 уровня 19","Категория 2 уровня 19","Категория 3 уровня 19","RUB","-",0,null,"Y","Снято с производства",null,"Pulsar","Беларусь","Россия",null,null,2738,null,"х",null,77313,"Монокуляр тепловизионный",null,null,null,null,500,523,523.35800344296888,28.356128829413805,null,"ULIS (Франция)","α‐Si","384х288",25,null,null,30,"Черно-белый","Механический шторки",null,null,null,null,null,null,null,null,null,null,null,null,null,null,null,null,null,null,null,null,null,null,null,null,null,"19 мм f/1.2","1,1х","2х",26.8,5,"Ручная",null,null,null,null,"OLED","640х480",null,null,null,"Приобрести  видеорекордер","Приобрести  видеорекордер",null,"Нет","RCA (разъём)",null,null,null,null,null,null,null,null,null,null,null,null,null,null,null,null,null,null,null,null,null,null,null,null,null,null,null,null,null,null,null,null,null,null,null,null,null,null,null,null,null,null,10,"Да",5.5,"Да",180,86,58,320,"от -25 до +50°C","IPX4",null,"Да","Русский","36 мес.",null,null,null,null,null,null,null,null,null,null,null,null,null,null,null,null,null,null,null,null,null,null,null,null,null,null,null,null,"Все товары/Электроника/Оптические приборы/Приборы ночного видения","На этот товар СКИДКА или ПОДАРОК, звони!",null,null,null,null,"/upload/imgs/tulon_foto_anons/teploviz_Ohota_ruchnie/pulsar/HD19S.jpg","/upload/imgs/tulon_foto_anons/teploviz_Ohota_ruchnie/pulsar/HD19S.jpg","/upload/imgs/tulon_foto_anons/teploviz_Ohota_ruchnie/quantum/HD19S_1.jpg;/upload/imgs/tulon_foto_anons/teploviz_Ohota_ruchnie/quantum/HD19S_2.jpg;/upload/imgs/tulon_foto_anons/teploviz_Ohota_ruchnie/quantum/HD19S_3.jpg","/upload/imgs/tulon_op_tovara/teplovizor_ohota/pulsar/op_Teplovizor_Pulsar_Quantum_HD19S.html","https://www.youtube.com/embed/QvytVhUIplw","/upload/imgs/tulon_op_tovara/teplovizor_ohota/pulsar/Инструкция пользователя Pulsar Quantum  LD HD серии.pdf",null,"Тепловизор Pulsar Quantum HD19S | Скидка, купить, цена","Тепловизор Pulsar Quantum HD19S купить для охоты и наблюдения по минимальной цене. Сравнить характеристики, скачать инструкцию и отзывы на сайте tulon.ru. Скидка и доставка бесплатно каждому покупателю!","pulsar quantum hd19s, quantum hd19s, HD19S, тепловизор pulsar quantum hd19s, тепловизор pulsar quantum hd19s купить, pulsar quantum hd19s цена, тепловизор pulsar quantum hd19s цена, тепловизор hd19s купить, pulsar quantum hd19s купить, купить, описание, каталог, цена, доставка, акция, распродажа, опт, тепловизор","Тепловизор Pulsar Quantum HD19S для охоты и наблюдения по минимальной цене. Сравнить характеристики, скачать инструкцию и отзывы на сайте tulon.ru. Скидка и доставка бесплатно каждому покупателю!","пульсар,квантум,hd 19 s,хд19с,хд 19 с","Тепловизор Pulsar Quantum HD19S","Тепловизор Pulsar Quantum HD19S","Тепловизор Pulsar Quantum HD19S","Тепловизор Pulsar Quantum HD19S","Тепловизор Pulsar Quantum HD19S","Тепловизор Pulsar Quantum HD19S",null,null,null,"купить","для охоты и наблюдения","| Скидка, купить, цена","по минимальной цене. Сравнить характеристики, скачать инструкцию и отзывы на сайте tulon.ru. Скидка и доставка бесплатно каждому покупателю!","pulsar quantum hd19s, quantum hd19s, HD19S, тепловизор pulsar quantum hd19s, тепловизор pulsar quantum hd19s купить, pulsar quantum hd19s цена, тепловизор pulsar quantum hd19s цена, тепловизор hd19s купить, pulsar quantum hd19s купить","купить, описание, каталог, цена, доставка, акция, распродажа, опт, тепловизор","Наименование элемента 19 | Скидка, купить, цена","Наименование элемента 19 купить для охоты и наблюдения по минимальной цене. Сравнить характеристики, скачать инструкцию и отзывы на сайте tulon.ru. Скидка и доставка бесплатно каждому покупателю!","pulsar quantum hd19s, quantum hd19s, HD19S, тепловизор pulsar quantum hd19s, тепловизор pulsar quantum hd19s купить, pulsar quantum hd19s цена, тепловизор pulsar quantum hd19s цена, тепловизор hd19s купить, pulsar quantum hd19s купить, купить, описание, каталог, цена, доставка, акция, распродажа, опт, тепловизор","Наименование элемента 19 для охоты и наблюдения по минимальной цене. Сравнить характеристики, скачать инструкцию и отзывы на сайте tulon.ru. Скидка и доставка бесплатно каждому покупателю!",47,195,null,null,0,null,1,"RUB","-",{"$error":"#VALUE!"}]
["Наименование элемента 20","Категория 1 уровня 20","Категория 2 уровня 20","Категория 3 уровня 20","RUB",192000,10,null,"Y","Снято с производства",null,"Pulsar","Беларусь","Литва",null,null,4271,null,"х",null,77333,"Монокуляр тепловизионный",null,null,null,null,1800,1870,1870.1341145283711,7.4699380114954099,null,"ULIS (Франция)","α‐Si","384х288",17,null,null,50,"Цветной","Механический шторки",null,null,null,null,null,null,null,null,null,null,null,null,null,null,null,null,null,null,null,null,null,null,null,null,null,"50 мм f/1.2","4,1х","4х",7.5,7,"Ручная",null,null,null,null,"OLED","640х480",null,null,null,"Приобрести  видеорекордер","Приобрести  видеорекордер",null,"Нет","RCA (разъём)",null,null,null,null,null,null,null,null,null,"Дальномерная шкала",null,null,null,null,null,null,null,null,null,null,null,null,null,null,null,null,null,null,null,null,null,null,null,null,null,null,null,null,null,null,null,null,2,"Да",6.5,"Да",207,86,59,430,"от -25 до +50°C","IPX4",null,"Да","Русский","36 мес.",null,null,null,null,null,null,null,null,null,null,null,null,null,null,null,null,null,null,null,null,null,null,null,null,null,null,null,null,"Все товары/Электроника/Оптические приборы/Приборы ночного видения","На этот товар СКИДКА или ПОДАРОК, звони!",null,null,null,null,"/upload/imgs/tulon_foto_anons/teploviz_Ohota_ruchnie/pulsar/quantum-xq50_1.jpg","/upload/imgs/tulon_foto_anons/teploviz_Ohota_ruchnie/pulsar/quantum-xq50_1.jpg","/upload/imgs/tulon_foto_anons/teploviz_Ohota_ruchnie/pulsar/quantum-xq50_2.jpg;/upload/imgs/tulon_foto_anons/teploviz_Ohota_ruchnie/pulsar/quantum-xq50_3.jpg;/upload/imgs/tulon_foto_anons/teploviz_Ohota_ruchnie/pulsar/quantum-xq50_4.jpg;/upload/imgs/tulon_foto_anons/teploviz_Ohota_ruchnie/pulsar/quantum-xq50_5.jpg","/upload/imgs/tulon_op_tovara/teplovizor_ohota/pulsar/op_Teplovizor_Pulsar_Quantum_XQ50.html","https://www.youtube.com/embed/0OH9hCpBCk0","/upload/imgs/tulon_op_tovara/teplovizor_ohota/pulsar/Инструкция пользователя Pulsar Quantum XQ LQ серии.pdf",null,"Тепловизор Pulsar Quantum XQ50 | Скидка, купить, цена","Тепловизор Pulsar Quantum XQ50 купить для охоты и наблюдения по минимальной цене. Сравнить характеристики, скачать инструкцию и отзывы на сайте tulon.ru. Скидка и доставка бесплатно каждому покупателю!","купить, описание, каталог, цена, доставка, акция, распродажа, опт, тепловизор","Тепловизор Pulsar Quantum XQ50 для охоты и наблюдения по минимальной цене. Сравнить характеристики, скачать инструкцию и отзывы на сайте tulon.ru. Скидка и доставка бесплатно каждому покупателю!","пульсар,квантум,xq 50","Тепловизор Pulsar Quantum XQ50","Тепловизор Pulsar Quantum XQ50","Тепловизор Pulsar Quantum XQ50","Тепловизор Pulsar Quantum XQ50","Тепловизор Pulsar Quantum XQ50","Тепловизор Pulsar Quantum XQ50",null,null,null,"купить","для охоты и наблюдения","| Скидка, купить, цена","по минимальной цене. Сравнить характеристики, скачать инструкцию и отзывы на сайте tulon.ru. Скидка и доставка бесплатно каждому покупателю!",null,"купить, описание, каталог, цена, доставка, акция, распродажа, опт, тепловизор","Наименование элемента 20 | Скидка, купить, цена","Наименование элемента 20 купить для охоты и наблюдения по минимальной цене. Сравнить характеристики, скачать инструкцию и отзывы на сайте tulon.ru. Скидка и доставка бесплатно каждому покупателю!","купить, описание, каталог, цена, доставка, акция, распродажа, опт, тепловизор","Наименование элемента 20 для охоты и наблюдения по минимальной цене. Сравнить характеристики, скачать инструкцию и отзывы на сайте tulon.ru. Скидка и доставка бесплатно каждому покупателю!",47,195,null,null,192000,null,1,"RUB",192000,0]
["Наименование элемента 21","Категория 1 уровня 21","Категория 2 уровня 21","Категория 3 уровня 21","RUB","-",0,null,"Y","Снято с производства",null,"Pulsar","Беларусь","Литва",null,null,4272,null,"х",null,77332,"Монокуляр тепловизионный",null,null,null,null,1350,1431,1431.2250179335895,9.8187119549620778,null,"ULIS (Франция)","α‐Si","384х288",17,null,null,50,"Цветной","Механический шторки",null,null,null,null,null,null,null,null,null,null,null,null,null,null,null,null,null,null,null,null,null,null,null,null,null,"38 мм f/1.2","3,1х","4х",9.8000000000000007,7,"Ручная",null,null,null,null,"OLED","640х480",null,null,null,"Приобрести  видеорекордер","Приобрести  видеорекордер",null,"Нет","RCA (разъём)",null,null,null,null,null,null,null,null,null,"Дальномерная шкала",null,null,null,null,null,null,null,null,null,null,null,null,null,null,null,null,null,null,null,null,null,null,null,null,null,null,null,null,null,null,null,null,2,"Да",6.5,"Да",200,86,59,350,"от -25 до +50°C","IPX4",null,"Да","Русский","36 мес.",null,null,null,null,null,null,null,null,null,null,null,null,null,null,null,null,null,null,null,null,null,null,null,null,null,null,null,null,"Все товары/Электроника/Оптические приборы/Приборы ночного видения","На этот товар СКИДКА или ПОДАРОК, звони!",null,null,null,null,"/upload/imgs/tulon_foto_anons/teploviz_Ohota_ruchnie/pulsar/quantum_xq38_1.jpg","/upload/imgs/tulon_foto_anons/teploviz_Ohota_ruchnie/pulsar/quantum_xq38_1.jpg","/upload/imgs/tulon_foto_anons/teploviz_Ohota_ruchnie/pulsar/quantum_xq38_2.jpg;/upload/imgs/tulon_foto_anons/teploviz_Ohota_ruchnie/pulsar/quantum_xq38_3.jpg;/upload/imgs/tulon_foto_anons/teploviz_Ohota_ruchnie/pulsar/quantum_xq38_4.jpg;/upload/imgs/tulon_foto_anons/teploviz_Ohota_ruchnie/pulsar/quantum_xq38_5.jpg","/upload/imgs/tulon_op_tovara/teplovizor_ohota/pulsar/op_Teplovizor_Pulsar_Quantum_XQ38.html","https://www.youtube.com/embed/0OH9hCpBCk0","/upload/imgs/tulon_op_tovara/teplovizor_ohota/pulsar/Инструкция пользователя Pulsar Quantum XQ LQ серии.pdf",null,"Тепловизор Pulsar Quantum XQ38 | Скидка, купить, цена","Тепловизор Pulsar Quantum XQ38 купить для охоты и наблюдения по минимальной цене. Сравнить характеристики, скачать инструкцию и отзывы на сайте tulon.ru. Скидка и доставка бесплатно каждому покупателю!","купить, описание, каталог, цена, доставка, акция, распродажа, опт, тепловизор","Тепловизор Pulsar Quantum XQ38 для охоты и наблюдения по минимальной цене. Сравнить характеристики, скачать инструкцию и отзывы на сайте tulon.ru. Скидка и доставка бесплатно каждому покупателю!","пульсар,квантум,xq 38","Тепловизор Pulsar Quantum XQ38","Тепловизор Pulsar Quantum XQ38","Тепловизор Pulsar Quantum XQ38","Тепловизор Pulsar Quantum XQ38","Тепловизор Pulsar Quantum XQ38","Тепловизор Pulsar Quantum XQ38",null,null,null,"купить","для охоты и наблюдения","| Скидка, купить, цена","по минимальной цене. Сравнить характеристики, скачать инструкцию и отзывы на сайте tulon.ru. Скидка и доставка бесплатно каждому покупателю!",null,"купить, описание, каталог, цена, доставка, акция, распродажа, опт, тепловизор","Наименование элемента 21 | Скидка, купить, цена","Наименование элемента 21 купить для охоты и наблюдения по минимальной цене. Сравнить характеристики, скачать инструкцию и отзывы на сайте tulon.ru. Скидка и доставка бесплатно каждому покупателю!","купить, описание, каталог, цена, доставка, акция, распродажа, опт, тепловизор","Наименование элемента 21 для охоты и наблюдения по минимальной цене. Сравнить характеристики, скачать инструкцию и отзывы на сайте tulon.ru. Скидка и доставка бесплатно каждому покупателю!",47,195,null,null,0,null,1,"RUB","-",{"$error":"#VALUE!"}]
["Наименование элемента 22","Категория 1 уровня 22","Категория 2 уровня 22","Категория 3 уровня 22","RUB","-",0,null,"Y","Снято с производства",null,"Pulsar","Беларусь","Литва",null,null,4273,null,"х",null,77331,"Монокуляр тепловизионный",null,null,null,null,680,719,719.28206644744625,19.495330365747673,null,"ULIS (Франция)","α‐Si","384х288",17,null,null,50,"Цветной","Механический шторки",null,null,null,null,null,null,null,null,null,null,null,null,null,null,null,null,null,null,null,null,null,null,null,null,null,"19 мм f/1.2","1,6х","4х",19.5,3,"Ручная",null,null,null,null,"OLED","640х480",null,null,null,"Приобрести  видеорекордер","Приобрести  видеорекордер",null,"Нет","RCA (разъём)",null,null,null,null,null,null,null,null,null,"Дальномерная шкала",null,null,null,null,null,null,null,null,null,null,null,null,null,null,null,null,null,null,null,null,null,null,null,null,null,null,null,null,null,null,null,null,2,"Да",6.5,"Да",180,86,58,320,"от -25 до +50°C","IPX4",null,"Да","Русский","36 мес.",null,null,null,null,null,null,null,null,null,null,null,null,null,null,null,null,null,null,null,null,null,null,null,null,null,null,null,null,"Все товары/Электроника/Оптические приборы/Приборы ночного видения","На этот товар СКИДКА или ПОДАРОК, звони!",null,null,null,null,"/upload/imgs/tulon_foto_anons/teploviz_Ohota_ruchnie/pulsar/quantum_xq19_1.jpg","/upload/imgs/tulon_foto_anons/teploviz_Ohota_ruchnie/pulsar/quantum_xq19_1.jpg","/upload/imgs/tulon_foto_anons/teploviz_Ohota_ruchnie/pulsar/quantum_xq19_2.jpg","/upload/imgs/tulon_op_tovara/teplovizor_ohota/pulsar/op_Teplovizor_Pulsar_Quantum_XQ19.html","https://www.youtube.com/embed/0OH9hCpBCk0","/upload/imgs/tulon_op_tovara/teplovizor_ohota/pulsar/Инструкция пользователя Pulsar Quantum XQ LQ серии.pdf",null,"Тепловизор Pulsar Quantum XQ19 | Скидка, купить, цена","Тепловизор Pulsar Quantum XQ19 купить для охоты и наблюдения по минимальной цене. Сравнить характеристики, скачать инструкцию и отзывы на сайте tulon.ru. Скидка и доставка бесплатно каждому покупателю!","купить, описание, каталог, цена, доставка, акция, распродажа, опт, тепловизор","Тепловизор Pulsar Quantum XQ19 для охоты и наблюдения по минимальной цене. Сравнить характеристики, скачать инструкцию и отзывы на сайте tulon.ru. Скидка и доставка бесплатно каждому покупателю!","пульсар,квантум,xq 19","Тепловизор Pulsar Quantum XQ19","Тепловизор Pulsar Quantum XQ19","Тепловизор Pulsar Quantum XQ19","Тепловизор Pulsar Quantum XQ19","Тепловизор Pulsar Quantum XQ19","Тепловизор Pulsar Quantum XQ19",null,null,null,"купить","для охоты и наблюдения","| Скидка, купить, цена","по минимальной цене. Сравнить характеристики, скачать инструкцию и отзывы на сайте tulon.ru. Скидка и доставка бесплатно каждому покупателю!",null,"купить, описание, каталог, цена, доставка, акция, распродажа, опт, тепловизор","Наименование элемента 22 | Скидка, купить, цена","Наименование элемента 22 купить для охоты и наблюдения по минимальной цене. Сравнить характеристики, скачать инструкцию и отзывы на сайте tulon.ru. Скидка и доставка бесплатно каждому покупателю!","купить, описание, каталог, цена, доставка, акция, распродажа, опт, тепловизор","Наименование элемента 22 для охоты и наблюдения по минимальной цене. Сравнить характеристики, скачать инструкцию и отзывы на сайте tulon.ru. Скидка и доставка бесплатно каждому покупателю!",47,195,null,null,0,null,1,"RUB","-",{"$error":"#VALUE!"}]
["Наименование элемента 23","Категория 1 уровня 23","Категория 2 уровня 23","Категория 3 уровня 23","RUB","-",0,null,"Y",null,null,"Flir","США","США",null,null,4169,null,"х",null,null,"Монокуляр тепловизионный",null,null,null,null,1100,1461,1461.042212746944,7.7802488081236447,null,"FLIR (США)","VOx","320х240",17,null,"0,05°C",8.3000000000000007,"Цветной","Механический шторки",null,null,null,null,null,null,null,null,null,null,null,null,null,null,null,null,null,null,null,null,null,null,null,null,null,"40 мм f/1.0","1х","2х",8,null,"Ручная",null,null,null,null,"LCD","640х480",null,null,null,"Приобрести  видеорекордер","Приобрести  видеорекордер",null,"Нет","USB",null,null,null,null,null,null,null,null,null,null,null,null,null,null,null,null,null,null,null,null,null,null,null,null,null,null,null,"Да",null,null,null,null,null,null,null,null,null,null,null,null,null,null,1.5,"Да",5,"Да",172,59,62,340,"от -20 до +50°C","IP67",null,"Нет","Нет","12 мес.",null,null,null,null,null,null,null,null,null,null,null,null,null,null,null,null,null,null,null,null,null,null,null,null,null,null,null,null,"Все товары/Электроника/Оптические приборы/Приборы ночного видения","На этот товар СКИДКА или ПОДАРОК, звони!",null,null,null,null,"/upload/imgs/tulon_foto_anons/teploviz_Ohota_ruchnie/flir/scout-ii-hunter-40_1.jpg","/upload/imgs/tulon_foto_anons/teploviz_Ohota_ruchnie/flir/scout-ii-hunter-40_1.jpg","/upload/imgs/tulon_foto_anons/teploviz_Ohota_ruchnie/flir/scout-ii-hunter-40_2.jpg;/upload/imgs/tulon_foto_anons/teploviz_Ohota_ruchnie/flir/scout-ii-hunter-40_3.jpg","/upload/imgs/tulon_op_tovara/teplovizor_ohota/flir/op_FLIR_Scout-II_Hunter_320(40).html","https://www.youtube.com/embed/gQCfym8HIBg;https://www.youtube.com/embed/Wnne8SkHnsA","/upload/imgs/tulon_op_tovara/teplovizor_ohota/flir/Руководство пользователя Flir Scout II (англ.).pdf;/upload/imgs/tulon_op_tovara/teplovizor_ohota/flir/Брошюра Flir Scout II 240 320 640.pdf",null,"Тепловизор FLIR Scout II Hunter 320(40) | Скидка, купить, цена","Тепловизор FLIR Scout II Hunter 320(40) купить для охоты и наблюдения по минимальной цене. Сравнить характеристики, скачать инструкцию и отзывы на сайте tulon.ru. Скидка и доставка бесплатно каждому покупателю!","купить, описание, каталог, цена, доставка, акция, распродажа, опт, тепловизор","Тепловизор FLIR Scout II Hunter 320(40) для охоты и наблюдения по минимальной цене. Сравнить характеристики, скачать инструкцию и отзывы на сайте tulon.ru. Скидка и доставка бесплатно каждому покупателю!","флир,скаут,хантер,охотник","Тепловизор FLIR Scout II Hunter 320(40)","Тепловизор FLIR Scout II Hunter 320(40)","Тепловизор FLIR Scout II Hunter 320(40)","Тепловизор FLIR Scout II Hunter 320(40)","Тепловизор FLIR Scout II Hunter 320(40)","Тепловизор FLIR Scout II Hunter 320(40)",null,null,null,"купить","для охоты и наблюдения","| Скидка, купить, цена","по минимальной цене. Сравнить характеристики, скачать инструкцию и отзывы на сайте tulon.ru. Скидка и доставка бесплатно каждому покупателю!",null,"купить, описание, каталог, цена, доставка, акция, распродажа, опт, тепловизор","Наименование элемента 23 | Скидка, купить, цена","Наименование элемента 23 купить для охоты и наблюдения по минимальной цене. Сравнить характеристики, скачать инструкцию и отзывы на сайте tulon.ru. Скидка и доставка бесплатно каждому покупателю!","купить, описание, каталог, цена, доставка, акция, распродажа, опт, тепловизор","Наименование элемента 23 для охоты и наблюдения по минимальной цене. Сравнить характеристики, скачать инструкцию и отзывы на сайте tulon.ru. Скидка и доставка бесплатно каждому покупателю!",47,195,null,null,0,null,1,"RUB","-",{"$error":"#VALUE!"}]
["Наименование элемента 24","Категория 1 уровня 24","Категория 2 уровня 24","Категория 3 уровня 24","RUB","-",0,null,"Y",null,null,"Flir","США","США",null,null,4170,null,"х",null,null,"Монокуляр тепловизионный",null,null,null,null,1300,1558,1558.4450482214752,15.489421092845831,null,"FLIR (США)","VOx","640х512",17,null,"0,05°C",8.3000000000000007,"Цветной","Механический шторки",null,null,null,null,null,null,null,null,null,null,null,null,null,null,null,null,null,null,null,null,null,null,null,null,null,"40 мм f/1.0","1х","4х",16,null,"Ручная",null,null,null,null,"LCD","640х480",null,null,null,"Приобрести  видеорекордер","Приобрести  видеорекордер",null,"Нет","USB",null,null,null,null,null,null,null,null,null,null,null,null,null,null,null,null,null,null,null,null,null,null,null,null,null,null,null,"Да",null,null,null,null,null,null,null,null,null,null,null,null,null,null,1.5,"Да",5,"Да",172,59,62,340,"от -20 до +50°C","IP67",null,"Нет","Нет","12 мес.",null,null,null,null,null,null,null,null,null,null,null,null,null,null,null,null,null,null,null,null,null,null,null,null,null,null,null,null,"Все товары/Электроника/Оптические приборы/Приборы ночного видения","На этот товар СКИДКА или ПОДАРОК, звони!",null,null,null,null,"/upload/imgs/tulon_foto_anons/teploviz_Ohota_ruchnie/flir/scout-ii-hunter-40_1.jpg","/upload/imgs/tulon_foto_anons/teploviz_Ohota_ruchnie/flir/scout-ii-hunter-40_1.jpg","/upload/imgs/tulon_foto_anons/teploviz_Ohota_ruchnie/flir/scout-ii-hunter-40_2.jpg;/upload/imgs/tulon_foto_anons/teploviz_Ohota_ruchnie/flir/scout-ii-hunter-40_3.jpg","/upload/imgs/tulon_op_tovara/teplovizor_ohota/flir/op_FLIR_Scout-II_Hunter_640(40).html","https://www.youtube.com/embed/W9u8LKUv_e8","/upload/imgs/tulon_op_tovara/teplovizor_ohota/flir/Брошюра Flir Scout II 240 320 640.pdf",null,"Тепловизор FLIR Scout II Hunter 640(40) | Скидка, купить, цена","Тепловизор FLIR Scout II Hunter 640(40) купить для охоты и наблюдения по минимальной цене. Сравнить характеристики, скачать инструкцию и отзывы на сайте tulon.ru. Скидка и доставка бесплатно каждому покупателю!","купить, описание, каталог, цена, доставка, акция, распродажа, опт, тепловизор","Тепловизор FLIR Scout II Hunter 640(40) для охоты и наблюдения по минимальной цене. Сравнить характеристики, скачать инструкцию и отзывы на сайте tulon.ru. Скидка и доставка бесплатно каждому покупателю!","флир,скаут,хантер,охотник","Тепловизор FLIR Scout II Hunter 640(40)","Тепловизор FLIR Scout II Hunter 640(40)","Тепловизор FLIR Scout II Hunter 640(40)","Тепловизор FLIR Scout II Hunter 640(40)","Тепловизор FLIR Scout II Hunter 640(40)","Тепловизор FLIR Scout II Hunter 640(40)",null,null,null,"купить","для охоты и наблюдения","| Скидка, купить, цена","по минимальной цене. Сравнить характеристики, скачать инструкцию и отзывы на сайте tulon.ru. Скидка и доставка бесплатно каждому покупателю!",null,"купить, описание, каталог, цена, доставка, акция, распродажа, опт, тепловизор","Наименование элемента 24 | Скидка, купить, цена","Наименование элемента 24 купить для охоты и наблюдения по минимальной цене. Сравнить характеристики, скачать инструкцию и отзывы на сайте tulon.ru. Скидка и доставка бесплатно каждому покупателю!","купить, описание, каталог, цена, доставка, акция, распродажа, опт, тепловизор","Наименование элемента 24 для охоты и наблюдения по минимальной цене. Сравнить характеристики, скачать инструкцию и отзывы на сайте tulon.ru. Скидка и доставка бесплатно каждому покупателю!",47,195,null,null,0,null,1,"RUB","-",{"$error":"#VALUE!"}]
["Наименование элемента 25","Категория 1 уровня 25","Категория 2 уровня 25","Категория 3 уровня 25","RUB",49900,10,null,"Y",null,null,"Flir","США","США",null,null,4171,null,"х",null,null,"Монокуляр тепловизионный",null,null,null,null,100,292,292.20765133299699,{"$error":"#VALUE!"},null,"FLIR (США)","VOx","160х120",null,null,"0,05°C",8.3000000000000007,"Цветной","Механический шторки",null,null,null,null,null,null,null,null,null,null,null,null,null,null,null,null,null,null,null,null,null,null,null,null,null,null,null,null,20,null,null,null,null,null,null,"LCD","640х480",null,null,null,"Да","Нет",null,null,null,null,null,null,null,null,null,null,null,null,null,null,null,null,null,null,null,null,null,null,null,null,null,null,null,null,null,null,null,null,null,null,null,null,null,null,null,null,null,null,null,null,null,5,"Да",5,null,110,40,40,170,"от -20 до +40°C","IP67",null,"Нет",null,"12 мес.",null,null,null,null,null,null,null,null,null,null,null,null,null,null,null,null,null,null,null,null,null,null,null,null,null,null,null,null,"Все товары/Электроника/Оптические приборы/Приборы ночного видения","Предоплата",null,null,null,null,"/upload/imgs/tulon_foto_anons/teploviz_Ohota_ruchnie/flir-scout-tk_1.jpg","/upload/imgs/tulon_foto_anons/teploviz_Ohota_ruchnie/flir/flir-scout-tk_1.jpg","/upload/imgs/tulon_foto_anons/teploviz_Ohota_ruchnie/flir/flir-scout-tk_2.jpg;/upload/imgs/tulon_foto_anons/teploviz_Ohota_ruchnie/flir/flir-scout-tk_3.jpg;/upload/imgs/tulon_foto_anons/teploviz_Ohota_ruchnie/flir/flir-scout-tk_4.jpg;/upload/imgs/tulon_foto_anons/teploviz_Ohota_ruchnie/flir/flir-scout-tk_5.jpg","/upload/imgs/tulon_op_tovara/teplovizor_ohota/flir/op_teploviz_monokulyar_FLIR_Scout_TK.html","https://www.youtube.com/embed/91Fc-cz2iAg;https://www.youtube.com/embed/iN-PhcnMSqk;https://www.youtube.com/embed/EdUTySaQrws;https://www.youtube.com/embed/HwzPLxX5jd4","/upload/imgs/tulon_op_tovara/teplovizor_ohota/flir/Руководство пользователя Flir Scout TK (англ.).pdf",null,"Тепловизионный монокуляр FLIR Scout TK | Скидка, купить, цена","Тепловизионный монокуляр FLIR Scout TK купить для охоты и наблюдения по минимальной цене. Сравнить характеристики, скачать инструкцию и отзывы на сайте tulon.ru. Скидка и доставка бесплатно каждому покупателю!","купить, описание, каталог, цена, доставка, акция, распродажа, опт, тепловизор","Тепловизионный монокуляр FLIR Scout TK для охоты и наблюдения по минимальной цене. Сравнить характеристики, скачать инструкцию и отзывы на сайте tulon.ru. Скидка и доставка бесплатно каждому покупателю!","флир,скаут,скаут тк","Тепловизионный монокуляр FLIR Scout TK","Тепловизионный монокуляр FLIR Scout TK","Тепловизионный монокуляр FLIR Scout TK","Тепловизионный монокуляр FLIR Scout TK","Тепловизионный монокуляр FLIR Scout TK","Тепловизионный монокуляр FLIR Scout TK",null,null,null,"купить","для охоты и наблюдения","| Скидка, купить, цена","по минимальной цене. Сравнить характеристики, скачать инструкцию и отзывы на сайте tulon.ru. Скидка и доставка бесплатно каждому покупателю!",null,"купить, описание, каталог, цена, доставка, акция, распродажа, опт, тепловизор","Наименование элемента 25 | Скидка, купить, цена","Наименование элемента 25 купить для охоты и наблюдения по минимальной цене. Сравнить характеристики, скачать инструкцию и отзывы на сайте tulon.ru. Скидка и доставка бесплатно каждому покупателю!","купить, описание, каталог, цена, доставка, акция, распродажа, опт, тепловизор","Наименование элемента 25 для охоты и наблюдения по минимальной цене. Сравнить характеристики, скачать инструкцию и отзывы на сайте tulon.ru. Скидка и доставка бесплатно каждому покупателю!",47,195,null,null,49900,null,1,"RUB",49900,0]
["Наименование элемента 26","Категория 1 уровня 26","Категория 2 уровня 26","Категория 3 уровня 26","RUB",118000,0,"Нет","Y",null,null,"Flir","США","США",null,null,2946,null,"х",null,null,"Монокуляр тепловизионный",null,null,null,null,320,365,365.25993504905546,17.836601341658021,null,"FLIR (США)","VOx","240х180",17,null,"0,05°C",8.3000000000000007,"Цветной","Механический шторки",null,null,null,null,null,null,null,null,null,null,null,null,null,null,null,null,null,null,null,null,null,null,null,null,null,"13 мм f/1.0","1х",null,24,null,null,null,null,null,null,"LCD","640х480",null,null,null,"Приобрести  видеорекордер","Приобрести  видеорекордер",null,"Нет","USB",null,null,null,null,null,null,null,null,null,null,null,null,null,null,null,null,null,null,null,null,null,null,null,null,null,null,null,"Да",null,null,null,null,null,null,null,null,null,null,null,null,null,null,1.5,"Да",5,"Да",172,59,62,340,"от -20 до +50°C","IP67",null,"Нет","Нет","12 мес.",null,null,null,null,null,null,null,null,null,null,null,null,null,null,null,null,null,null,null,null,null,null,null,null,null,null,null,null,"Все товары/Электроника/Оптические приборы/Приборы ночного видения","На этот товар СКИДКА или ПОДАРОК, звони!",null,null,null,null,"/upload/imgs/tulon_foto_anons/teploviz_Ohota_ruchnie/flir/PS24.jpg","/upload/imgs/tulon_foto_anons/teploviz_Ohota_ruchnie/flir/PS24.jpg","/upload/imgs/tulon_foto_anons/teploviz_Ohota_ruchnie/flir/PS24_1.jpg;/upload/imgs/tulon_foto_anons/teploviz_Ohota_ruchnie/flir/PS24_2.jpg;/upload/imgs/tulon_foto_anons/teploviz_Ohota_ruchnie/flir/PS24_3.jpg;/upload/imgs/tulon_foto_anons/teploviz_Ohota_ruchnie/flir/Flir_scout_II_xxx_4.jpg;/upload/imgs/tulon_foto_anons/teploviz_Ohota_ruchnie/flir/Flir_scout_II_xxx_5.jpg;/upload/imgs/tulon_foto_anons/teploviz_Ohota_ruchnie/flir/Flir_scout_II_xxx_6.jpg","/upload/imgs/tulon_op_tovara/teplovizor_ohota/flir/op_FLIR-Scout-II_240.html","https://www.youtube.com/embed/gQCfym8HIBg","/upload/imgs/tulon_op_tovara/teplovizor_ohota/flir/Руководство пользователя Flir Scout II (англ.).pdf;/upload/imgs/tulon_op_tovara/teplovizor_ohota/flir/Брошюра Flir Scout II 240 320 640.pdf;/upload/imgs/tulon_op_tovara/teplovizor_ohota/flir/Брошюра Flir краткий обзор (все модели до 2015).pdf;/upload/imgs/tulon_op_tovara/teplovizor_ohota/flir/ПО Scout II vs LS vs Ocean Scout.pdf;/upload/imgs/tulon_op_tovara/teplovizor_ohota/flir/Сравнение матриц и объктивов Flir Scout.pdf",null,"Тепловизор FLIR Scout II 240 | Скидка, купить, цена","Тепловизор FLIR Scout II 240 купить для охоты и наблюдения по минимальной цене. Сравнить характеристики, скачать инструкцию и отзывы на сайте tulon.ru. Скидка и доставка бесплатно каждому покупателю!","купить FLIR Scout II 240, FLIR Scout II 240, FLIR Scout II 240 купить, цена FLIR Scout II 240, FLIR Scout II 240 цена, купить, описание, каталог, цена, доставка, акция, распродажа, опт, тепловизор","Тепловизор FLIR Scout II 240 для охоты и наблюдения по минимальной цене. Сравнить характеристики, скачать инструкцию и отзывы на сайте tulon.ru. Скидка и доставка бесплатно каждому покупателю!","флир,скаут,скаут 2","Тепловизор FLIR Scout II 240","Тепловизор FLIR Scout II 240","Тепловизор FLIR Scout II 240","Тепловизор FLIR Scout II 240","Тепловизор FLIR Scout II 240","Тепловизор FLIR Scout II 240",null,null,null,"купить","для охоты и наблюдения","| Скидка, купить, цена","по минимальной цене. Сравнить характеристики, скачать инструкцию и отзывы на сайте tulon.ru. Скидка и доставка бесплатно каждому покупателю!","купить FLIR Scout II 240, FLIR Scout II 240, FLIR Scout II 240 купить, цена FLIR Scout II 240, FLIR Scout II 240 цена","купить, описание, каталог, цена, доставка, акция, распродажа, опт, тепловизор","Наименование элемента 26 | Скидка, купить, цена","Наименование элемента 26 купить для охоты и наблюдения по минимальной цене. Сравнить характеристики, скачать инструкцию и отзывы на сайте tulon.ru. Скидка и доставка бесплатно каждому покупателю!","купить FLIR Scout II 240, FLIR Scout II 240, FLIR Scout II 240 купить, цена FLIR Scout II 240, FLIR Scout II 240 цена, купить, описание, каталог, цена, доставка, акция, распродажа, опт, тепловизор","Наименование элемента 26 для охоты и наблюдения по минимальной цене. Сравнить характеристики, скачать инструкцию и отзывы на сайте tulon.ru. Скидка и доставка бесплатно каждому покупателю!",47,195,null,null,118000,null,1,"RUB",118000,0]
["Наименование элемента 27","Категория 1 уровня 27","Категория 2 уровня 27","Категория 3 уровня 27","RUB",166000,0,"Нет","Y",null,null,"Flir","США","США",null,null,2947,null,"х",null,null,"Монокуляр тепловизионный",null,null,null,null,460,733,733.38564938190734,17.096920100725306,null,"FLIR (США)","VOx","336х256",17,null,"0,05°C",8.3000000000000007,"Цветной","Механический шторки",null,null,null,null,null,null,null,null,null,null,null,null,null,null,null,null,null,null,null,null,null,null,null,null,null,"19 мм f/1.0","1х","2х",17,null,null,null,null,null,null,"LCD","640х480",null,null,null,"Приобрести  видеорекордер","Приобрести  видеорекордер",null,"Нет","USB",null,null,null,null,null,null,null,null,null,null,null,null,null,null,null,null,null,null,null,null,null,null,null,null,null,null,null,"Да",null,null,null,null,null,null,null,null,null,null,null,null,null,null,1.5,"Да",5,"Да",172,59,62,340,"от -20 до +50°C","IP67",null,"Нет","Нет","12 мес.",null,null,null,null,null,null,null,null,null,null,null,null,null,null,null,null,null,null,null,null,null,null,null,null,null,null,null,null,"Все товары/Электроника/Оптические приборы/Приборы ночного видения","На этот товар СКИДКА или ПОДАРОК, звони!",null,null,null,null,"/upload/imgs/tulon_foto_anons/teploviz_Ohota_ruchnie/flir/PS32.jpg","/upload/imgs/tulon_foto_anons/teploviz_Ohota_ruchnie/flir/PS32.jpg","/upload/imgs/tulon_foto_anons/teploviz_Ohota_ruchnie/flir/PS32_1.jpg;/upload/imgs/tulon_foto_anons/teploviz_Ohota_ruchnie/flir/PS32_2.jpg;/upload/imgs/tulon_foto_anons/teploviz_Ohota_ruchnie/flir/PS32_3.jpg;/upload/imgs/tulon_foto_anons/teploviz_Ohota_ruchnie/flir/Flir_scout_II_xxx_4.jpg;/upload/imgs/tulon_foto_anons/teploviz_Ohota_ruchnie/flir/Flir_scout_II_xxx_5.jpg","/upload/imgs/tulon_op_tovara/teplovizor_ohota/flir/op_FLIR-Scout-II_320.html","https://www.youtube.com/embed/gQCfym8HIBg;https://www.youtube.com/embed/Wnne8SkHnsA","/upload/imgs/tulon_op_tovara/teplovizor_ohota/flir/Руководство пользователя Flir Scout II (англ.).pdf;/upload/imgs/tulon_op_tovara/teplovizor_ohota/flir/Брошюра Flir Scout II 240 320 640.pdf;/upload/imgs/tulon_op_tovara/teplovizor_ohota/flir/Брошюра Flir краткий обзор (все модели до 2015).pdf;/upload/imgs/tulon_op_tovara/teplovizor_ohota/flir/ПО Scout II vs LS vs Ocean Scout.pdf;/upload/imgs/tulon_op_tovara/teplovizor_ohota/flir/Сравнение матриц и объктивов Flir Scout.pdf",null,"Тепловизор FLIR Scout II 320 | Скидка, купить, цена","Тепловизор FLIR Scout II 320 купить для охоты и наблюдения по минимальной цене. Сравнить характеристики, скачать инструкцию и отзывы на сайте tulon.ru. Скидка и доставка бесплатно каждому покупателю!","купить FLIR Scout II 320, FLIR Scout II 320, FLIR Scout II 320 купить, цена FLIR Scout II 320, FLIR Scout II 320 цена, купить, описание, каталог, цена, доставка, акция, распродажа, опт, тепловизор","Тепловизор FLIR Scout II 320 для охоты и наблюдения по минимальной цене. Сравнить характеристики, скачать инструкцию и отзывы на сайте tulon.ru. Скидка и доставка бесплатно каждому покупателю!","флир,скаут,скаут 2,scout 2","Тепловизор FLIR Scout II 320","Тепловизор FLIR Scout II 320","Тепловизор FLIR Scout II 320","Тепловизор FLIR Scout II 320","Тепловизор FLIR Scout II 320","Тепловизор FLIR Scout II 320",null,null,null,"купить","для охоты и наблюдения","| Скидка, купить, цена","по минимальной цене. Сравнить характеристики, скачать инструкцию и отзывы на сайте tulon.ru. Скидка и доставка бесплатно каждому покупателю!","купить FLIR Scout II 320, FLIR Scout II 320, FLIR Scout II 320 купить, цена FLIR Scout II 320, FLIR Scout II 320 цена","купить, описание, каталог, цена, доставка, акция, распродажа, опт, тепловизор","Наименование элемента 27 | Скидка, купить, цена","Наименование элемента 27 купить для охоты и наблюдения по минимальной цене. Сравнить характеристики, скачать инструкцию и отзывы на сайте tulon.ru. Скидка и доставка бесплатно каждому покупателю!","купить FLIR Scout II 320, FLIR Scout II 320, FLIR Scout II 320 купить, цена FLIR Scout II 320, FLIR Scout II 320 цена, купить, описание, каталог, цена, доставка, акция, распродажа, опт, тепловизор","Наименование элемента 27 для охоты и наблюдения по минимальной цене. Сравнить характеристики, скачать инструкцию и отзывы на сайте tulon.ru. Скидка и доставка бесплатно каждому покупателю!",47,195,null,null,166000,null,1,"RUB",166000,0]
["Наименование элемента 28","Категория 1 уровня 28","Категория 2 уровня 28","Категория 3 уровня 28","RUB",299730,0,"Нет","Y",null,null,"Flir","США","США",null,null,3147,null,"х",null,null,"Монокуляр тепловизионный",null,null,null,null,1140,1385,1385.2844508206967,17.669421324311362,null,"FLIR (США)","VOx","640х512",17,null,"0,05°C",8.3000000000000007,"Цветной","Механический шторки",null,null,null,null,null,null,null,null,null,null,null,null,null,null,null,null,null,null,null,null,null,null,null,null,null,"35 мм f/1.0","1х","4х",18,null,null,null,null,null,null,"LCD","640х480",null,null,null,"Приобрести  видеорекордер","Приобрести  видеорекордер",null,"Нет","USB",null,null,null,null,null,null,null,null,null,null,null,null,null,null,null,null,null,null,null,null,null,null,null,null,null,null,null,"Да",null,null,null,null,null,null,null,null,null,null,null,null,null,null,1.5,"Да",5,"Да",172,59,62,340,"от -20 до +50°C","IP67",null,"Нет","Нет","12 мес.",null,null,null,null,null,null,null,null,null,null,null,null,null,null,null,null,null,null,null,null,null,null,null,null,null,null,null,null,"Все товары/Электроника/Оптические приборы/Приборы ночного видения","На этот товар СКИДКА или ПОДАРОК, звони!",null,null,null,null,"/upload/imgs/tulon_foto_anons/teploviz_Ohota_ruchnie/flir/PS32.jpg","/upload/imgs/tulon_foto_anons/teploviz_Ohota_ruchnie/flir/PS32.jpg","/upload/imgs/tulon_foto_anons/teploviz_Ohota_ruchnie/flir/PS32_1.jpg;/upload/imgs/tulon_foto_anons/teploviz_Ohota_ruchnie/flir/PS32_2.jpg;/upload/imgs/tulon_foto_anons/teploviz_Ohota_ruchnie/flir/PS32_3.jpg;/upload/imgs/tulon_foto_anons/teploviz_Ohota_ruchnie/flir/Flir_scout_II_xxx_4.jpg;/upload/imgs/tulon_foto_anons/teploviz_Ohota_ruchnie/flir/Flir_scout_II_xxx_5.jpg","/upload/imgs/tulon_op_tovara/teplovizor_ohota/flir/op_FLIR-Scout-II_640.html","https://www.youtube.com/embed/W9u8LKUv_e8;https://www.youtube.com/embed/RcyH_P8yiCk","/upload/imgs/tulon_op_tovara/teplovizor_ohota/flir/Брошюра Flir Scout II 240 320 640.pdf;/upload/imgs/tulon_op_tovara/teplovizor_ohota/flir/ПО Scout II vs LS vs Ocean Scout.pdf",null,"Тепловизор FLIR Scout II 640 | Скидка, купить, цена","Тепловизор FLIR Scout II 640 купить для охоты и наблюдения по минимальной цене. Сравнить характеристики, скачать инструкцию и отзывы на сайте tulon.ru. Скидка и доставка бесплатно каждому покупателю!","купить FLIR Scout II 320, FLIR Scout II 320, FLIR Scout II 320 купить, цена FLIR Scout II 320, FLIR Scout II 320 цена, купить, описание, каталог, цена, доставка, акция, распродажа, опт, тепловизор","Тепловизор FLIR Scout II 640 для охоты и наблюдения по минимальной цене. Сравнить характеристики, скачать инструкцию и отзывы на сайте tulon.ru. Скидка и доставка бесплатно каждому покупателю!","флир,скаут,скаут 2,scout 2","Тепловизор FLIR Scout II 640","Тепловизор FLIR Scout II 640","Тепловизор FLIR Scout II 640","Тепловизор FLIR Scout II 640","Тепловизор FLIR Scout II 640","Тепловизор FLIR Scout II 640",null,null,null,"купить","для охоты и наблюдения","| Скидка, купить, цена","по минимальной цене. Сравнить характеристики, скачать инструкцию и отзывы на сайте tulon.ru. Скидка и доставка бесплатно каждому покупателю!","купить FLIR Scout II 320, FLIR Scout II 320, FLIR Scout II 320 купить, цена FLIR Scout II 320, FLIR Scout II 320 цена","купить, описание, каталог, цена, доставка, акция, распродажа, опт, тепловизор","Наименование элемента 28 | Скидка, купить, цена","Наименование элемента 28 купить для охоты и наблюдения по минимальной цене. Сравнить характеристики, скачать инструкцию и отзывы на сайте tulon.ru. Скидка и доставка бесплатно каждому покупателю!","купить FLIR Scout II 320, FLIR Scout II 320, FLIR Scout II 320 купить, цена FLIR Scout II 320, FLIR Scout II 320 цена, купить, описание, каталог, цена, доставка, акция, распродажа, опт, тепловизор","Наименование элемента 28 для охоты и наблюдения по минимальной цене. Сравнить характеристики, скачать инструкцию и отзывы на сайте tulon.ru. Скидка и доставка бесплатно каждому покупателю!",47,195,null,null,299730,null,1,"RUB",299730,0]
["Наименование элемента 29","Категория 1 уровня 29","Категория 2 уровня 29","Категория 3 уровня 29","RUB",166000,0,"Нет","Y",null,null,"Flir","США","США",null,null,3148,null,"х",null,null,"Монокуляр тепловизионный",null,null,null,null,570,733,733.38564938190734,17.096920100725306,null,"FLIR (США)","VOx","336х256",17,null,"0,05°C",8.3000000000000007,"Цветной","Механический шторки",null,null,null,null,null,null,null,null,null,null,null,null,null,null,null,null,null,null,null,null,null,null,null,null,null,"19 мм f/1.0","1х","4х",17,null,null,null,null,null,null,"LCD","640х480",null,null,null,"Приобрести  видеорекордер","Приобрести  видеорекордер",null,"Нет","USB",null,null,null,null,null,null,null,null,null,null,null,null,null,null,null,null,null,null,null,null,null,null,null,null,null,null,null,null,"Да",null,null,null,null,null,null,null,null,null,null,null,null,null,1.5,"Да",5,"Да",172,59,62,340,"от -20 до +50°C","IP67",null,"Нет","Нет","12 мес.",null,null,null,null,null,null,null,null,null,null,null,null,null,null,null,null,null,null,null,null,null,null,null,null,null,null,null,null,"Все товары/Электроника/Оптические приборы/Приборы ночного видения","На этот товар СКИДКА или ПОДАРОК, звони!",null,null,null,null,"/upload/imgs/tulon_foto_anons/teploviz_Ohota_ruchnie/flir/LS64.jpg","/upload/imgs/tulon_foto_anons/teploviz_Ohota_ruchnie/flir/LS64.jpg","/upload/imgs/tulon_foto_anons/teploviz_Ohota_ruchnie/flir/LS64_1.jpg;/upload/imgs/tulon_foto_anons/teploviz_Ohota_ruchnie/flir/LS64_2.jpg","/upload/imgs/tulon_op_tovara/teplovizor_ohota/flir/op_Flir-LS-X.html","https://www.youtube.com/embed/C3W6Ck8xEMA","/upload/imgs/tulon_op_tovara/teplovizor_ohota/flir/Брошюра Flir краткий обзор (все модели до 2015).pdf;/upload/imgs/tulon_op_tovara/teplovizor_ohota/flir/ПО Scout II vs LS vs Ocean Scout.pdf",null,"Тепловизор FLIR LS-X | Скидка, купить, цена","Тепловизор FLIR LS-X купить для охоты и наблюдения по минимальной цене. Сравнить характеристики, скачать инструкцию и отзывы на сайте tulon.ru. Скидка и доставка бесплатно каждому покупателю!","купить FLIR LS-XR, FLIR LS-XR, FLIR LS-XR купить, цена FLIR LS-XR, FLIR LS-XR цена, купить, описание, каталог, цена, доставка, акция, распродажа, опт, тепловизор","Тепловизор FLIR LS-X для охоты и наблюдения по минимальной цене. Сравнить характеристики, скачать инструкцию и отзывы на сайте tulon.ru. Скидка и доставка бесплатно каждому покупателю!","флир,ls x,lsx","Тепловизор FLIR LS-X","Тепловизор FLIR LS-X","Тепловизор FLIR LS-X","Тепловизор FLIR LS-X","Тепловизор FLIR LS-X","Тепловизор FLIR LS-X",null,null,null,"купить","для охоты и наблюдения","| Скидка, купить, цена","по минимальной цене. Сравнить характеристики, скачать инструкцию и отзывы на сайте tulon.ru. Скидка и доставка бесплатно каждому покупателю!","купить FLIR LS-XR, FLIR LS-XR, FLIR LS-XR купить, цена FLIR LS-XR, FLIR LS-XR цена","купить, описание, каталог, цена, доставка, акция, распродажа, опт, тепловизор","Наименование элемента 29 | Скидка, купить, цена","Наименование элемента 29 купить для охоты и наблюдения по минимальной цене. Сравнить характеристики, скачать инструкцию и отзывы на сайте tulon.ru. Скидка и доставка бесплатно каждому покупателю!","купить FLIR LS-XR, FLIR LS-XR, FLIR LS-XR купить, цена FLIR LS-XR, FLIR LS-XR цена, купить, описание, каталог, цена, доставка, акция, распродажа, опт, тепловизор","Наименование элемента 29 для охоты и наблюдения по минимальной цене. Сравнить характеристики, скачать инструкцию и отзывы на сайте tulon.ru. Скидка и доставка бесплатно каждому покупателю!",47,195,null,null,166000,null,1,"RUB",166000,0]
["Наименование элемента 30","Категория 1 уровня 30","Категория 2 уровня 30","Категория 3 уровня 30","RUB",280000,10,null,"Y",null,null,"Flir","США","США",null,null,2948,null,"х",null,null,"Монокуляр тепловизионный",null,null,null,null,1140,1385,1385.2844508206967,17.669421324311362,null,"FLIR (США)","VOx","640х512",17,null,"0,05°C",8.3000000000000007,"Цветной","Механический шторки",null,null,null,null,null,null,null,null,null,null,null,null,null,null,null,null,null,null,null,null,null,null,null,null,null,"35 мм f/1.0","1х","8х",18,null,null,null,null,null,null,"LCD","640х480",null,null,null,"Приобрести  видеорекордер","Приобрести  видеорекордер",null,"Нет","USB",null,null,null,null,null,null,null,null,null,null,null,null,null,null,null,null,null,null,null,null,null,null,null,null,null,null,null,null,"Да",null,null,null,null,null,null,null,null,null,null,null,null,null,1.5,"Да",5,"Да",172,59,62,340,"от -20 до +50°C","IP67",null,"Нет","Нет","12 мес.",null,null,null,null,null,null,null,null,null,null,null,null,null,null,null,null,null,null,null,null,null,null,null,null,null,null,null,null,"Все товары/Электроника/Оптические приборы/Приборы ночного видения","На этот товар СКИДКА или ПОДАРОК, звони!",null,null,null,null,"/upload/imgs/tulon_foto_anons/teploviz_Ohota_ruchnie/flir/LS64.jpg","/upload/imgs/tulon_foto_anons/teploviz_Ohota_ruchnie/flir/LS64.jpg","/upload/imgs/tulon_foto_anons/teploviz_Ohota_ruchnie/flir/LS64_1.jpg;/upload/imgs/tulon_foto_anons/teploviz_Ohota_ruchnie/flir/LS64_2.jpg","/upload/imgs/tulon_op_tovara/teplovizor_ohota/flir/op_Flir-LS-XR.html","https://www.youtube.com/embed/C3W6Ck8xEMA","/upload/imgs/tulon_op_tovara/teplovizor_ohota/flir/Брошюра Flir краткий обзор (все модели до 2015).pdf;/upload/imgs/tulon_op_tovara/teplovizor_ohota/flir/ПО Scout II vs LS vs Ocean Scout.pdf",null,"Тепловизор FLIR LS-XR | Скидка, купить, цена","Тепловизор FLIR LS-XR купить для охоты и наблюдения по минимальной цене. Сравнить характеристики, скачать инструкцию и отзывы на сайте tulon.ru. Скидка и доставка бесплатно каждому покупателю!","купить FLIR LS-XR, FLIR LS-XR, FLIR LS-XR купить, цена FLIR LS-XR, FLIR LS-XR цена, купить, описание, каталог, цена, доставка, акция, распродажа, опт, тепловизор","Тепловизор FLIR LS-XR для охоты и наблюдения по минимальной цене. Сравнить характеристики, скачать инструкцию и отзывы на сайте tulon.ru. Скидка и доставка бесплатно каждому покупателю!","флир,ls xr,lsxr","Тепловизор FLIR LS-XR","Тепловизор FLIR LS-XR","Тепловизор FLIR LS-XR","Тепловизор FLIR LS-XR","Тепловизор FLIR LS-XR","Тепловизор FLIR LS-XR",null,null,null,"купить","для охоты и наблюдения","| Скидка, купить, цена","по минимальной цене. Сравнить характеристики, скачать инструкцию и отзывы на сайте tulon.ru. Скидка и доставка бесплатно каждому покупателю!","купить FLIR LS-XR, FLIR LS-XR, FLIR LS-XR купить, цена FLIR LS-XR, FLIR LS-XR цена","купить, описание, каталог, цена, доставка, акция, распродажа, опт, тепловизор","Наименование элемента 30 | Скидка, купить, цена","Наименование элемента 30 купить для охоты и наблюдения по минимальной цене. Сравнить характеристики, скачать инструкцию и отзывы на сайте tulon.ru. Скидка и доставка бесплатно каждому покупателю!","купить FLIR LS-XR, FLIR LS-XR, FLIR LS-XR купить, цена FLIR LS-XR, FLIR LS-XR цена, купить, описание, каталог, цена, доставка, акция, распродажа, опт, тепловизор","Наименование элемента 30 для охоты и наблюдения по минимальной цене. Сравнить характеристики, скачать инструкцию и отзывы на сайте tulon.ru. Скидка и доставка бесплатно каждому покупателю!",47,195,null,null,280000,null,1,"RUB",280000,0]
["Наименование элемента 31","Категория 1 уровня 31","Категория 2 уровня 31","Категория 3 уровня 31","RUB","-",0,null,"Y","Снято с производства",null,"Flir","США","США",null,null,2949,null,"х",null,null,"Монокуляр тепловизионный",null,null,null,null,315,365,365.25993504905546,12.256560887969615,null,"FLIR (США)","VOx","240х180",17,null,"0,05°C",8.3000000000000007,"Цветной","Механический шторки",null,null,null,null,null,null,null,null,null,null,null,null,null,null,null,null,null,null,null,null,null,null,null,null,null,"19 мм f/1.0","1х",null,24,null,null,null,null,null,null,"LCD","320х240",null,null,null,"Нет","Нет",null,null,null,null,null,null,null,null,null,null,null,null,null,null,null,null,null,null,null,null,null,null,null,null,null,null,null,null,null,null,"Да",null,null,null,null,null,null,null,null,null,null,null,null,null,null,5,"Да",5,"Да",172,59,62,340,"от -20 до +50°C","IP67",null,"Нет","Нет","12 мес.",null,null,null,null,null,null,null,null,null,null,null,null,null,null,null,null,null,null,null,null,null,null,null,null,null,null,null,null,"Все товары/Электроника/Оптические приборы/Приборы ночного видения","На этот товар СКИДКА или ПОДАРОК, звони!",null,null,null,null,"/upload/imgs/tulon_foto_anons/teploviz_Ohota_ruchnie/flir/PS24.jpg","/upload/imgs/tulon_foto_anons/teploviz_Ohota_ruchnie/flir/PS24.jpg","/upload/imgs/tulon_foto_anons/teploviz_Ohota_ruchnie/flir/PS24_1.jpg;/upload/imgs/tulon_foto_anons/teploviz_Ohota_ruchnie/flir/PS24_2.jpg;/upload/imgs/tulon_foto_anons/teploviz_Ohota_ruchnie/flir/PS24_3.jpg","/upload/imgs/tulon_op_tovara/teplovizor_ohota/flir/op_FLIR-Scout_PS24.html","https://www.youtube.com/embed/yFo_MN_QCwE;https://www.youtube.com/embed/u81EERmA_xk","/upload/imgs/tulon_op_tovara/teplovizor_ohota/flir/Руководство пользователя Flir PS24 PS32.pdf;/upload/imgs/tulon_op_tovara/teplovizor_ohota/flir/Брошюра Flir Scout PS TS BTS.pdf;/upload/imgs/tulon_op_tovara/teplovizor_ohota/flir/ПО Scout II vs LS vs Ocean Scout.pdf",null,"Тепловизор FLIR Scout PS24 | Скидка, купить, цена","Тепловизор FLIR Scout PS24 купить для охоты и наблюдения по минимальной цене. Сравнить характеристики, скачать инструкцию и отзывы на сайте tulon.ru. Скидка и доставка бесплатно каждому покупателю!","flir scout ps24, flir ps24, тепловизор flir scout ps24, тепловизор flir scout ps24 цена, купить тепловизор flir scout ps24, flir scout ps24 цена, flir scout ps24 купить, купить flir scout ps24, flir ps24 цена, купить flir ps24, купить, описание, каталог, цена, доставка, акция, распродажа, опт, тепловизор","Тепловизор FLIR Scout PS24 для охоты и наблюдения по минимальной цене. Сравнить характеристики, скачать инструкцию и отзывы на сайте tulon.ru. Скидка и доставка бесплатно каждому покупателю!","флир,скаут,пс 24,пс24,ps 24","Тепловизор FLIR Scout PS24","Тепловизор FLIR Scout PS24","Тепловизор FLIR Scout PS24","Тепловизор FLIR Scout PS24","Тепловизор FLIR Scout PS24","Тепловизор FLIR Scout PS24",null,null,null,"купить","для охоты и наблюдения","| Скидка, купить, цена","по минимальной цене. Сравнить характеристики, скачать инструкцию и отзывы на сайте tulon.ru. Скидка и доставка бесплатно каждому покупателю!","flir scout ps24, flir ps24, тепловизор flir scout ps24, тепловизор flir scout ps24 цена, купить тепловизор flir scout ps24, flir scout ps24 цена, flir scout ps24 купить, купить flir scout ps24, flir ps24 цена, купить flir ps24","купить, описание, каталог, цена, доставка, акция, распродажа, опт, тепловизор","Наименование элемента 31 | Скидка, купить, цена","Наименование элемента 31 купить для охоты и наблюдения по минимальной цене. Сравнить характеристики, скачать инструкцию и отзывы на сайте tulon.ru. Скидка и доставка бесплатно каждому покупателю!","flir scout ps24, flir ps24, тепловизор flir scout ps24, тепловизор flir scout ps24 цена, купить тепловизор flir scout ps24, flir scout ps24 цена, flir scout ps24 купить, купить flir scout ps24, flir ps24 цена, купить flir ps24, купить, описание, каталог, цена, доставка, акция, распродажа, опт, тепловизор","Наименование элемента 31 для охоты и наблюдения по минимальной цене. Сравнить характеристики, скачать инструкцию и отзывы на сайте tulon.ru. Скидка и доставка бесплатно каждому покупателю!",47,195,null,null,0,null,1,"RUB","-",{"$error":"#VALUE!"}]
["Наименование элемента 32","Категория 1 уровня 32","Категория 2 уровня 32","Категория 3 уровня 32","RUB","-",0,null,"Y","Снято с производства",null,"Flir","США","США",null,null,2950,null,"х",null,null,"Монокуляр тепловизионный",null,null,null,null,450,487,487.01363135114457,16.293977639555184,null,"FLIR (США)","VOx","320х240",17,null,"0,05°C",8.3000000000000007,"Цветной","Механический шторки",null,null,null,null,null,null,null,null,null,null,null,null,null,null,null,null,null,null,null,null,null,null,null,null,null,"19 мм f/1.0","1х","2х",24,null,null,null,null,null,null,"LCD","320х240",null,null,null,"Нет","Нет",null,null,null,null,null,null,null,null,null,null,null,null,null,null,null,null,null,null,null,null,null,null,null,null,null,null,null,null,null,null,"Да",null,null,null,null,null,null,null,null,null,null,null,null,null,null,5,"Да",5,"Да",172,59,62,340,"от -20 до +50°C","IP67",null,"Нет","Нет","12 мес.",null,null,null,null,null,null,null,null,null,null,null,null,null,null,null,null,null,null,null,null,null,null,null,null,null,null,null,null,"Все товары/Электроника/Оптические приборы/Приборы ночного видения","На этот товар СКИДКА или ПОДАРОК, звони!",null,null,null,null,"/upload/imgs/tulon_foto_anons/teploviz_Ohota_ruchnie/flir/PS32.jpg","/upload/imgs/tulon_foto_anons/teploviz_Ohota_ruchnie/flir/PS32.jpg","/upload/imgs/tulon_foto_anons/teploviz_Ohota_ruchnie/flir/PS32_1.jpg;/upload/imgs/tulon_foto_anons/teploviz_Ohota_ruchnie/flir/PS32_2.jpg;/upload/imgs/tulon_foto_anons/teploviz_Ohota_ruchnie/flir/PS32_3.jpg","/upload/imgs/tulon_op_tovara/teplovizor_ohota/flir/op_FLIR-Scout_PS32.html","https://www.youtube.com/embed/yFo_MN_QCwE","/upload/imgs/tulon_op_tovara/teplovizor_ohota/flir/Руководство пользователя Flir PS24 PS32.pdf;/upload/imgs/tulon_op_tovara/teplovizor_ohota/flir/Брошюра Flir Scout PS TS BTS.pdf;/upload/imgs/tulon_op_tovara/teplovizor_ohota/flir/ПО Scout II vs LS vs Ocean Scout.pdf",null,"Тепловизор FLIR Scout PS32 | Скидка, купить, цена","Тепловизор FLIR Scout PS32 купить для охоты и наблюдения по минимальной цене. Сравнить характеристики, скачать инструкцию и отзывы на сайте tulon.ru. Скидка и доставка бесплатно каждому покупателю!","flir scout ps32, тепловизор flir scout ps32, flir ps32, flir ps32 цена, тепловизор flir ps32 цена, scout ps32, flir scout ps32 цена, купить, описание, каталог, цена, доставка, акция, распродажа, опт, тепловизор","Тепловизор FLIR Scout PS32 для охоты и наблюдения по минимальной цене. Сравнить характеристики, скачать инструкцию и отзывы на сайте tulon.ru. Скидка и доставка бесплатно каждому покупателю!","флир,скаут,пс 32,пс32,ps 32","Тепловизор FLIR Scout PS32","Тепловизор FLIR Scout PS32","Тепловизор FLIR Scout PS32","Тепловизор FLIR Scout PS32","Тепловизор FLIR Scout PS32","Тепловизор FLIR Scout PS32",null,null,null,"купить","для охоты и наблюдения","| Скидка, купить, цена","по минимальной цене. Сравнить характеристики, скачать инструкцию и отзывы на сайте tulon.ru. Скидка и доставка бесплатно каждому покупателю!","flir scout ps32, тепловизор flir scout ps32, flir ps32, flir ps32 цена, тепловизор flir ps32 цена, scout ps32, flir scout ps32 цена","купить, описание, каталог, цена, доставка, акция, распродажа, опт, тепловизор","Наименование элемента 32 | Скидка, купить, цена","Наименование элемента 32 купить для охоты и наблюдения по минимальной цене. Сравнить характеристики, скачать инструкцию и отзывы на сайте tulon.ru. Скидка и доставка бесплатно каждому покупателю!","flir scout ps32, тепловизор flir scout ps32, flir ps32, flir ps32 цена, тепловизор flir ps32 цена, scout ps32, flir scout ps32 цена, купить, описание, каталог, цена, доставка, акция, распродажа, опт, тепловизор","Наименование элемента 32 для охоты и наблюдения по минимальной цене. Сравнить характеристики, скачать инструкцию и отзывы на сайте tulon.ru. Скидка и доставка бесплатно каждому покупателю!",47,195,null,null,0,null,1,"RUB","-",{"$error":"#VALUE!"}]
["Наименование элемента 33","Категория 1 уровня 33","Категория 2 уровня 33","Категория 3 уровня 33","RUB","-",0,null,"Y","Снято с производства",null,"Flir","США","США",null,null,2951,null,"х",null,null,"Монокуляр тепловизионный",null,null,null,null,900,649,649.35179693242458,8.8875377587176967,null,"FLIR (США)","VOx","320х240",17,null,"0,05°C",8.3000000000000007,"Цветной","Механический шторки",null,null,null,null,null,null,null,null,null,null,null,null,null,null,null,null,null,null,null,null,null,null,null,null,null,"35 мм f/1.0","1х","2х",18,null,null,null,null,null,null,"LCD","320х240",null,null,null,"Нет","Нет",null,null,null,null,null,null,null,null,null,null,null,null,null,null,null,null,null,null,null,null,null,null,null,null,null,null,null,null,null,null,"Да",null,null,null,null,null,null,null,null,null,null,null,null,null,null,5,"Да",5,"Да",172,59,62,340,"от -20 до +50°C","IP67",null,"Нет","Нет","12 мес.",null,null,null,null,null,null,null,null,null,null,null,null,null,null,null,null,null,null,null,null,null,null,null,null,null,null,null,null,"Все товары/Электроника/Оптические приборы/Приборы ночного видения","На этот товар СКИДКА или ПОДАРОК, звони!",null,null,null,null,"/upload/imgs/tulon_foto_anons/teploviz_Ohota_ruchnie/flir/ps32-1.jpg","/upload/imgs/tulon_foto_anons/teploviz_Ohota_ruchnie/flir/ps32-1.jpg","/upload/imgs/tulon_foto_anons/teploviz_Ohota_ruchnie/flir/ps32-2.jpg;/upload/imgs/tulon_foto_anons/teploviz_Ohota_ruchnie/flir/ps32-3.jpg;/upload/imgs/tulon_foto_anons/teploviz_Ohota_ruchnie/flir/ps32-4.jpg;/upload/imgs/tulon_foto_anons/teploviz_Ohota_ruchnie/flir/ps32-5.jpg","/upload/imgs/tulon_op_tovara/teplovizor_ohota/flir/op_FLIR-Scout_PS32-Plus.html","https://www.youtube.com/embed/yFo_MN_QCwE","/upload/imgs/tulon_op_tovara/teplovizor_ohota/flir/Руководство пользователя Flir PS24 PS32.pdf;/upload/imgs/tulon_op_tovara/teplovizor_ohota/flir/Брошюра Flir Scout PS TS BTS.pdf",null,"Тепловизор FLIR Scout PS32 Plus (35мм, 900 метров) | Скидка, купить, цена","Тепловизор FLIR Scout PS32 Plus (35мм, 900 метров) купить для охоты и наблюдения по минимальной цене. Сравнить характеристики, скачать инструкцию и отзывы на сайте tulon.ru. Скидка и доставка бесплатно каждому покупателю!","купить, описание, каталог, цена, доставка, акция, распродажа, опт, тепловизор","Тепловизор FLIR Scout PS32 Plus (35мм, 900 метров) для охоты и наблюдения по минимальной цене. Сравнить характеристики, скачать инструкцию и отзывы на сайте tulon.ru. Скидка и доставка бесплатно каждому покупателю!","флир,скаут,пс 32,пс32,ps 32","Тепловизор FLIR Scout PS32 Plus (35мм, 900 метров)","Тепловизор FLIR Scout PS32 Plus (35мм, 900 метров)","Тепловизор FLIR Scout PS32 Plus (35мм, 900 метров)","Тепловизор FLIR Scout PS32 Plus (35мм, 900 метров)","Тепловизор FLIR Scout PS32 Plus (35мм, 900 метров)","Тепловизор FLIR Scout PS32 Plus (35мм, 900 метров)",null,null,null,"купить","для охоты и наблюдения","| Скидка, купить, цена","по минимальной цене. Сравнить характеристики, скачать инструкцию и отзывы на сайте tulon.ru. Скидка и доставка бесплатно каждому покупателю!",null,"купить, описание, каталог, цена, доставка, акция, распродажа, опт, тепловизор",{"$f":"TRIM(CONCATENATE(A37,\" \",GQ37))","v":"Наименование элемента 33 | Скидка, купить, цена"},{"$f":"TRIM(IF(GN37>0,CONCATENATE(A37,\" \",GO37,\" \",GR37),CONCATENATE(A37,\" \",GO37,\" \",GP37,\" \",GR37)))","v":"Наименование элемента 33 купить для охоты и наблюдения по минимальной цене. Сравнить характеристики, скачать инструкцию и отзывы на сайте tulon.ru. Скидка и доставка бесплатно каждому покупателю!"},"купить, описание, каталог, цена, доставка, акция, распродажа, опт, тепловизор",{"$f":"TRIM(IF(GN37>0,CONCATENATE(A37,\" \",GP37,\" \",GR37),CONCATENATE(A37,\" \",GP37,\" \",GR37)))","v":"Наименование элемента 33 для охоты и наблюдения по минимальной цене. Сравнить характеристики, скачать инструкцию и отзывы на сайте tulon.ru. Скидка и доставка бесплатно каждому покупателю!"},47,195,null,null,0,null,1,"RUB","-",{"$f":"HG37-F37","v":{"$error":"#VALUE!"}}]
["Наименование элемента 34","Категория 1 уровня 34","Категория 2 уровня 34","Категория 3 уровня 34","RUB","-",0,null,"Y","Снято с производства",null,"Flir","США","США",null,null,2952,null,"х",null,null,"Монокуляр тепловизионный",null,null,null,null,640,688,687.54900387906764,16.293977639555184,null,"FLIR (США)","VOx","320х240",17,null,"0,05°C",8.3000000000000007,"Цветной","Механический шторки",null,null,null,null,null,null,null,null,null,null,null,null,null,null,null,null,null,null,null,null,null,null,null,null,null,"19 мм f/1.0","1х","2х",17,null,null,null,null,null,null,"LCD","320х240",null,null,null,"Приобрести  видеорекордер","Приобрести  видеорекордер",null,"Нет","USB",null,null,null,null,null,null,null,null,null,null,null,null,null,null,null,null,null,null,null,null,null,null,null,null,null,null,null,null,"Да",null,null,null,null,null,null,null,null,null,null,null,null,null,5,"Да",5,"Да",172,59,62,340,"от -20 до +50°C","IP67",null,"Нет","Нет","12 мес.",null,null,null,null,null,null,null,null,null,null,null,null,null,null,null,null,null,null,null,null,null,null,null,null,null,null,null,null,"Все товары/Электроника/Оптические приборы/Приборы ночного видения","На этот товар СКИДКА или ПОДАРОК, звони!",null,null,null,null,"/upload/imgs/tulon_foto_anons/teploviz_Ohota_ruchnie/flir/LS32.jpg","/upload/imgs/tulon_foto_anons/teploviz_Ohota_ruchnie/flir/LS32.jpg","/upload/imgs/tulon_foto_anons/teploviz_Ohota_ruchnie/flir/LS32_1.jpg;/upload/imgs/tulon_foto_anons/teploviz_Ohota_ruchnie/flir/LS32_2.jpg","/upload/imgs/tulon_op_tovara/teplovizor_ohota/flir/op_FLIR-Scout_LS32.html","https://www.youtube.com/embed/BIJEc8zLI08","/upload/imgs/tulon_op_tovara/teplovizor_ohota/flir/Руководство пользователя Flir LS32 LS64.pdf;/upload/imgs/tulon_op_tovara/teplovizor_ohota/flir/Брошюра Flir LS HS BHS.pdf;/upload/imgs/tulon_op_tovara/teplovizor_ohota/flir/ПО Scout II vs LS vs Ocean Scout.pdf",null,"Тепловизор FLIR Scout LS32 | Скидка, купить, цена","Тепловизор FLIR Scout LS32 купить для охоты и наблюдения по минимальной цене. Сравнить характеристики, скачать инструкцию и отзывы на сайте tulon.ru. Скидка и доставка бесплатно каждому покупателю!","купить, описание, каталог, цена, доставка, акция, распродажа, опт, тепловизор","Тепловизор FLIR Scout LS32 для охоты и наблюдения по минимальной цене. Сравнить характеристики, скачать инструкцию и отзывы на сайте tulon.ru. Скидка и доставка бесплатно каждому покупателю!","флир,скаут,лс 32,лс32,ls 32","Тепловизор FLIR Scout LS32","Тепловизор FLIR Scout LS32","Тепловизор FLIR Scout LS32","Тепловизор FLIR Scout LS32","Тепловизор FLIR Scout LS32","Тепловизор FLIR Scout LS32",null,null,null,"купить","для охоты и наблюдения","| Скидка, купить, цена","по минимальной цене. Сравнить характеристики, скачать инструкцию и отзывы на сайте tulon.ru. Скидка и доставка бесплатно каждому покупателю!",null,"купить, описание, каталог, цена, доставка, акция, распродажа, опт, тепловизор","Наименование элемента 34 | Скидка, купить, цена","Наименование элемента 34 купить для охоты и наблюдения по минимальной цене. Сравнить характеристики, скачать инструкцию и отзывы на сайте tulon.ru. Скидка и доставка бесплатно каждому покупателю!","купить, описание, каталог, цена, доставка, акция, распродажа, опт, тепловизор","Наименование элемента 34 для охоты и наблюдения по минимальной цене. Сравнить характеристики, скачать инструкцию и отзывы на сайте tulon.ru. Скидка и доставка бесплатно каждому покупателю!",47,195,null,null,0,null,1,"RUB","-",{"$error":"#VALUE!"}]
["Наименование элемента 35","Категория 1 уровня 35","Категория 2 уровня 35","Категория 3 уровня 35","RUB","-",0,null,"Y","Снято с производства",null,"Flir","США","США",null,null,2953,null,"х",null,null,"Монокуляр тепловизионный",null,null,null,null,1080,1299,1298.7041501886279,17.669421324311362,null,"FLIR (США)","VOx","640х480",17,null,"0,05°C",8.3000000000000007,"Цветной","Механический шторки",null,null,null,null,null,null,null,null,null,null,null,null,null,null,null,null,null,null,null,null,null,null,null,null,null,"35 мм f/1.0","1х","4х",18,null,null,null,null,null,null,"LCD","320х240",null,null,null,"Приобрести  видеорекордер","Приобрести  видеорекордер",null,"Нет","USB",null,null,null,null,null,null,null,null,null,null,null,null,null,null,null,null,null,null,null,null,null,null,null,null,null,null,null,null,"Да",null,null,null,null,null,null,null,null,null,null,null,null,null,5,"Да",5,"Да",172,59,62,340,"от -20 до +50°C","IP67",null,"Нет","Нет","12 мес.",null,null,null,null,null,null,null,null,null,null,null,null,null,null,null,null,null,null,null,null,null,null,null,null,null,null,null,null,"Все товары/Электроника/Оптические приборы/Приборы ночного видения","На этот товар СКИДКА или ПОДАРОК, звони!",null,null,null,null,"/upload/imgs/tulon_foto_anons/teploviz_Ohota_ruchnie/flir/LS64.jpg","/upload/imgs/tulon_foto_anons/teploviz_Ohota_ruchnie/flir/LS64.jpg","/upload/imgs/tulon_foto_anons/teploviz_Ohota_ruchnie/flir/LS64_1.jpg;/upload/imgs/tulon_foto_anons/teploviz_Ohota_ruchnie/flir/LS64_2.jpg","/upload/imgs/tulon_op_tovara/teplovizor_ohota/flir/op_FLIR-Scout_LS64.html","https://www.youtube.com/embed/BIJEc8zLI08","/upload/imgs/tulon_op_tovara/teplovizor_ohota/flir/Руководство пользователя Flir LS32 LS64.pdf;/upload/imgs/tulon_op_tovara/teplovizor_ohota/flir/Брошюра Flir LS HS BHS.pdf;/upload/imgs/tulon_op_tovara/teplovizor_ohota/flir/ПО Scout II vs LS vs Ocean Scout.pdf",null,"Тепловизор FLIR Scout LS64 | Скидка, купить, цена","Тепловизор FLIR Scout LS64 купить для охоты и наблюдения по минимальной цене. Сравнить характеристики, скачать инструкцию и отзывы на сайте tulon.ru. Скидка и доставка бесплатно каждому покупателю!","flir ls64, flir ls64 цена, тепловизор flir ls64 цена, тепловизор flir ls64, LS64, flir ls64 купить, flir scout ls64, купить, описание, каталог, цена, доставка, акция, распродажа, опт, тепловизор","Тепловизор FLIR Scout LS64 для охоты и наблюдения по минимальной цене. Сравнить характеристики, скачать инструкцию и отзывы на сайте tulon.ru. Скидка и доставка бесплатно каждому покупателю!","флир,скаут,лс 64,лс64,ls 64","Тепловизор FLIR Scout LS64","Тепловизор FLIR Scout LS64","Тепловизор FLIR Scout LS64","Тепловизор FLIR Scout LS64","Тепловизор FLIR Scout LS64","Тепловизор FLIR Scout LS64",null,null,null,"купить","для охоты и наблюдения","| Скидка, купить, цена","по минимальной цене. Сравнить характеристики, скачать инструкцию и отзывы на сайте tulon.ru. Скидка и доставка бесплатно каждому покупателю!","flir ls64, flir ls64 цена, тепловизор flir ls64 цена, тепловизор flir ls64, LS64, flir ls64 купить, flir scout ls64","купить, описание, каталог, цена, доставка, акция, распродажа, опт, тепловизор","Наименование элемента 35 | Скидка, купить, цена","Наименование элемента 35 купить для охоты и наблюдения по минимальной цене. Сравнить характеристики, скачать инструкцию и отзывы на сайте tulon.ru. Скидка и доставка бесплатно каждому покупателю!","flir ls64, flir ls64 цена, тепловизор flir ls64 цена, тепловизор flir ls64, LS64, flir ls64 купить, flir scout ls64, купить, описание, каталог, цена, доставка, акция, распродажа, опт, тепловизор","Наименование элемента 35 для охоты и наблюдения по минимальной цене. Сравнить характеристики, скачать инструкцию и отзывы на сайте tulon.ru. Скидка и доставка бесплатно каждому покупателю!",47,195,null,null,0,null,1,"RUB","-",{"$error":"#VALUE!"}]
["Наименование элемента 36","Категория 1 уровня 36","Категория 2 уровня 36","Категория 3 уровня 36","RUB","-",0,null,"Y","Снято с производства",null,"Flir","США","США",null,null,2954,null,"х",null,null,"Монокуляр тепловизионный",null,null,null,null,315,365,365.25993504905546,12.256560887969615,null,"FLIR (США)","VOx","240х180",17,null,"0,05°C",8.3000000000000007,"Цветной","Механический шторки",null,null,null,null,null,null,null,null,null,null,null,null,null,null,null,null,null,null,null,null,null,null,null,null,null,"19 мм f/1.0","1х",null,24,null,null,null,null,null,null,"LCD","320х240",null,null,null,"Приобрести  видеорекордер","Приобрести  видеорекордер",null,"Нет","RCA (разъём)",null,null,null,null,null,null,null,null,null,null,null,null,null,null,null,null,null,null,null,null,null,null,null,null,null,null,null,null,null,null,null,null,null,null,null,null,null,null,null,null,null,null,60,"Да",5,"Да",240,85,60,655,"от 0 до +50°C","IP67",null,"Нет","Нет","12 мес.",null,null,null,null,null,null,null,null,null,null,null,null,null,null,null,null,null,null,null,null,null,null,null,null,null,null,null,null,"Все товары/Электроника/Оптические приборы/Приборы ночного видения","На этот товар СКИДКА или ПОДАРОК, звони!",null,null,null,null,"/upload/imgs/tulon_foto_anons/teploviz_Ohota_ruchnie/flir/TS24.jpg","/upload/imgs/tulon_foto_anons/teploviz_Ohota_ruchnie/flir/TS24.jpg","/upload/imgs/tulon_foto_anons/teploviz_Ohota_ruchnie/flir/TS24_1.jpg;/upload/imgs/tulon_foto_anons/teploviz_Ohota_ruchnie/flir/TS24_2.jpg;/upload/imgs/tulon_foto_anons/teploviz_Ohota_ruchnie/flir/TS24_3.jpg;/upload/imgs/tulon_foto_anons/teploviz_Ohota_ruchnie/flir/TS24_4.jpg;/upload/imgs/tulon_foto_anons/teploviz_Ohota_ruchnie/flir/TS24_5.jpg;/upload/imgs/tulon_foto_anons/teploviz_Ohota_ruchnie/flir/TS24_6.jpg","/upload/imgs/tulon_op_tovara/teplovizor_ohota/flir/op_FLIR-Scout_TS24.html","https://www.youtube.com/embed/w8H9PpDM9LY","/upload/imgs/tulon_op_tovara/teplovizor_ohota/flir/Руководство пользователя Flir TS24 TS32 TS32r.pdf;/upload/imgs/tulon_op_tovara/teplovizor_ohota/flir/Брошюра Flir Scout PS TS BTS.pdf;/upload/imgs/tulon_op_tovara/teplovizor_ohota/flir/Брошюра Flir краткий обзор (все модели до 2015).pdf",null,"Тепловизор FLIR Scout TS24 | Скидка, купить, цена","Тепловизор FLIR Scout TS24 купить для охоты и наблюдения по минимальной цене. Сравнить характеристики, скачать инструкцию и отзывы на сайте tulon.ru. Скидка и доставка бесплатно каждому покупателю!","купить, описание, каталог, цена, доставка, акция, распродажа, опт, тепловизор","Тепловизор FLIR Scout TS24 для охоты и наблюдения по минимальной цене. Сравнить характеристики, скачать инструкцию и отзывы на сайте tulon.ru. Скидка и доставка бесплатно каждому покупателю!","флир,скаут,тс 24,тс24,ts 24","Тепловизор FLIR Scout TS24","Тепловизор FLIR Scout TS24","Тепловизор FLIR Scout TS24","Тепловизор FLIR Scout TS24","Тепловизор FLIR Scout TS24","Тепловизор FLIR Scout TS24",null,null,null,"купить","для охоты и наблюдения","| Скидка, купить, цена","по минимальной цене. Сравнить характеристики, скачать инструкцию и отзывы на сайте tulon.ru. Скидка и доставка бесплатно каждому покупателю!",null,"купить, описание, каталог, цена, доставка, акция, распродажа, опт, тепловизор","Наименование элемента 36 | Скидка, купить, цена","Наименование элемента 36 купить для охоты и наблюдения по минимальной цене. Сравнить характеристики, скачать инструкцию и отзывы на сайте tulon.ru. Скидка и доставка бесплатно каждому покупателю!","купить, описание, каталог, цена, доставка, акция, распродажа, опт, тепловизор","Наименование элемента 36 для охоты и наблюдения по минимальной цене. Сравнить характеристики, скачать инструкцию и отзывы на сайте tulon.ru. Скидка и доставка бесплатно каждому покупателю!",47,195,null,null,0,null,1,"RUB","-",{"$error":"#VALUE!"}]
["Наименование элемента 37","Категория 1 уровня 37","Категория 2 уровня 37","Категория 3 уровня 37","RUB","-",0,null,"Y","Снято с производства",null,"Flir","США","США",null,null,2955,null,"х",null,null,"Монокуляр тепловизионный",null,null,null,null,315,365,365.25993504905546,12.256560887969615,null,"FLIR (США)","VOx","240х180",17,null,"0,05°C",8.3000000000000007,"Цветной","Механический шторки",null,null,null,null,null,null,null,null,null,null,null,null,null,null,null,null,null,null,null,null,null,null,null,null,null,"19 мм f/1.0","1х",null,24,null,null,null,null,null,null,"LCD","320х240",null,null,null,"Да","Да",null,null,"RCA (разъём)",null,null,null,null,null,null,null,null,null,null,null,null,null,null,null,null,null,null,null,null,null,null,null,null,null,null,null,null,null,null,null,null,null,null,null,null,null,null,null,null,null,null,60,"Да",5,"Да",240,85,60,655,"от 0 до +50°C","IP67",null,"Нет","Нет","12 мес.",null,null,null,null,null,null,null,null,null,null,null,null,null,null,null,null,null,null,null,null,null,null,null,null,null,null,null,null,"Все товары/Электроника/Оптические приборы/Приборы ночного видения","На этот товар СКИДКА или ПОДАРОК, звони!",null,null,null,null,"/upload/imgs/tulon_foto_anons/teploviz_Ohota_ruchnie/flir/TS24PRO.jpg","/upload/imgs/tulon_foto_anons/teploviz_Ohota_ruchnie/flir/TS24PRO.jpg","/upload/imgs/tulon_foto_anons/teploviz_Ohota_ruchnie/flir/TS24PRO_1.jpg;/upload/imgs/tulon_foto_anons/teploviz_Ohota_ruchnie/flir/TS24PRO_2.jpg;/upload/imgs/tulon_foto_anons/teploviz_Ohota_ruchnie/flir/TS24PRO_3.jpg;/upload/imgs/tulon_foto_anons/teploviz_Ohota_ruchnie/flir/TS24PRO_4.jpg;/upload/imgs/tulon_foto_anons/teploviz_Ohota_ruchnie/flir/TS24PRO_5.jpg","/upload/imgs/tulon_op_tovara/teplovizor_ohota/flir/op_FLIR-Scout_TS24-PRO.html","https://www.youtube.com/embed/w8H9PpDM9LY","/upload/imgs/tulon_op_tovara/teplovizor_ohota/flir/Руководство пользователя Flir TS24 TS32 TS32r.pdf;/upload/imgs/tulon_op_tovara/teplovizor_ohota/flir/Брошюра Flir Scout PS TS BTS.pdf;/upload/imgs/tulon_op_tovara/teplovizor_ohota/flir/Брошюра Flir краткий обзор (все модели до 2015).pdf",null,"Тепловизор FLIR Scout TS24 PRO | Скидка, купить, цена","Тепловизор FLIR Scout TS24 PRO купить для охоты и наблюдения по минимальной цене. Сравнить характеристики, скачать инструкцию и отзывы на сайте tulon.ru. Скидка и доставка бесплатно каждому покупателю!","купить, описание, каталог, цена, доставка, акция, распродажа, опт, тепловизор","Тепловизор FLIR Scout TS24 PRO для охоты и наблюдения по минимальной цене. Сравнить характеристики, скачать инструкцию и отзывы на сайте tulon.ru. Скидка и доставка бесплатно каждому покупателю!","флир,скаут,тс 24,тс24,ts 24,про","Тепловизор FLIR Scout TS24 PRO","Тепловизор FLIR Scout TS24 PRO","Тепловизор FLIR Scout TS24 PRO","Тепловизор FLIR Scout TS24 PRO","Тепловизор FLIR Scout TS24 PRO","Тепловизор FLIR Scout TS24 PRO",null,null,null,"купить","для охоты и наблюдения","| Скидка, купить, цена","по минимальной цене. Сравнить характеристики, скачать инструкцию и отзывы на сайте tulon.ru. Скидка и доставка бесплатно каждому покупателю!",null,"купить, описание, каталог, цена, доставка, акция, распродажа, опт, тепловизор","Наименование элемента 37 | Скидка, купить, цена","Наименование элемента 37 купить для охоты и наблюдения по минимальной цене. Сравнить характеристики, скачать инструкцию и отзывы на сайте tulon.ru. Скидка и доставка бесплатно каждому покупателю!","купить, описание, каталог, цена, доставка, акция, распродажа, опт, тепловизор","Наименование элемента 37 для охоты и наблюдения по минимальной цене. Сравнить характеристики, скачать инструкцию и отзывы на сайте tulon.ru. Скидка и доставка бесплатно каждому покупателю!",47,195,null,null,0,null,1,"RUB","-",{"$error":"#VALUE!"}]